Transaction Number,Service - Fund ,Service  - Function ,Service - Cost Centre,Expense Type ,Expense Description,Supplier Name,Supplier Post Code (first 4 digits),Payment Date,Amount �
126456233,Stronger and Safer Communities,Stronger and Safer Communities,Community Safety Partnership,3rd Party Payments,Contract Payments,(COMMUNITY SAFETY PROFESSIONALS TRAINING) CSPT LIMITED,WA14,23/02/2024,"1,045.00"
127769233,Public Health,Public Health,Disabled Facilities Grants,Capital,Grant Payments,1ST CHOICE STAIRLIFTS LIMITED,SN11,28/02/2024,"5,791.00"
127741233,Physical Support,Adults,Physical Support 65 and over,3rd Party Payments,Personal Budget - Domiciliary care,247 HOME CARE LTD,SN5 ,28/02/2024,"2,179.56"
123777233,Physical Support,Adults,Physical Support 65 and over,3rd Party Payments,Personal Budget - Domiciliary care,247 HOME CARE LTD,SN5 ,05/02/2024,"3,703.20"
127741233,Physical Support,Adults,Physical Support 65 and over,3rd Party Payments,Personal Budget - Domiciliary care,247 HOME CARE LTD,SN5 ,28/02/2024,798.10
123777233,Physical Support,Adults,Physical Support 65 and over,3rd Party Payments,Personal Budget - Domiciliary care,247 HOME CARE LTD,SN5 ,05/02/2024,"-3,131.36"
127732233,"Volutary Sector, Equipment and Carers",Adults,Carers Short Term Breaks - Adults,3rd Party Payments,Carers,247 HOME CARE LTD,SN5 ,28/02/2024,618.24
127741233,Physical Support,Adults,Physical Support 18 - 64,3rd Party Payments,Personal Budget - Domiciliary care,247 HOME CARE LTD,SN5 ,28/02/2024,"1,198.84"
123777233,Physical Support,Adults,Physical Support 65 and over,3rd Party Payments,Personal Budget - Domiciliary care,247 HOME CARE LTD,SN5 ,05/02/2024,"2,195.28"
127732233,"Volutary Sector, Equipment and Carers",Adults,Carers Short Term Breaks - Adults,3rd Party Payments,Carers,247 HOME CARE LTD,SN5 ,28/02/2024,-12.48
127741233,Physical Support,Adults,Physical Support 18 - 64,3rd Party Payments,Personal Budget - Domiciliary care,247 HOME CARE LTD,SN5 ,28/02/2024,"3,269.34"
123777233,Physical Support,Adults,Physical Support 65 and over,3rd Party Payments,Personal Budget - Domiciliary care,247 HOME CARE LTD,SN5 ,05/02/2024,"6,182.40"
123777233,Physical Support,Adults,Physical Support 65 and over,3rd Party Payments,Personal Budget - Domiciliary care,247 HOME CARE LTD,SN5 ,05/02/2024,"1,583.12"
123777233,Physical Support,Adults,Physical Support 18 - 64,3rd Party Payments,Personal Budget - Domiciliary care,247 HOME CARE LTD,SN5 ,05/02/2024,"2,336.35"
127741233,Physical Support,Adults,Physical Support 65 and over,3rd Party Payments,Personal Budget - Domiciliary care,247 HOME CARE LTD,SN5 ,28/02/2024,"2,877.36"
123777233,Physical Support,Adults,Physical Support 18 - 64,3rd Party Payments,Personal Budget - Domiciliary care,247 HOME CARE LTD,SN5 ,05/02/2024,"3,292.92"
124585233,Streetsmart,Streetsmart,Waste - Processing,Transport Costs,Vehicle Hire / Contract,911 STAFFING LTD,SN2 ,09/02/2024,"10,739.77"
124589233,Streetsmart,Streetsmart,Waste - Processing,Transport Costs,Vehicle Hire / Contract,911 STAFFING LTD,SN2 ,09/02/2024,"4,585.86"
125293233,Streetsmart,Streetsmart,Waste - Processing,Transport Costs,Vehicle Hire / Contract,911 STAFFING LTD,SN2 ,16/02/2024,"7,559.07"
124127233,Streetsmart,Streetsmart,Waste - Processing,Transport Costs,Vehicle Hire / Contract,911 STAFFING LTD,SN2 ,07/02/2024,"11,986.27"
124615234,Streetsmart,Streetsmart,Waste - Processing,Transport Costs,Vehicle Hire / Contract,911 STAFFING LTD,SN2 ,09/02/2024,"6,056.24"
124519233,Streetsmart,Streetsmart,Waste - Processing,Transport Costs,Vehicle Hire / Contract,911 STAFFING LTD,SN2 ,09/02/2024,"5,401.06"
126572233,Human Resources and Organisational Development,"People, Culture and Organisational Resilience",Organisational Development,Employees,Training,A PLUS SAFETY & TRAINING SERVICES LTD,SN3 ,23/02/2024,575.00
126808233,Human Resources and Organisational Development,"People, Culture and Organisational Resilience",Organisational Development,Employees,Training,A PLUS SAFETY & TRAINING SERVICES LTD,SN3 ,23/02/2024,"1,725.00"
126242233,Homelessness and Travellers,Housing Services,Private Sector Landlords,Transfer Payments,Payment of Costs,REDACTED PERSONAL DATA,SN3 ,23/02/2024,800.00
124780233,Early Years Block,Dedicated Schools Grant (DSG),Free Nursery Education Commissioning - three & four  year olds,3rd Party Payments,Contracts - Child Care,ABBEY FARM EDUCATE TOGETHER PRIMARY,SN25,14/02/2024,"14,731.20"
125063371,High Needs Block,Dedicated Schools Grant (DSG),SEN Resourcing Assessment Panel,3rd Party Payments,Top up funding - Academies and Free Schools Pre 16,ABBEY FARM EDUCATE TOGETHER PRIMARY,SN25,14/02/2024,690.42
123634233,Routes to Employment,"Education, Inclusion and Skills",Multiply,Supplies and Services,Grants to Organisations,ABBEY FARM EDUCATE TOGETHER PRIMARY,SN25,02/02/2024,"2,500.00"
124780234,Early Years Block,Dedicated Schools Grant (DSG),Free Nursery Education Commissioning - three & four  year olds,3rd Party Payments,Contracts - Child Care,ABBEY MEADS COMMUNITY PRIMARY SCHOOL,SN25,14/02/2024,"15,247.35"
125063307,High Needs Block,Dedicated Schools Grant (DSG),SEN Resourcing Assessment Panel,3rd Party Payments,Top up funding - Academies and Free Schools Pre 16,ABBEY MEADS COMMUNITY PRIMARY SCHOOL,SN25,14/02/2024,"5,645.01"
125450233,Mental Health,Adults,Mental Health 65 and over,3rd Party Payments,Personal Budget - Domiciliary care,ABICARE SERVICES LTD,BS32,16/02/2024,-144.24
123771233,Physical Support,Adults,Physical Support 18 - 64,3rd Party Payments,Personal Budget - Domiciliary care,ABICARE SERVICES LTD,BS32,05/02/2024,-21.37
123771233,Physical Support,Adults,Physical Support 18 - 64,3rd Party Payments,Personal Budget - Domiciliary care,ABICARE SERVICES LTD,BS32,05/02/2024,25.03
123771233,Physical Support,Adults,Physical Support 18 - 64,3rd Party Payments,Personal Budget - Domiciliary care,ABICARE SERVICES LTD,BS32,05/02/2024,11.52
123771233,Physical Support,Adults,Physical Support 18 - 64,3rd Party Payments,Personal Budget - Domiciliary care,ABICARE SERVICES LTD,BS32,05/02/2024,"2,671.18"
125450233,Physical Support,Adults,Physical Support 18 - 64,3rd Party Payments,Personal Budget - Domiciliary care,ABICARE SERVICES LTD,BS32,16/02/2024,"2,633.37"
125450233,Physical Support,Adults,Physical Support 18 - 64,3rd Party Payments,Personal Budget - Domiciliary care,ABICARE SERVICES LTD,BS32,16/02/2024,-8.40
125450233,Physical Support,Adults,Physical Support 18 - 64,3rd Party Payments,Personal Budget - Domiciliary care,ABICARE SERVICES LTD,BS32,16/02/2024,69.12
123771233,Physical Support,Adults,Physical Support 18 - 64,3rd Party Payments,Personal Budget - Domiciliary care,ABICARE SERVICES LTD,BS32,05/02/2024,-536.06
125450233,Physical Support,Adults,Physical Support 18 - 64,3rd Party Payments,Personal Budget - Domiciliary care,ABICARE SERVICES LTD,BS32,16/02/2024,-307.65
123771233,Mental Health,Adults,Mental Health 65 and over,3rd Party Payments,Personal Budget - Domiciliary care,ABICARE SERVICES LTD,BS32,05/02/2024,"1,322.08"
123771233,Mental Health,Adults,Mental Health 65 and over,3rd Party Payments,Personal Budget - Domiciliary care,ABICARE SERVICES LTD,BS32,05/02/2024,-241.12
125450233,Mental Health,Adults,Mental Health 65 and over,3rd Party Payments,Personal Budget - Domiciliary care,ABICARE SERVICES LTD,BS32,16/02/2024,"1,306.16"
125457234,Mental Health,Adults,Mental Health 65 and over,3rd Party Payments,Personal Budget - Domiciliary care,ABICARE SERVICES LTD (LIVE IN),SP2 ,16/02/2024,"14,367.76"
125457234,Physical Support,Adults,Physical Support 18 - 64,3rd Party Payments,Personal Budget - Domiciliary care,ABICARE SERVICES LTD (LIVE IN),SP2 ,16/02/2024,"15,673.92"
123775233,Mental Health,Adults,Mental Health 65 and over,3rd Party Payments,Personal Budget - Domiciliary care,ABICARE SERVICES LTD (LIVE IN),SP2 ,05/02/2024,"14,542.88"
123775233,Physical Support,Adults,Physical Support 18 - 64,3rd Party Payments,Personal Budget - Domiciliary care,ABICARE SERVICES LTD (LIVE IN),SP2 ,05/02/2024,"-11,064.96"
125457234,Mental Health,Adults,Mental Health 65 and over,3rd Party Payments,Personal Budget - Domiciliary care,ABICARE SERVICES LTD (LIVE IN),SP2 ,16/02/2024,"-9,943.76"
123775233,Physical Support,Adults,Physical Support 18 - 64,3rd Party Payments,Personal Budget - Domiciliary care,ABICARE SERVICES LTD (LIVE IN),SP2 ,05/02/2024,"-10,118.88"
123775233,Physical Support,Adults,Physical Support 18 - 64,3rd Party Payments,Personal Budget - Domiciliary care,ABICARE SERVICES LTD (LIVE IN),SP2 ,05/02/2024,"14,542.88"
123775233,Mental Health,Adults,Mental Health 65 and over,3rd Party Payments,Personal Budget - Domiciliary care,ABICARE SERVICES LTD (LIVE IN),SP2 ,05/02/2024,"-10,118.88"
125457234,Physical Support,Adults,Physical Support 18 - 64,3rd Party Payments,Personal Budget - Domiciliary care,ABICARE SERVICES LTD (LIVE IN),SP2 ,16/02/2024,"-9,943.76"
125457234,Physical Support,Adults,Physical Support 18 - 64,3rd Party Payments,Personal Budget - Domiciliary care,ABICARE SERVICES LTD (LIVE IN),SP2 ,16/02/2024,"-10,873.92"
125457234,Physical Support,Adults,Physical Support 18 - 64,3rd Party Payments,Personal Budget - Domiciliary care,ABICARE SERVICES LTD (LIVE IN),SP2 ,16/02/2024,"14,367.76"
123775233,Physical Support,Adults,Physical Support 18 - 64,3rd Party Payments,Personal Budget - Domiciliary care,ABICARE SERVICES LTD (LIVE IN),SP2 ,05/02/2024,"15,864.96"
124780235,Early Years Block,Dedicated Schools Grant (DSG),Free Nursery Education Commissioning - three & four  year olds,3rd Party Payments,Contracts - Child Care,REDACTED PERSONAL DATA,SN2 ,14/02/2024,"1,501.50"
123744233,Streetsmart,Streetsmart,Waterside Fleet Hires,Transport Costs,Vehicle Hire / Contract,ACCESS HIRE NATIONWIDE,WF6 ,05/02/2024,"1,671.79"
126943233,Digital & Business Change,Digital & Business Change,IT Systems,Supplies and Services,License Costs,ACCESS UK LTD,LE11,26/02/2024,"4,000.00"
125682233,Digital & Business Change,Digital & Business Change,IT Systems,Supplies and Services,License Costs,ACCESS UK LTD,LE11,19/02/2024,"60,412.02"
123451233,Physical Support,Adults,Physical Support 18 - 64,3rd Party Payments,Residential Care,ACCOMPLISH GROUP CONTRACT MANAGEMENT LIMITED,B63 ,02/02/2024,"6,512.17"
123449233,Physical Support,Adults,Physical Support 18 - 64,3rd Party Payments,Residential Care,ACCOMPLISH GROUP CONTRACT MANAGEMENT LIMITED,B63 ,02/02/2024,"6,302.10"
123451236,Physical Support,Adults,Physical Support 18 - 64,3rd Party Payments,Residential Care,ACCOMPLISH GROUP CONTRACT MANAGEMENT LIMITED,B63 ,02/02/2024,"5,110.50"
126749233,Physical Support,Adults,Physical Support 18 - 64,3rd Party Payments,Residential Care,ACCOMPLISH GROUP CONTRACT MANAGEMENT LIMITED,B63 ,23/02/2024,"6,512.17"
123450233,Physical Support,Adults,Physical Support 18 - 64,3rd Party Payments,Residential Care,ACCOMPLISH GROUP CONTRACT MANAGEMENT LIMITED,B63 ,02/02/2024,"6,512.17"
125037233,Physical Support,Adults,Physical Support 18 - 64,3rd Party Payments,Residential Care,ACCOMPLISH GROUP CONTRACT MANAGEMENT LIMITED,B63 ,14/02/2024,"5,881.96"
125034234,Physical Support,Adults,Physical Support 18 - 64,3rd Party Payments,Residential Care,ACCOMPLISH GROUP CONTRACT MANAGEMENT LIMITED,B63 ,14/02/2024,"5,881.96"
125033237,Physical Support,Adults,Physical Support 18 - 64,3rd Party Payments,Residential Care,ACCOMPLISH GROUP CONTRACT MANAGEMENT LIMITED,B63 ,14/02/2024,"5,881.96"
125021234,Learning Disabilities,Adults,Learning Disability 18 - 64,Income,Client Contribution - Residential,ACHIEVE TOGETHER LTD,BA2 ,14/02/2024,-438.80
125021233,Learning Disabilities,Adults,Learning Disability 18 - 64,Income,Client Contribution - Residential,ACHIEVE TOGETHER LTD,BA2 ,14/02/2024,-438.80
124757233,Learning Disabilities,Adults,Learning Disability 18 - 64,3rd Party Payments,Residential Care,ACHIEVE TOGETHER LTD,BA2 ,14/02/2024,"1,204.17"
125020234,Learning Disabilities,Adults,Learning Disability 18 - 64,Income,Client Contribution - Residential,ACHIEVE TOGETHER LTD,BA2 ,14/02/2024,-438.80
124759233,Learning Disabilities,Adults,Learning Disability 18 - 64,3rd Party Payments,Residential Care,ACHIEVE TOGETHER LTD,BA2 ,14/02/2024,"4,634.09"
125021233,Learning Disabilities,Adults,Learning Disability 18 - 64,3rd Party Payments,Residential Care,ACHIEVE TOGETHER LTD,BA2 ,14/02/2024,"5,552.40"
125019233,Learning Disabilities,Adults,Learning Disability 18 - 64,Income,Client Contribution - Residential,ACHIEVE TOGETHER LTD,BA2 ,14/02/2024,-438.80
125019233,Learning Disabilities,Adults,Learning Disability 18 - 64,3rd Party Payments,Residential Care,ACHIEVE TOGETHER LTD,BA2 ,14/02/2024,"5,406.44"
125021234,Learning Disabilities,Adults,Learning Disability 18 - 64,3rd Party Payments,Residential Care,ACHIEVE TOGETHER LTD,BA2 ,14/02/2024,"5,552.40"
125020234,Learning Disabilities,Adults,Learning Disability 18 - 64,3rd Party Payments,Residential Care,ACHIEVE TOGETHER LTD,BA2 ,14/02/2024,"5,552.40"
124758233,Learning Disabilities,Adults,Learning Disability 18 - 64,3rd Party Payments,Residential Care,ACHIEVE TOGETHER LTD,BA2 ,14/02/2024,"5,406.44"
126262233,Homelessness and Travellers,Housing Services,Private Sector Landlords,Transfer Payments,Payment of Costs,REDACTED PERSONAL DATA,SN8 ,23/02/2024,700.00
126297233,Homelessness and Travellers,Housing Services,Private Sector Landlords,Transfer Payments,Payment of Costs,REDACTED PERSONAL DATA,SN8 ,23/02/2024,650.00
124201233,Social Care,Children & Families,Children's Resource and Home Finding Team,3rd Party Payments,Independent Fostering Agency Placements,ACTION FOR CHILDREN,WD18,07/02/2024,"3,843.07"
124200233,Social Care,Children & Families,Children's Resource and Home Finding Team,3rd Party Payments,Independent Fostering Agency Placements,ACTION FOR CHILDREN,WD18,07/02/2024,"3,843.07"
124198233,Social Care,Children & Families,Children's Resource and Home Finding Team,3rd Party Payments,Independent Fostering Agency Placements,ACTION FOR CHILDREN,WD18,07/02/2024,"3,494.01"
124199233,Social Care,Children & Families,Children's Resource and Home Finding Team,3rd Party Payments,Independent Fostering Agency Placements,ACTION FOR CHILDREN,WD18,07/02/2024,"3,494.01"
125063366,High Needs Block,Dedicated Schools Grant (DSG),SEN Resourcing Assessment Panel,3rd Party Payments,Top up funding - Academies and Free Schools Post 16,ACTIVATE LEARNING EDUCATION TRUST,OX1 ,14/02/2024,"1,114.25"
125063341,High Needs Block,Dedicated Schools Grant (DSG),SEN Resourcing Assessment Panel,3rd Party Payments,Top up funding - Academies and Free Schools Pre 16,ACTIVATE LEARNING EDUCATION TRUST,OX1 ,14/02/2024,"1,681.67"
125598289,Learning Disabilities,Adults,Learning Disability 18 - 64,Income,Client Contribution - Personal Budget - DP,REDACTED PERSONAL DATA,SN4 ,16/02/2024,-49.00
125598289,Learning Disabilities,Adults,Learning Disability 18 - 64,Transfer Payments,Personal Budget - Direct Payments - Domiciliary Care,REDACTED PERSONAL DATA,SN4 ,16/02/2024,"1,237.28"
125598272,Learning Disabilities,Adults,Learning Disability 18 - 64,Income,Client Contribution - Personal Budget - DP,REDACTED PERSONAL DATA,SN3 ,16/02/2024,-156.00
125598272,Learning Disabilities,Adults,Learning Disability 18 - 64,Transfer Payments,Personal Budget - Direct Payments - Domiciliary Care,REDACTED PERSONAL DATA,SN3 ,16/02/2024,"1,823.36"
125598272,Learning Disabilities,Adults,Learning Disability 18 - 64,Transfer Payments,Personal Budget - Direct Payments - Domiciliary Care,REDACTED PERSONAL DATA,SN3 ,16/02/2024,410.88
125598272,Learning Disabilities,Adults,Learning Disability 18 - 64,Income,Client Contribution - Personal Budget - DP,REDACTED PERSONAL DATA,SN3 ,16/02/2024,-35.16
126261233,Homelessness and Travellers,Housing Services,Private Sector Landlords,Transfer Payments,Payment of Costs,ADVANCE HOUSING & SUPPORT LTD,OX28,23/02/2024,"1,074.00"
123404245,Planned Maintenance Programme,HRA Capital Financing,Central Heating,Capital,Contractor Payments,AEGIR TECHNICAL SERVICES LTD,BA14,07/02/2024,"2,680.00"
123404245,Planned Maintenance Programme,HRA Capital Financing,Central Heating,Capital,Contractor Payments,AEGIR TECHNICAL SERVICES LTD,BA14,07/02/2024,"4,028.42"
124081233,Property Management,Property,Corporate Repairs & Maintenance Programme,Premises Costs,Maintenance - Buildings,AEGIR TECHNICAL SERVICES LTD,BA14,07/02/2024,"2,100.00"
124081233,Property Management,Property,Corporate Repairs & Maintenance Programme,Premises Costs,Maintenance - Buildings,AEGIR TECHNICAL SERVICES LTD,BA14,07/02/2024,"3,157.00"
124011233,Social Care,Children & Families,Children's Resource and Home Finding Team,3rd Party Payments,Independent Fostering Agency Placements,AFFINITY FOSTERING SERVICES LTD,CM4 ,07/02/2024,"3,813.00"
124009233,Social Care,Children & Families,Children's Resource and Home Finding Team,3rd Party Payments,Independent Fostering Agency Placements,AFFINITY FOSTERING SERVICES LTD,CM4 ,07/02/2024,"3,813.00"
124010233,Social Care,Children & Families,Children's Resource and Home Finding Team,3rd Party Payments,Independent Fostering Agency Placements,AFFINITY FOSTERING SERVICES LTD,CM4 ,07/02/2024,"5,646.34"
125479233,Landscaping & Open Space,Culture & Heritage & Art,Moredon Recreation - Multi Sports Hub,Capital,Contractor Payments,AGGREGATE INDUSTRIES UK LTD T/A SPADEOAK,HP10,16/02/2024,"108,259.47"
123495233,Landscaping & Open Space,Culture & Heritage & Art,Moredon Recreation - Multi Sports Hub,Capital,Contractor Payments,AGGREGATE INDUSTRIES UK LTD T/A SPADEOAK,HP10,02/02/2024,"89,417.31"
125201233,Learning Disabilities,Adults,Learning Disability 65 and over,3rd Party Payments,Supported Lodgings (Childrens)/Supported Living (Adults),AGINCARE ENABLE LTD,DT5 ,14/02/2024,"2,573.48"
125201233,Learning Disabilities,Adults,Learning Disability 65 and over,Income,Client Contribution - Supported Living,AGINCARE ENABLE LTD,DT5 ,14/02/2024,-335.16
125201233,Learning Disabilities,Adults,Learning Disability 65 and over,Income,Client Contribution - Supported Living,AGINCARE ENABLE LTD,DT5 ,14/02/2024,-141.44
125201233,Learning Disabilities,Adults,Learning Disability 65 and over,3rd Party Payments,Supported Lodgings (Childrens)/Supported Living (Adults),AGINCARE ENABLE LTD,DT5 ,14/02/2024,"6,099.00"
124518264,Physical Support,Adults,Physical Support 65 and over,3rd Party Payments,Residential Care,AGINCARE LTD,DT5 ,09/02/2024,"3,780.00"
124518264,Physical Support,Adults,Physical Support 65 and over,Income,Client Contribution - Residential,AGINCARE LTD,DT5 ,09/02/2024,"-1,231.12"
Corporate Card Transaction,Human Resources and Organisational Development,"People, Culture and Organisational Resilience",Human Resources & Organisational Development,Employees,Training,Aimproject,,01/02/2024,880.00
124780236,Early Years Block,Dedicated Schools Grant (DSG),Free Nursery Education Commissioning - three & four  year olds,3rd Party Payments,Contracts - Child Care,REDACTED PERSONAL DATA,SN3 ,14/02/2024,693.00
125420233,School Transport,"Education, Inclusion and Skills",Special Educational Needs Transport,Transport Costs,Home to School Transport,AKCESS CIC,SN2 ,16/02/2024,"4,433.33"
123486234,Physical Support,Adults,Physical Support 65 and over,Transport Costs,Home to Centre Transport,AKCESS CIC,SN2 ,02/02/2024,"5,934.71"
123527233,Learning Disabilities,Adults,LD Day Services (OK4U),Transport Costs,Home to Centre Transport,AKCESS CIC,SN2 ,02/02/2024,"20,778.01"
123486234,Learning Disabilities,Adults,LD Day Services (OK4U),Transport Costs,Home to Centre Transport,AKCESS CIC,SN2 ,02/02/2024,"20,778.01"
123527233,Physical Support,Adults,Physical Support 65 and over,Transport Costs,Home to Centre Transport,AKCESS CIC,SN2 ,02/02/2024,"5,934.71"
123527233,Physical Support,Adults,Physical Support 65 and over,Transport Costs,Home to Centre Transport,AKCESS CIC,SN2 ,02/02/2024,"2,968.29"
123984233,Travel,Highways & Transport,Public Transport,3rd Party Payments,Contract Payments,AKCESS CIC,SN2 ,07/02/2024,"15,023.18"
123486234,Physical Support,Adults,Physical Support 65 and over,Transport Costs,Home to Centre Transport,AKCESS CIC,SN2 ,02/02/2024,"2,968.29"
125108233,Senior Management Team,Children & Families,Family Safeguarding Model,Supplies and Services,Services,ALASDAIR CANT & ASSOCIATES LIMITED,CB2 ,14/02/2024,"4,625.57"
125087233,Learning Disabilities,Adults,Learning Disability 18 - 64,3rd Party Payments,Supported Accommodation Scheme,REDACTED PERSONAL DATA,SN2 ,21/02/2024,528.00
125088233,Learning Disabilities,Adults,Learning Disability 18 - 64,3rd Party Payments,Supported Accommodation Scheme,REDACTED PERSONAL DATA,SN2 ,21/02/2024,"2,280.00"
124876233,Disabled Children,Children & Families,DCT Daytime Short Breaks,Transfer Payments,Personal Budget - Direct Payments - Other,REDACTED PERSONAL DATA,SN1 ,12/02/2024,661.50
125598311,Learning Disabilities,Adults,Learning Disability 18 - 64,Transfer Payments,Personal Budget - Direct Payments - Domiciliary Care,REDACTED PERSONAL DATA,SN25,16/02/2024,"1,400.08"
125598311,Learning Disabilities,Adults,Learning Disability 18 - 64,Income,Client Contribution - Personal Budget - DP,REDACTED PERSONAL DATA,SN25,16/02/2024,-22.72
125598311,Learning Disabilities,Adults,Learning Disability 18 - 64,Income,Client Contribution - Personal Budget - DP,REDACTED PERSONAL DATA,SN25,16/02/2024,-464.48
125598311,Learning Disabilities,Adults,Learning Disability 18 - 64,Transfer Payments,Personal Budget - Direct Payments - Domiciliary Care,REDACTED PERSONAL DATA,SN25,16/02/2024,68.48
125598619,Learning Disabilities,Adults,Learning Disability 18 - 64,Transfer Payments,Personal Budget - Direct Payments - Domiciliary Care,REDACTED PERSONAL DATA,GL53,16/02/2024,"3,007.76"
125598619,Learning Disabilities,Adults,Learning Disability 18 - 64,Transfer Payments,Personal Budget - Direct Payments - Other,REDACTED PERSONAL DATA,GL53,16/02/2024,"16,800.00"
124780237,Early Years Block,Dedicated Schools Grant (DSG),Free Nursery Education Commissioning - two year olds,3rd Party Payments,Contracts - Child Care,ALFRESCO CHILDCARE,SN6 ,14/02/2024,509.52
124780238,Early Years Block,Dedicated Schools Grant (DSG),Free Nursery Education Commissioning - three & four  year olds,3rd Party Payments,Contracts - Child Care,ALFRESCO CHILDCARE,SN6 ,14/02/2024,"12,104.40"
125114233,Learning Disabilities,Adults,Learning Disability 18 - 64,3rd Party Payments,Supported Accommodation Scheme,REDACTED PERSONAL DATA,SN1 ,21/02/2024,"2,666.00"
125598580,Learning Disabilities,Adults,Learning Disability 18 - 64,Transfer Payments,Personal Budget - Direct Payments - Domiciliary Care,REDACTED PERSONAL DATA,SN4 ,16/02/2024,"2,378.80"
125598580,Learning Disabilities,Adults,Learning Disability 18 - 64,Transfer Payments,Personal Budget - Direct Payments - Domiciliary Care,REDACTED PERSONAL DATA,SN4 ,16/02/2024,"2,817.60"
125598580,Learning Disabilities,Adults,Learning Disability 18 - 64,Transfer Payments,Personal Budget - Direct Payments - Domiciliary Care,REDACTED PERSONAL DATA,SN4 ,16/02/2024,197.52
125598580,Learning Disabilities,Adults,Learning Disability 18 - 64,Transfer Payments,Personal Budget - Direct Payments - Other,REDACTED PERSONAL DATA,SN4 ,16/02/2024,157.92
125598580,Learning Disabilities,Adults,Learning Disability 18 - 64,Transfer Payments,Personal Budget - Direct Payments - Other,REDACTED PERSONAL DATA,SN4 ,16/02/2024,151.20
125598580,Learning Disabilities,Adults,Learning Disability 18 - 64,Transfer Payments,Personal Budget - Direct Payments - Domiciliary Care,REDACTED PERSONAL DATA,SN4 ,16/02/2024,469.50
125598580,Learning Disabilities,Adults,Learning Disability 18 - 64,Transfer Payments,Personal Budget - Direct Payments - Other,REDACTED PERSONAL DATA,SN4 ,16/02/2024,118.80
125598580,Learning Disabilities,Adults,Learning Disability 18 - 64,Transfer Payments,Personal Budget - Direct Payments - Domiciliary Care,REDACTED PERSONAL DATA,SN4 ,16/02/2024,"1,448.48"
126597233,Streetsmart,Streetsmart,Refuse Collection,Employees,Temporary / Agency - by Accounts Payable,ALIGRA PERSONNEL LTD,SN25,23/02/2024,"1,299.20"
126596233,Streetsmart,Streetsmart,Refuse Collection,Employees,Temporary / Agency - by Accounts Payable,ALIGRA PERSONNEL LTD,SN25,23/02/2024,"2,108.01"
126544233,Streetsmart,Streetsmart,Refuse Collection,Employees,Temporary / Agency - by Accounts Payable,ALIGRA PERSONNEL LTD,SN25,23/02/2024,"1,661.41"
126779237,School Transport,"Education, Inclusion and Skills",Special Educational Needs Transport,Transport Costs,Home to School Transport,REDACTED PERSONAL DATA,SN5 ,26/02/2024,518.18
125115233,Learning Disabilities,Adults,Learning Disability 18 - 64,3rd Party Payments,Supported Accommodation Scheme,REDACTED PERSONAL DATA,SN2 ,21/02/2024,"1,866.00"
125115233,Learning Disabilities,Adults,Learning Disability 18 - 64,3rd Party Payments,Supported Accommodation Scheme,REDACTED PERSONAL DATA,SN2 ,21/02/2024,"1,840.00"
125115233,Learning Disabilities,Adults,Learning Disability 18 - 64,3rd Party Payments,Supported Accommodation Scheme,REDACTED PERSONAL DATA,SN2 ,21/02/2024,"2,226.00"
125597233,Learning Disabilities,Adults,Learning Disability 18 - 64,Income,Client Contribution - Personal Budget - DP,REDACTED PERSONAL DATA,SN5 ,16/02/2024,-169.04
125597233,Learning Disabilities,Adults,Learning Disability 18 - 64,Transfer Payments,Personal Budget - Direct Payments - Other,REDACTED PERSONAL DATA,SN5 ,16/02/2024,23.80
125597233,Learning Disabilities,Adults,Learning Disability 18 - 64,Transfer Payments,Personal Budget - Direct Payments - Domiciliary Care,REDACTED PERSONAL DATA,SN5 ,16/02/2024,"2,817.36"
125597233,Learning Disabilities,Adults,Learning Disability 18 - 64,Income,Client Contribution - Personal Budget - DP,REDACTED PERSONAL DATA,SN5 ,16/02/2024,-142.20
125597233,Learning Disabilities,Adults,Learning Disability 18 - 64,Transfer Payments,Personal Budget - Direct Payments - Domiciliary Care,REDACTED PERSONAL DATA,SN5 ,16/02/2024,"3,079.68"
125597233,Learning Disabilities,Adults,Learning Disability 18 - 64,Transfer Payments,Personal Budget - Direct Payments - Domiciliary Care,REDACTED PERSONAL DATA,SN5 ,16/02/2024,"3,660.00"
125597233,Learning Disabilities,Adults,Learning Disability 18 - 64,Income,Client Contribution - Personal Budget - DP,REDACTED PERSONAL DATA,SN5 ,16/02/2024,-1.08
125597233,Learning Disabilities,Adults,Learning Disability 18 - 64,Income,Client Contribution - Personal Budget - DP,REDACTED PERSONAL DATA,SN5 ,16/02/2024,-130.08
124780239,Early Years Block,Dedicated Schools Grant (DSG),Free Nursery Education Commissioning - three & four  year olds,3rd Party Payments,Contracts - Child Care,REDACTED PERSONAL DATA,SN1 ,14/02/2024,693.00
124780240,Early Years Block,Dedicated Schools Grant (DSG),Free Nursery Education Commissioning - three & four  year olds,3rd Party Payments,Contracts - Child Care,REDACTED PERSONAL DATA,SN1 ,14/02/2024,831.60
125598271,Learning Disabilities,Adults,Learning Disability 18 - 64,Transfer Payments,Personal Budget - Direct Payments - Domiciliary Care,REDACTED PERSONAL DATA,SN5 ,16/02/2024,39.20
125598271,Learning Disabilities,Adults,Learning Disability 18 - 64,Transfer Payments,Personal Budget - Direct Payments - Domiciliary Care,REDACTED PERSONAL DATA,SN5 ,16/02/2024,"3,628.80"
125598271,Learning Disabilities,Adults,Learning Disability 18 - 64,Income,Client Contribution - Personal Budget - DP,REDACTED PERSONAL DATA,SN5 ,16/02/2024,-1.36
125598271,Learning Disabilities,Adults,Learning Disability 18 - 64,Income,Client Contribution - Personal Budget - DP,REDACTED PERSONAL DATA,SN5 ,16/02/2024,-127.04
126907233,Social Care,Children & Families,Placement Fostering Service,3rd Party Payments,Foster Care Basic Payments,REDACTED PERSONAL DATA,SN2 ,26/02/2024,428.57
126907233,Social Care,Children & Families,Placement Fostering Service,3rd Party Payments,Carers Skills Payments - Core,REDACTED PERSONAL DATA,SN2 ,26/02/2024,154.29
127786233,Highways & Transport,Highways & Transport,Rights of Way (ROW),Supplies and Services,Repairs & Maintenance,ALLBUILD BUILDING & LANDSCAPING SERVICES,SN25,28/02/2024,525.00
123499233,Environmental & Regulatory,Highways & Transport,Shaw Farm Landfill Site,Supplies and Services,Testing / Inspection,ALLBUILD BUILDING & LANDSCAPING SERVICES,SN25,02/02/2024,720.00
126654233,Environmental & Regulatory,Highways & Transport,Shaw Farm Landfill Site,Supplies and Services,Testing / Inspection,ALLBUILD BUILDING & LANDSCAPING SERVICES,SN25,23/02/2024,"1,680.00"
125075233,Streetsmart,Streetsmart,Waterside Fleet Workshops,Supplies and Services,Materials,ALLCAP LIMITED,GL1 ,14/02/2024,506.47
123613233,Streetsmart,Streetsmart,Waterside Fleet Hires,Transport Costs,Vehicle Fuel,ALLIANCE AUTOMOTIVE UK T/A BRAYMARC,BD4 ,14/02/2024,815.00
125002239,Streetsmart,Streetsmart,Waterside Fleet Workshops,Supplies and Services,Equipment,ALLIANCE AUTOMOTIVE UK T/A BRAYMARC,BD4 ,14/02/2024,815.00
121698233,Streetsmart,Streetsmart,Waterside Fleet Workshops,Supplies and Services,Equipment,ALLIANCE AUTOMOTIVE UK T/A BRAYMARC,BD4 ,14/02/2024,-440.00
125919233,Treasury,Corporate Finance,Treasury,Supplies and Services,Bank Charges,ALLPAY-NET LIMITED,HR1 ,21/02/2024,817.05
Corporate Card Transaction,Social Care,"Children, Families and Community Health Services",Placement - Care Leaver Team,3rd Party Payments,Personal Needs,Allpay *stonewater Limite,,31/01/2024,"1,717.74"
127776233,Town Centre,"Economy, Growth and Place",Kimmerfields enabling works,Capital,Internal Fees,ALPHA HIGHWAY CONSULTANTS LIMITED,SG5 ,28/02/2024,"1,285.00"
127775233,Town Centre,"Economy, Growth and Place",Kimmerfields enabling works,Capital,Internal Fees,ALPHA HIGHWAY CONSULTANTS LIMITED,SG5 ,28/02/2024,"1,185.00"
126620233,Disabled Children,Children & Families,DCT Daytime Short Breaks,3rd Party Payments,Respite Care,ALPHA24 HEALTHCARE LTD,EC3A,23/02/2024,978.75
125958238,Disabled Children,Children & Families,DCT Daytime Short Breaks,3rd Party Payments,Respite Care,ALPHA24 HEALTHCARE LTD,EC3A,21/02/2024,978.75
123843253,Disabled Children,Children & Families,DCT Daytime Short Breaks,3rd Party Payments,Respite Care,ALPHA24 HEALTHCARE LTD,EC3A,05/02/2024,"1,305.00"
127901233,Disabled Children,Children & Families,DCT Daytime Short Breaks,3rd Party Payments,Respite Care,ALPHA24 HEALTHCARE LTD,EC3A,28/02/2024,978.75
126617233,Disabled Children,Children & Families,DCT Daytime Short Breaks,3rd Party Payments,Respite Care,ALPHA24 HEALTHCARE LTD,EC3A,23/02/2024,"1,305.00"
126615233,Disabled Children,Children & Families,DCT Daytime Short Breaks,3rd Party Payments,Respite Care,ALPHA24 HEALTHCARE LTD,EC3A,23/02/2024,978.75
126599233,Disabled Children,Children & Families,DCT Daytime Short Breaks,3rd Party Payments,Respite Care,ALPHA24 HEALTHCARE LTD,EC3A,23/02/2024,"1,305.00"
125958233,Disabled Children,Children & Families,DCT Daytime Short Breaks,3rd Party Payments,Respite Care,ALPHA24 HEALTHCARE LTD,EC3A,21/02/2024,652.50
125956234,Disabled Children,Children & Families,DCT Daytime Short Breaks,3rd Party Payments,Respite Care,ALPHA24 HEALTHCARE LTD,EC3A,21/02/2024,978.75
123879233,Disabled Children,Children & Families,DCT Daytime Short Breaks,3rd Party Payments,Respite Care,ALPHA24 HEALTHCARE LTD,EC3A,05/02/2024,978.75
127902233,Disabled Children,Children & Families,DCT Daytime Short Breaks,3rd Party Payments,Respite Care,ALPHA24 HEALTHCARE LTD,EC3A,28/02/2024,978.75
126622233,Disabled Children,Children & Families,DCT Daytime Short Breaks,3rd Party Payments,Respite Care,ALPHA24 HEALTHCARE LTD,EC3A,23/02/2024,652.50
124176233,Disabled Children,Children & Families,DCT Daytime Short Breaks,3rd Party Payments,Respite Care,ALPHA24 HEALTHCARE LTD,EC3A,07/02/2024,978.75
123878233,Disabled Children,Children & Families,DCT Daytime Short Breaks,3rd Party Payments,Respite Care,ALPHA24 HEALTHCARE LTD,EC3A,05/02/2024,978.75
123531234,Disabled Children,Children & Families,DCT Daytime Short Breaks,3rd Party Payments,Respite Care,ALPHA24 HEALTHCARE LTD,EC3A,02/02/2024,"1,305.00"
127890233,Disabled Children,Children & Families,DCT Daytime Short Breaks,3rd Party Payments,Respite Care,ALPHA24 HEALTHCARE LTD,EC3A,28/02/2024,652.50
125958236,Disabled Children,Children & Families,DCT Daytime Short Breaks,3rd Party Payments,Respite Care,ALPHA24 HEALTHCARE LTD,EC3A,21/02/2024,"1,305.00"
123484233,Disabled Children,Children & Families,DCT Daytime Short Breaks,3rd Party Payments,Respite Care,ALPHA24 HEALTHCARE LTD,EC3A,02/02/2024,"1,631.25"
127887233,Disabled Children,Children & Families,DCT Daytime Short Breaks,3rd Party Payments,Respite Care,ALPHA24 HEALTHCARE LTD,EC3A,28/02/2024,"1,141.88"
126616233,Disabled Children,Children & Families,DCT Daytime Short Breaks,3rd Party Payments,Respite Care,ALPHA24 HEALTHCARE LTD,EC3A,23/02/2024,978.75
125957233,Disabled Children,Children & Families,DCT Daytime Short Breaks,3rd Party Payments,Respite Care,ALPHA24 HEALTHCARE LTD,EC3A,21/02/2024,978.75
123529233,Disabled Children,Children & Families,DCT Daytime Short Breaks,3rd Party Payments,Respite Care,ALPHA24 HEALTHCARE LTD,EC3A,02/02/2024,652.50
123949233,Disabled Children,Children & Families,DCT Daytime Short Breaks,3rd Party Payments,Respite Care,ALPHA24 HEALTHCARE LTD,EC3A,07/02/2024,978.75
123877233,Disabled Children,Children & Families,DCT Daytime Short Breaks,3rd Party Payments,Respite Care,ALPHA24 HEALTHCARE LTD,EC3A,05/02/2024,652.50
126619233,Disabled Children,Children & Families,DCT Daytime Short Breaks,3rd Party Payments,Respite Care,ALPHA24 HEALTHCARE LTD,EC3A,23/02/2024,978.75
125959236,Disabled Children,Children & Families,DCT Daytime Short Breaks,3rd Party Payments,Respite Care,ALPHA24 HEALTHCARE LTD,EC3A,21/02/2024,978.75
125959239,Disabled Children,Children & Families,DCT Daytime Short Breaks,3rd Party Payments,Respite Care,ALPHA24 HEALTHCARE LTD,EC3A,21/02/2024,978.75
125958234,Disabled Children,Children & Families,DCT Daytime Short Breaks,3rd Party Payments,Respite Care,ALPHA24 HEALTHCARE LTD,EC3A,21/02/2024,652.50
124177233,Disabled Children,Children & Families,DCT Daytime Short Breaks,3rd Party Payments,Respite Care,ALPHA24 HEALTHCARE LTD,EC3A,07/02/2024,978.75
123947233,Disabled Children,Children & Families,DCT Daytime Short Breaks,3rd Party Payments,Respite Care,ALPHA24 HEALTHCARE LTD,EC3A,07/02/2024,978.75
123880233,Disabled Children,Children & Families,DCT Daytime Short Breaks,3rd Party Payments,Respite Care,ALPHA24 HEALTHCARE LTD,EC3A,05/02/2024,978.75
123536233,Disabled Children,Children & Families,DCT Daytime Short Breaks,3rd Party Payments,Respite Care,ALPHA24 HEALTHCARE LTD,EC3A,02/02/2024,"1,305.00"
127893233,Disabled Children,Children & Families,DCT Daytime Short Breaks,3rd Party Payments,Respite Care,ALPHA24 HEALTHCARE LTD,EC3A,28/02/2024,625.50
127889233,Disabled Children,Children & Families,DCT Daytime Short Breaks,3rd Party Payments,Respite Care,ALPHA24 HEALTHCARE LTD,EC3A,28/02/2024,978.75
126625233,Disabled Children,Children & Families,DCT Daytime Short Breaks,3rd Party Payments,Respite Care,ALPHA24 HEALTHCARE LTD,EC3A,23/02/2024,"1,305.00"
123945233,Disabled Children,Children & Families,DCT Daytime Short Breaks,3rd Party Payments,Respite Care,ALPHA24 HEALTHCARE LTD,EC3A,07/02/2024,"1,305.00"
123530234,Disabled Children,Children & Families,DCT Daytime Short Breaks,3rd Party Payments,Respite Care,ALPHA24 HEALTHCARE LTD,EC3A,02/02/2024,"1,305.00"
126621233,Disabled Children,Children & Families,DCT Daytime Short Breaks,3rd Party Payments,Respite Care,ALPHA24 HEALTHCARE LTD,EC3A,23/02/2024,978.75
123535233,Disabled Children,Children & Families,DCT Daytime Short Breaks,3rd Party Payments,Respite Care,ALPHA24 HEALTHCARE LTD,EC3A,02/02/2024,652.50
123507233,Disabled Children,Children & Families,DCT Daytime Short Breaks,3rd Party Payments,Respite Care,ALPHA24 HEALTHCARE LTD,EC3A,02/02/2024,978.75
127894233,Disabled Children,Children & Families,DCT Daytime Short Breaks,3rd Party Payments,Respite Care,ALPHA24 HEALTHCARE LTD,EC3A,28/02/2024,978.75
127003233,Disabled Children,Children & Families,DCT Daytime Short Breaks,3rd Party Payments,Respite Care,ALPHA24 HEALTHCARE LTD,EC3A,26/02/2024,978.75
124518317,Physical Support,Adults,Physical Support 65 and over,Income,Client Contribution - Nursing,ALTOGETHER CARE WEYMOUTH CARE HOME,DT4 ,09/02/2024,-691.20
124518317,Physical Support,Adults,Physical Support 65 and over,3rd Party Payments,Nursing Care,ALTOGETHER CARE WEYMOUTH CARE HOME,DT4 ,09/02/2024,"4,023.28"
127506233,"Volutary Sector, Equipment and Carers",Adults,Voluntary Sector Adults,3rd Party Payments,Contracts - Social Care,ALZHEIMERS SOCIETY,PL6 ,28/02/2024,"2,433.00"
124305233,"Volutary Sector, Equipment and Carers",Adults,Voluntary Sector Adults,3rd Party Payments,Contracts - Social Care,ALZHEIMERS SOCIETY,PL6 ,09/02/2024,"2,433.00"
124587233,Town Centre,"Economy, Growth and Place",Uk shared Properity Fund,Supplies and Services,Services,ALZHEIMERS SOCIETY,PL6 ,09/02/2024,"5,833.33"
127910233,Town Centre,"Economy, Growth and Place",Uk shared Properity Fund,Supplies and Services,Services,ALZHEIMERS SOCIETY,PL6 ,28/02/2024,"5,833.33"
125598235,Learning Disabilities,Adults,Learning Disability 18 - 64,Transfer Payments,Personal Budget - Direct Payments - Domiciliary Care,REDACTED PERSONAL DATA,SN3 ,16/02/2024,81.40
125598235,Learning Disabilities,Adults,Learning Disability 18 - 64,Transfer Payments,Personal Budget - Direct Payments - Domiciliary Care,REDACTED PERSONAL DATA,SN3 ,16/02/2024,"1,782.66"
124780241,Early Years Block,Dedicated Schools Grant (DSG),Free Nursery Education Commissioning - three & four  year olds,3rd Party Payments,Contracts - Child Care,REDACTED PERSONAL DATA,SN5 ,14/02/2024,"1,155.00"
125063254,High Needs Block,Dedicated Schools Grant (DSG),SEN Resourcing Assessment Panel,Supplies and Services,Services,REDACTED PERSONAL DATA,SN4 ,14/02/2024,"2,461.16"
Corporate Card Transaction,DSG Other Funding,DSG Skills and Attainment,LAC pupil premium,Supplies and Services,Services,Amazon.Co.Uk*1t0ki3e25,,15/02/2024,500.00
Corporate Card Transaction,Homelessness and Travellers,Housing Services,Warm Welcome Project,Supplies and Services,Equipment,Amazon.Co.Uk*5v60c8uv5,,09/02/2024,554.97
Corporate Card Transaction,DSG Other Funding,DSG Skills and Attainment,LAC pupil premium,Supplies and Services,Services,Amazon.Co.Uk*bi1xx4xe5,,15/02/2024,500.00
Corporate Card Transaction,DSG Other Funding,DSG Skills and Attainment,LAC pupil premium,Supplies and Services,Services,Amazon.Co.Uk*e92dj6h95,,15/02/2024,500.00
Corporate Card Transaction,EOTAS,DSG Skills and Attainment,EOTAS - Riverside,Supplies and Services,Materials,Amazon.Co.Uk*uv5i74o55,,15/02/2024,500.00
124325233,Social Care,Children & Families,Children's Resource and Home Finding Team,3rd Party Payments,Semi Independent,AMEGREEN CHILDREN'S SERVICES LTD,RG7 ,09/02/2024,"12,428.82"
124945234,Responsive Repairs,Repairs,Responsive Repairs,Premises Costs,Repairs - Buildings,AMELIO UTILITIES(GLOU) LTD T/A 3 COUNTIES DRAIN SERVICES,GL1 ,14/02/2024,140.60
124945234,Responsive Repairs,Repairs,Responsive Repairs,Premises Costs,Repairs - Buildings,AMELIO UTILITIES(GLOU) LTD T/A 3 COUNTIES DRAIN SERVICES,GL1 ,14/02/2024,353.14
124945234,Responsive Repairs,Repairs,Responsive Repairs,Premises Costs,Repairs - Buildings,AMELIO UTILITIES(GLOU) LTD T/A 3 COUNTIES DRAIN SERVICES,GL1 ,14/02/2024,281.19
124945234,Responsive Repairs,Repairs,Responsive Repairs,Premises Costs,Repairs - Buildings,AMELIO UTILITIES(GLOU) LTD T/A 3 COUNTIES DRAIN SERVICES,GL1 ,14/02/2024,176.57
124945234,Responsive Repairs,Repairs,Responsive Repairs,Premises Costs,Repairs - Buildings,AMELIO UTILITIES(GLOU) LTD T/A 3 COUNTIES DRAIN SERVICES,GL1 ,14/02/2024,412.00
124945234,Responsive Repairs,Repairs,Responsive Repairs,Premises Costs,Repairs - Buildings,AMELIO UTILITIES(GLOU) LTD T/A 3 COUNTIES DRAIN SERVICES,GL1 ,14/02/2024,317.17
125423233,Highways & Transport,Highways & Transport,Project Delivery,Supplies and Services,Services,AMEY OW LTD,L19 ,16/02/2024,"99,446.55"
123783233,Highways & Transport,Highways & Transport,Project Delivery,Supplies and Services,Services,AMEY OW LTD,L19 ,05/02/2024,"52,857.30"
127052233,Highways & Transport,Highways & Transport,Project Delivery,Supplies and Services,Services,AMEY OW LTD,L19 ,26/02/2024,"52,857.30"
123922233,Social Care,Children & Families,Children's Resource and Home Finding Team,3rd Party Payments,Independent Fostering Agency Placements,AMICUS FOSTER CARE,BS2 ,07/02/2024,"5,256.05"
125598530,Mental Health,Adults,Mental Health 18-64,Transfer Payments,Personal Budget - Direct Payments - Domiciliary Care,REDACTED PERSONAL DATA,SN25,16/02/2024,544.32
125598530,Mental Health,Adults,Mental Health 18-64,Transfer Payments,Personal Budget - Direct Payments - Domiciliary Care,REDACTED PERSONAL DATA,SN25,16/02/2024,1.84
125598530,Mental Health,Adults,Mental Health 18-64,Transfer Payments,Personal Budget - Direct Payments - Other,REDACTED PERSONAL DATA,SN25,16/02/2024,24.00
124780242,Early Years Block,Dedicated Schools Grant (DSG),Free Nursery Education Commissioning - three & four  year olds,3rd Party Payments,Contracts - Child Care,REDACTED PERSONAL DATA,SN25,14/02/2024,693.00
125755233,Early Years Block,Dedicated Schools Grant (DSG),Free Nursery Education Commissioning - three & four  year olds,3rd Party Payments,Contracts - Child Care,REDACTED PERSONAL DATA,SN5 ,21/02/2024,"2,280.00"
126253233,Homelessness and Travellers,Housing Services,Private Sector Landlords,Transfer Payments,Payment of Costs,ANGELVIEW PROPERTIES LTD,ALBO,23/02/2024,590.00
124781233,Early Years Block,Dedicated Schools Grant (DSG),Free Nursery Education Commissioning - three & four  year olds,3rd Party Payments,Contracts - Child Care,REDACTED PERSONAL DATA,SN1 ,14/02/2024,"1,039.50"
124782233,Early Years Block,Dedicated Schools Grant (DSG),Free Nursery Education Commissioning - two year olds,3rd Party Payments,Contracts - Child Care,REDACTED PERSONAL DATA,SN1 ,14/02/2024,509.52
125911233,Education,"Education, Inclusion and Skills","Holiday, Activities & Food Grant",3rd Party Payments,Contracts - Child Care,REDACTED PERSONAL DATA,TR16,21/02/2024,"1,000.00"
125598309,Physical Support,Adults,Physical Support 18 - 64,Transfer Payments,Personal Budget - Direct Payments - Domiciliary Care,REDACTED PERSONAL DATA,SN25,16/02/2024,732.60
125598309,Physical Support,Adults,Physical Support 18 - 64,Transfer Payments,Personal Budget - Direct Payments - Domiciliary Care,REDACTED PERSONAL DATA,SN25,16/02/2024,24.80
125598309,Physical Support,Adults,Physical Support 18 - 64,Transfer Payments,Personal Budget - Direct Payments - Domiciliary Care,REDACTED PERSONAL DATA,SN25,16/02/2024,"1,172.16"
125598309,Physical Support,Adults,Physical Support 18 - 64,Transfer Payments,Personal Budget - Direct Payments - Domiciliary Care,REDACTED PERSONAL DATA,SN25,16/02/2024,376.00
125598309,Physical Support,Adults,Physical Support 18 - 64,Transfer Payments,Personal Budget - Direct Payments - Domiciliary Care,REDACTED PERSONAL DATA,SN25,16/02/2024,171.20
127828234,Early Help,Early Intervention & Prevention,On Trak Youth Counselling Service,3rd Party Payments,Contract Payments,REDACTED PERSONAL DATA,SN2 ,28/02/2024,630.00
123534235,HRA Overheads,Supervision & Management,Admin / Management General,Premises Costs,Insurance - Premises,AON UK LIMITED,EC3V,02/02/2024,"2,431.54"
123959233,Supported Employment,Housing Services,Community Meals,Supplies and Services,Food,APETITO LIMITED,BA14,07/02/2024,886.76
126956233,Supported Employment,Housing Services,Community Meals,Supplies and Services,Food,APETITO LIMITED,BA14,26/02/2024,613.40
126500233,Supported Employment,Housing Services,Community Meals,Supplies and Services,Food,APETITO LIMITED,BA14,23/02/2024,699.92
126499233,Supported Employment,Housing Services,Community Meals,Supplies and Services,Food,APETITO LIMITED,BA14,23/02/2024,696.59
126645234,Responsive Repairs,Repairs,Responsive Repairs,3rd Party Payments,Contract Payments,APEX SCAFFOLDING SERVICES,SN2 ,23/02/2024,585.00
126645233,Responsive Repairs,Repairs,Responsive Repairs,3rd Party Payments,Contract Payments,APEX SCAFFOLDING SERVICES,SN2 ,23/02/2024,"1,104.50"
123427253,Responsive Repairs,Repairs,Responsive Repairs,3rd Party Payments,Contract Payments,APEX SCAFFOLDING SERVICES,SN2 ,02/02/2024,576.00
126645237,Responsive Repairs,Repairs,Responsive Repairs,3rd Party Payments,Contract Payments,APEX SCAFFOLDING SERVICES,SN2 ,23/02/2024,425.00
126645239,Responsive Repairs,Repairs,Responsive Repairs,3rd Party Payments,Contract Payments,APEX SCAFFOLDING SERVICES,SN2 ,23/02/2024,600.00
126645243,Responsive Repairs,Repairs,Responsive Repairs,3rd Party Payments,Contract Payments,APEX SCAFFOLDING SERVICES,SN2 ,23/02/2024,595.00
125935233,,,Balance Sheet,Balance Sheet & Recharge,Resources Recharges,APOGEE CORPORATION LIMITED,ME16,21/02/2024,"13,509.19"
125001234,,,Balance Sheet,Balance Sheet & Recharge,Resources Recharges,APOGEE CORPORATION LIMITED,ME16,14/02/2024,"2,675.31"
126538233,,,Balance Sheet,Balance Sheet & Recharge,Resources Recharges,APOGEE CORPORATION LIMITED,ME16,23/02/2024,"6,098.35"
125001235,,,Balance Sheet,Balance Sheet & Recharge,Resources Recharges,APOGEE CORPORATION LIMITED,ME16,14/02/2024,"13,072.46"
124518272,Learning Disabilities,Adults,Learning Disability 18 - 64,3rd Party Payments,Residential Care,APPLEFORD LTD T/A DANESWOOD,BS25,09/02/2024,"22,008.12"
124518272,Learning Disabilities,Adults,Learning Disability 18 - 64,Income,Client Contribution - Residential,APPLEFORD LTD T/A DANESWOOD,BS25,09/02/2024,-438.80
125002234,Streetsmart,Streetsmart,Waterside Fleet Workshops,Transport Costs,Repairs & Maintenance - Vehicles,APROLIS UK LTD T/A IMPACT HANDLING,SN12,14/02/2024,733.17
125892233,Adults - Staffing and Supporting People,Adults,Blue Badges,Supplies and Services,Materials,APS GROUP,SK3 ,21/02/2024,"1,429.68"
125774233,High Needs Block,Dedicated Schools Grant (DSG),SEN Resourcing Assessment Panel,3rd Party Payments,Top up funding - Maintained providers Pre 16,REDACTED PERSONAL DATA,SN2 ,21/02/2024,"7,980.00"
125766233,Early Years Block,Dedicated Schools Grant (DSG),Free Nursery Education Commissioning - three & four  year olds,3rd Party Payments,Contracts - Child Care,REDACTED PERSONAL DATA,SN2 ,21/02/2024,"7,980.00"
124005233,Social Care,Children & Families,Children's Resource and Home Finding Team,3rd Party Payments,Residential Care,AREA CAMDEN LTD,N8 0,07/02/2024,"23,715.00"
126600233,Human Resources and Organisational Development,"People, Culture and Organisational Resilience",Pay & Reward,Employees,Temporary / Agency - by Accounts Payable,ARGONAUT MANAGEMENT SERVICES LIMITED,N11 ,23/02/2024,"6,600.00"
124518323,Memory & Cognition,Adults,Support for Memory and Cognition 65 and over,3rd Party Payments,Nursing Care,ARIA HEALTHCARE GROUP LTD,CO4 ,09/02/2024,"3,353.40"
124518323,Physical Support,Adults,Physical Support 65 and over,3rd Party Payments,Nursing Care,ARIA HEALTHCARE GROUP LTD,CO4 ,09/02/2024,"5,000.00"
124518323,Physical Support,Adults,Physical Support 65 and over,3rd Party Payments,Residential Care,ARIA HEALTHCARE GROUP LTD,CO4 ,09/02/2024,"3,988.00"
124518324,Mental Health,Adults,Mental Health 65 and over,3rd Party Payments,Nursing Care,ARIA HEALTHCARE GROUP LTD,CO4 ,09/02/2024,"6,000.00"
124518323,Physical Support,Adults,Physical Support 65 and over,Income,Client Contribution - Nursing,ARIA HEALTHCARE GROUP LTD,CO4 ,09/02/2024,-878.00
127588233,School Transport,"Education, Inclusion and Skills",Special Educational Needs Transport,Transport Costs,Home to School Transport,REDACTED PERSONAL DATA,SN5 ,28/02/2024,574.20
126365233,Lydiard Park,Culture & Heritage,Lydiard : Hotel Operations,Supplies and Services,Liquid,ARKELLS BREWERY LTD,SN2 ,23/02/2024,"1,129.44"
126468233,Lydiard Park,Culture & Heritage,Lydiard : Hotel Operations,Supplies and Services,Liquid,ARKELLS BREWERY LTD,SN2 ,23/02/2024,"1,933.70"
123432233,Lydiard Park,Culture & Heritage,Lydiard : Hotel Operations,Supplies and Services,Liquid,ARKELLS BREWERY LTD,SN2 ,02/02/2024,523.06
125002237,Streetsmart,Streetsmart,Waterside Fleet Hires,Transport Costs,Vehicle Hire / Contract,ARNOLD PLANT HIRE LIMITED,SK6 ,14/02/2024,"1,817.00"
125002238,Streetsmart,Streetsmart,Waterside Fleet Hires,Transport Costs,Vehicle Hire / Contract,ARNOLD PLANT HIRE LIMITED,SK6 ,14/02/2024,"5,290.00"
125002236,Streetsmart,Streetsmart,Waterside Fleet Hires,Transport Costs,Vehicle Hire / Contract,ARNOLD PLANT HIRE LIMITED,SK6 ,14/02/2024,"1,219.00"
125002235,Streetsmart,Streetsmart,Waterside Fleet Hires,Transport Costs,Vehicle Hire / Contract,ARNOLD PLANT HIRE LIMITED,SK6 ,14/02/2024,"1,610.00"
126534233,Insurance Team,Finance,Insurance,Premises Costs,Insurance - Premises,ARTHUR J GALLAGHER (UK) LTD T/A GALLAGHER,SN1 ,23/02/2024,"27,959.52"
126536233,Insurance Team,Finance,Insurance,Premises Costs,Insurance - Premises,ARTHUR J GALLAGHER (UK) LTD T/A GALLAGHER,SN1 ,23/02/2024,"10,690.00"
124518321,Mental Health,Adults,Mental Health 65 and over,3rd Party Payments,Residential Care,ARTI CARE HOMES (GLOUCESTER) LIMITED,WD7 ,09/02/2024,"4,800.00"
124518273,Mental Health,Adults,Mental Health 18-64,3rd Party Payments,Residential Care,ASH VIEW HOUSE,BS15,09/02/2024,"7,993.72"
124518273,Mental Health,Adults,Mental Health 18-64,Income,Client Contribution - Residential,ASH VIEW HOUSE,BS15,09/02/2024,-418.80
124505233,Physical Support,Adults,Physical Support 65 and over,Income,Client Contribution - Residential,ASHBURY LODGE,SN3 ,09/02/2024,"-1,308.16"
124505233,Physical Support,Adults,Physical Support 65 and over,Income,Client Contribution - Residential,ASHBURY LODGE,SN3 ,09/02/2024,-319.80
124505233,Mental Health,Adults,Mental Health 65 and over,Income,Client Contribution - Residential,ASHBURY LODGE,SN3 ,09/02/2024,-691.20
124505233,Mental Health,Adults,Mental Health 65 and over,3rd Party Payments,Residential Care,ASHBURY LODGE,SN3 ,09/02/2024,"2,867.32"
124505233,Mental Health,Adults,Mental Health 65 and over,3rd Party Payments,Residential Care,ASHBURY LODGE,SN3 ,09/02/2024,"2,988.96"
124505233,Physical Support,Adults,Physical Support 65 and over,Income,Client Contribution - Residential,ASHBURY LODGE,SN3 ,09/02/2024,-683.20
124505233,Mental Health,Adults,Mental Health 65 and over,Income,Client Contribution - Residential,ASHBURY LODGE,SN3 ,09/02/2024,-881.64
124505233,Physical Support,Adults,Physical Support 65 and over,Income,Client Contribution - Residential,ASHBURY LODGE,SN3 ,09/02/2024,-730.76
124505233,Physical Support,Adults,Physical Support 65 and over,Income,Client Contribution - Residential,ASHBURY LODGE,SN3 ,09/02/2024,-462.56
124505233,Physical Support,Adults,Physical Support 65 and over,3rd Party Payments,Residential Care,ASHBURY LODGE,SN3 ,09/02/2024,"2,867.32"
124505233,Physical Support,Adults,Physical Support 65 and over,Income,Client Contribution - Residential,ASHBURY LODGE,SN3 ,09/02/2024,-886.60
124505233,Physical Support,Adults,Physical Support 65 and over,Income,Client Contribution - Residential,ASHBURY LODGE,SN3 ,09/02/2024,-657.68
124505233,Physical Support,Adults,Physical Support 65 and over,Income,Client Contribution - Residential,ASHBURY LODGE,SN3 ,09/02/2024,"-1,125.72"
125618233,Memory & Cognition,Adults,Support for Memory and Cognition 65 and over,3rd Party Payments,Residential Care,ASHBURY LODGE,SN3 ,19/02/2024,"2,457.70"
125618233,Memory & Cognition,Adults,Support for Memory and Cognition 65 and over,Income,Client Contribution - Residential,ASHBURY LODGE,SN3 ,19/02/2024,-543.08
124505233,Physical Support,Adults,Physical Support 65 and over,3rd Party Payments,Residential Care,ASHBURY LODGE,SN3 ,09/02/2024,"4,032.00"
124505233,Physical Support,Adults,Physical Support 65 and over,Income,Client Contribution - Residential,ASHBURY LODGE,SN3 ,09/02/2024,-764.80
124505233,Physical Support,Adults,Physical Support 65 and over,Income,Client Contribution - Residential,ASHBURY LODGE,SN3 ,09/02/2024,-691.20
125618233,Memory & Cognition,Adults,Support for Memory and Cognition 65 and over,Income,Client Contribution - Residential,ASHBURY LODGE,SN3 ,19/02/2024,-98.74
124505233,Mental Health,Adults,Mental Health 65 and over,3rd Party Payments,Residential Care,ASHBURY LODGE,SN3 ,09/02/2024,"4,000.00"
124505233,Physical Support,Adults,Physical Support 65 and over,Income,Client Contribution - Residential,ASHBURY LODGE,SN3 ,09/02/2024,-801.80
125618233,Memory & Cognition,Adults,Support for Memory and Cognition 65 and over,3rd Party Payments,Residential Care,ASHBURY LODGE,SN3 ,19/02/2024,409.62
124504233,Physical Support,Adults,Physical Support 65 and over,3rd Party Payments,Nursing Care,ASHGROVE HOUSE NURSING HOME,SN5 ,09/02/2024,"6,080.00"
124504233,Physical Support,Adults,Physical Support 65 and over,Income,Client Contribution - Nursing,ASHGROVE HOUSE NURSING HOME,SN5 ,09/02/2024,-655.04
125598274,Physical Support,Adults,Physical Support 18 - 64,Transfer Payments,Personal Budget - Direct Payments - Other,REDACTED PERSONAL DATA,SN25,16/02/2024,24.00
125598274,Physical Support,Adults,Physical Support 18 - 64,Transfer Payments,Personal Budget - Direct Payments - Domiciliary Care,REDACTED PERSONAL DATA,SN25,16/02/2024,"1,519.56"
125598274,Physical Support,Adults,Physical Support 18 - 64,Transfer Payments,Personal Budget - Direct Payments - Domiciliary Care,REDACTED PERSONAL DATA,SN25,16/02/2024,12.24
125620233,Libraries,"Education, Inclusion and Skills",Library Delivery,Supplies and Services,Materials,ASKEWS AND HOLTS LIBRARY SERVICES LIMITED,PR1 ,19/02/2024,"1,704.77"
126624233,Libraries,"Education, Inclusion and Skills",Library Delivery,Supplies and Services,Materials,ASKEWS AND HOLTS LIBRARY SERVICES LIMITED,PR1 ,23/02/2024,844.16
124520233,Libraries,"Education, Inclusion and Skills",Library Delivery,Supplies and Services,Materials,ASKEWS AND HOLTS LIBRARY SERVICES LIMITED,PR1 ,09/02/2024,556.87
125166233,Libraries,"Education, Inclusion and Skills",Library Delivery,Supplies and Services,Materials,ASKEWS AND HOLTS LIBRARY SERVICES LIMITED,PR1 ,14/02/2024,"4,070.00"
124518247,Learning Disabilities,Adults,Learning Disability 18 - 64,Income,Client Contribution - Residential,ASPECTS & MILESTONES TRUST,BS16,09/02/2024,-463.20
124518247,Learning Disabilities,Adults,Learning Disability 18 - 64,3rd Party Payments,Residential Care,ASPECTS & MILESTONES TRUST,BS16,09/02/2024,"6,964.88"
124518280,Learning Disabilities,Adults,Learning Disability 18 - 64,Income,Client Contribution - Residential,ASPECTS 2 LTD,B70 ,09/02/2024,-438.80
124518280,Learning Disabilities,Adults,Learning Disability 18 - 64,3rd Party Payments,Residential Care,ASPECTS 2 LTD,B70 ,09/02/2024,"9,278.64"
124518295,Learning Disabilities,Adults,Learning Disability 18 - 64,3rd Party Payments,Residential Care,ASTON CARE LIMITED,RG30,09/02/2024,"8,008.00"
124518295,Learning Disabilities,Adults,Learning Disability 18 - 64,Income,Client Contribution - Residential,ASTON CARE LIMITED,RG30,09/02/2024,-655.44
124518295,Learning Disabilities,Adults,Learning Disability 18 - 64,Income,Client Contribution - Residential,ASTON CARE LIMITED,RG30,09/02/2024,-410.80
124518296,Learning Disabilities,Adults,Learning Disability 18 - 64,Income,Client Contribution - Residential,ASTON CARE LIMITED,RG30,09/02/2024,-788.80
124518295,Learning Disabilities,Adults,Learning Disability 18 - 64,Income,Client Contribution - Residential,ASTON CARE LIMITED,RG30,09/02/2024,-587.40
124518295,Learning Disabilities,Adults,Learning Disability 18 - 64,Income,Client Contribution - Residential,ASTON CARE LIMITED,RG30,09/02/2024,-676.40
124518296,Learning Disabilities,Adults,Learning Disability 18 - 64,3rd Party Payments,Residential Care,ASTON CARE LIMITED,RG30,09/02/2024,"9,733.80"
124518295,Learning Disabilities,Adults,Learning Disability 18 - 64,3rd Party Payments,Residential Care,ASTON CARE LIMITED,RG30,09/02/2024,"8,288.00"
124518295,Learning Disabilities,Adults,Learning Disability 18 - 64,3rd Party Payments,Residential Care,ASTON CARE LIMITED,RG30,09/02/2024,"7,288.00"
125554233,Highways & Transport,Highways & Transport,Project Delivery,Supplies and Services,Services,ATKINSREALIS UK LIMITED,KT18,16/02/2024,"1,647.79"
124066233,Highways & Transport,Highways & Transport,Project Delivery,Supplies and Services,Services,ATKINSREALIS UK LIMITED,KT18,07/02/2024,"10,799.92"
125741233,Highways & Transport,Highways & Transport,Project Delivery,Supplies and Services,Services,ATKINSREALIS UK LIMITED,KT18,19/02/2024,"8,371.77"
124002233,Social Care,Children & Families,Children's Resource and Home Finding Team,3rd Party Payments,Residential Care,A-TRIANGLE CARE LIMITED,FY5 ,07/02/2024,"26,549.29"
126582234,Social Care,Children & Families,Practice Development,Employees,Temporary / Agency - by Accounts Payable,ATTENTI LTD,EC2R,23/02/2024,"1,416.00"
126585233,Social Care,Children & Families,Practice Development,Employees,Temporary / Agency - by Accounts Payable,ATTENTI LTD,EC2R,23/02/2024,"1,920.00"
126546233,Senior Management Team,Children & Families,Family Safeguarding Model,Employees,Temporary / Agency - by Accounts Payable,ATTENTI LTD,EC2R,23/02/2024,"2,360.00"
126750233,Senior Management Team,Children & Families,Family Safeguarding Model,Employees,Temporary / Agency - by Accounts Payable,ATTENTI LTD,EC2R,23/02/2024,"2,360.00"
127166233,Senior Management Team,Children & Families,Senior Management Team - Staffing,Employees,Temporary / Agency - by Accounts Payable,ATTENTI LTD,EC2R,26/02/2024,"25,375.81"
125426233,Senior Management Team,Children & Families,Senior Management Team - Staffing,Employees,Temporary / Agency - by Accounts Payable,ATTENTI LTD,EC2R,16/02/2024,"25,375.81"
126555233,Social Care,Children & Families,CP & CIN Social Work - South,Transport Costs,Mileage Allowance,ATTENTI LTD,EC2R,23/02/2024,112.50
126583233,Social Care,Children & Families,Practice Development,Employees,Temporary / Agency - by Accounts Payable,ATTENTI LTD,EC2R,23/02/2024,"2,400.00"
126922233,Social Care,Children & Families,CP & CIN Social Work - South,Employees,Temporary / Agency - by Accounts Payable,ATTENTI LTD,EC2R,26/02/2024,"2,183.00"
126550233,Safeguarding and Quality Assurance,Children & Families,Quality Assurance Team,Employees,Temporary / Agency - by Accounts Payable,ATTENTI LTD,EC2R,23/02/2024,531.00
126575233,Senior Management Team,Children & Families,Senior Management Team - Staffing,Employees,Temporary / Agency - by Accounts Payable,ATTENTI LTD,EC2R,23/02/2024,"3,980.00"
126572234,Senior Management Team,Children & Families,Senior Management Team - Staffing,Employees,Temporary / Agency - by Accounts Payable,ATTENTI LTD,EC2R,23/02/2024,"25,375.81"
126559233,Senior Management Team,Children & Families,Senior Management Team - Staffing,Employees,Temporary / Agency - by Accounts Payable,ATTENTI LTD,EC2R,23/02/2024,"25,375.81"
126745233,Safeguarding and Quality Assurance,Children & Families,Quality Assurance Team,Employees,Temporary / Agency - by Accounts Payable,ATTENTI LTD,EC2R,23/02/2024,944.00
126567233,Senior Management Team,Children & Families,Senior Management Team - Staffing,Employees,Temporary / Agency - by Accounts Payable,ATTENTI LTD,EC2R,23/02/2024,"2,832.00"
125812233,Senior Management Team,Children & Families,Senior Management Team - Staffing,Employees,Temporary / Agency - by Accounts Payable,ATTENTI LTD,EC2R,21/02/2024,"3,980.00"
123854233,Senior Management Team,Children & Families,Senior Management Team - Staffing,Employees,Temporary / Agency - by Accounts Payable,ATTENTI LTD,EC2R,05/02/2024,"3,980.00"
125427233,Senior Management Team,Children & Families,Senior Management Team - Staffing,Employees,Temporary / Agency - by Accounts Payable,ATTENTI LTD,EC2R,16/02/2024,"3,980.00"
126555233,Social Care,Children & Families,CP & CIN Social Work - South,Supplies and Services,Subsistence,ATTENTI LTD,EC2R,23/02/2024,437.70
126584233,Social Care,Children & Families,Practice Development,Employees,Temporary / Agency - by Accounts Payable,ATTENTI LTD,EC2R,23/02/2024,"1,416.00"
127221233,Senior Management Team,Children & Families,Senior Management Team - Staffing,Employees,Temporary / Agency - by Accounts Payable,ATTENTI LTD,EC2R,26/02/2024,"3,980.00"
127165233,Senior Management Team,Children & Families,Senior Management Team - Staffing,Employees,Temporary / Agency - by Accounts Payable,ATTENTI LTD,EC2R,26/02/2024,"25,375.81"
126565233,Senior Management Team,Children & Families,Senior Management Team - Staffing,Employees,Temporary / Agency - by Accounts Payable,ATTENTI LTD,EC2R,23/02/2024,"3,980.00"
126548233,Senior Management Team,Children & Families,Family Safeguarding Model,Employees,Temporary / Agency - by Accounts Payable,ATTENTI LTD,EC2R,23/02/2024,944.00
126563233,Senior Management Team,Children & Families,Senior Management Team - Staffing,Employees,Temporary / Agency - by Accounts Payable,ATTENTI LTD,EC2R,23/02/2024,"2,832.00"
126748233,Safeguarding and Quality Assurance,Children & Families,Quality Assurance Team,Employees,Temporary / Agency - by Accounts Payable,ATTENTI LTD,EC2R,23/02/2024,"1,416.00"
126542233,Senior Management Team,Children & Families,Family Safeguarding Model,Employees,Temporary / Agency - by Accounts Payable,ATTENTI LTD,EC2R,23/02/2024,"2,950.00"
126570234,Senior Management Team,Children & Families,Senior Management Team - Staffing,Employees,Temporary / Agency - by Accounts Payable,ATTENTI LTD,EC2R,23/02/2024,"25,375.81"
127457233,Safeguarding and Quality Assurance,Children & Families,Quality Assurance Team,Employees,Temporary / Agency - by Accounts Payable,ATTENTI LTD,EC2R,26/02/2024,"2,832.00"
124518313,Mental Health,Adults,Mental Health 18-64,3rd Party Payments,Nursing Care,AURA CARE LIVING CIRENCESTER LTD,GL7 ,09/02/2024,"12,606.00"
124518313,Physical Support,Adults,Physical Support 65 and over,Income,Client Contribution - Residential,AURA CARE LIVING CIRENCESTER LTD,GL7 ,09/02/2024,"-1,021.48"
124518313,Physical Support,Adults,Physical Support 65 and over,Income,Client Contribution - Nursing,AURA CARE LIVING CIRENCESTER LTD,GL7 ,09/02/2024,-735.64
124518313,Physical Support,Adults,Physical Support 65 and over,Income,Client Contribution - Nursing,AURA CARE LIVING CIRENCESTER LTD,GL7 ,09/02/2024,-691.20
124518313,Mental Health,Adults,Mental Health 65 and over,3rd Party Payments,Residential Care,AURA CARE LIVING CIRENCESTER LTD,GL7 ,09/02/2024,"6,104.00"
124518313,Physical Support,Adults,Physical Support 65 and over,3rd Party Payments,Residential Care,AURA CARE LIVING CIRENCESTER LTD,GL7 ,09/02/2024,"4,142.00"
124518313,Physical Support,Adults,Physical Support 65 and over,3rd Party Payments,Nursing Care,AURA CARE LIVING CIRENCESTER LTD,GL7 ,09/02/2024,"4,796.00"
124518313,Physical Support,Adults,Physical Support 65 and over,3rd Party Payments,Nursing Care,AURA CARE LIVING CIRENCESTER LTD,GL7 ,09/02/2024,"5,886.00"
124518313,Mental Health,Adults,Mental Health 18-64,3rd Party Payments,Residential Care,AURA CARE LIVING CIRENCESTER LTD,GL7 ,09/02/2024,"6,400.00"
124518313,Physical Support,Adults,Physical Support 65 and over,Income,Client Contribution - Nursing,AURA CARE LIVING CIRENCESTER LTD,GL7 ,09/02/2024,-608.00
124518313,Mental Health,Adults,Mental Health 18-64,3rd Party Payments,Residential Care,AURA CARE LIVING CIRENCESTER LTD,GL7 ,09/02/2024,"11,734.00"
124518328,Learning Disabilities,Adults,Learning Disability 18 - 64,3rd Party Payments,Residential Care,AUTISM UNLIMITED LTD,BH23,09/02/2024,"8,268.04"
124518328,Learning Disabilities,Adults,Learning Disability 18 - 64,Income,Client Contribution - Residential,AUTISM UNLIMITED LTD,BH23,09/02/2024,-619.20
124518300,Learning Disabilities,Adults,Learning Disability 18 - 64,3rd Party Payments,Residential Care,AUTONOMY LIFE LIMITED,SN12,09/02/2024,"12,346.00"
124518300,Learning Disabilities,Adults,Learning Disability 18 - 64,Income,Client Contribution - Residential,AUTONOMY LIFE LIMITED,SN12,09/02/2024,-628.56
125941234,Highways Schemes,Strategic Planning and Highways,John Street car park redevelopment (Parade),Capital,Professional Fees,AVISON YOUNG (UK) LTD,B1 2,21/02/2024,"2,400.00"
125010233,Social Care,Children & Families,CP & CIN Social Work - North,Employees,Temporary / Agency - by Accounts Payable,AVON & WILTSHIRE MENTAL HEALTH PARTNERSHIP NHS TRUST,BA1 ,14/02/2024,"17,508.22"
125011233,Social Care,Children & Families,CP & CIN Social Work - North,Employees,Temporary / Agency - by Accounts Payable,AVON & WILTSHIRE MENTAL HEALTH PARTNERSHIP NHS TRUST,BA1 ,14/02/2024,"7,056.58"
124513233,Learning Disabilities,Adults,Learning Disability 18 - 64,3rd Party Payments,Residential Care,AVON AUTISTIC FOUNDATION LTD,BS11,09/02/2024,"5,482.04"
124513233,Learning Disabilities,Adults,Learning Disability 18 - 64,Income,Client Contribution - Residential,AVON AUTISTIC FOUNDATION LTD,BS11,09/02/2024,-438.80
124514233,Learning Disabilities,Adults,Learning Disability 18 - 64,3rd Party Payments,Residential Care,AVON AUTISTIC FOUNDATION LTD,BS11,09/02/2024,"7,668.32"
124514233,Learning Disabilities,Adults,Learning Disability 18 - 64,Income,Client Contribution - Residential,AVON AUTISTIC FOUNDATION LTD,BS11,09/02/2024,-483.20
126202233,Homelessness and Travellers,Housing Services,Private Sector Landlords,Transfer Payments,Payment of Costs,AVONPARK PROPERTIES LTD,SN3 ,23/02/2024,615.00
126286233,Homelessness and Travellers,Housing Services,Private Sector Landlords,Transfer Payments,Payment of Costs,AVONPARK PROPERTIES LTD,SN3 ,23/02/2024,632.50
123563233,Landlord Services,Supervision & Management,Estate Management Team,Premises Costs,Rents,AWH SOLICITORS,BB1 ,02/02/2024,"1,327.40"
126467233,Organisational Resilience,"People, Culture and Organisational Resilience",Health & Safety,Supplies and Services,Accreditations,BACK CARE SOLUTIONS LTD,PR5 ,23/02/2024,"1,408.00"
125939233,Organisational Resilience,"People, Culture and Organisational Resilience",Health & Safety,Supplies and Services,Accreditations,BACK CARE SOLUTIONS LTD,PR5 ,23/02/2024,-821.50
126978233,Town Centre,"Economy, Growth and Place","No 7, 9 & 11 Carriage works @ Railway Village",Capital,Consultants,BAILEY PARTNERSHIP (CONSULTANTS) LLP,PL1 ,26/02/2024,600.00
125598579,Physical Support,Adults,Physical Support 65 and over,Transfer Payments,Personal Budget - Direct Payments - Domiciliary Care,REDACTED PERSONAL DATA,2969,16/02/2024,11.04
125598579,Physical Support,Adults,Physical Support 65 and over,Income,Client Contribution - Personal Budget - DP,REDACTED PERSONAL DATA,2969,16/02/2024,-324.24
125598579,Physical Support,Adults,Physical Support 65 and over,Transfer Payments,Personal Budget - Direct Payments - Domiciliary Care,REDACTED PERSONAL DATA,2969,16/02/2024,"1,428.84"
126650233,Routes to Employment,"Education, Inclusion and Skills",Multiply,Supplies and Services,Grants to Organisations,BARE GLAZED STUDIO,SN2 ,23/02/2024,"4,750.00"
124784233,Early Years Block,Dedicated Schools Grant (DSG),Free Nursery Education Commissioning - three & four  year olds,3rd Party Payments,Contracts - Child Care,BARN OWL PRE-SCHOOL,SN25,14/02/2024,"11,871.09"
126628233,School Transport,"Education, Inclusion and Skills",Mainstream School Transport,Transport Costs,Home to School Transport,BARNES COACHES LTD,SN3 ,23/02/2024,"10,458.00"
126628233,School Transport,"Education, Inclusion and Skills",Mainstream School Transport,Employees,Temporary / Agency - by Accounts Payable,BARNES COACHES LTD,SN3 ,23/02/2024,747.20
123967233,Non-HRA Vehicles,Transport,Vehicle & Plant replacement strategy,Capital,Contractor Payments,BARTEC MUNICIPAL TECHNOLOGIES LTD,S75 ,07/02/2024,"1,200.00"
123970233,Non-HRA Vehicles,Transport,Vehicle & Plant replacement strategy,Capital,Contractor Payments,BARTEC MUNICIPAL TECHNOLOGIES LTD,S75 ,07/02/2024,"4,800.00"
123969233,Non-HRA Vehicles,Transport,Vehicle & Plant replacement strategy,Capital,Contractor Payments,BARTEC MUNICIPAL TECHNOLOGIES LTD,S75 ,07/02/2024,540.00
123971233,Non-HRA Vehicles,Transport,Vehicle & Plant replacement strategy,Capital,Contractor Payments,BARTEC MUNICIPAL TECHNOLOGIES LTD,S75 ,07/02/2024,434.00
123968233,Non-HRA Vehicles,Transport,Vehicle & Plant replacement strategy,Capital,Contractor Payments,BARTEC MUNICIPAL TECHNOLOGIES LTD,S75 ,07/02/2024,"4,000.00"
124733233,Public Health,Public Health,Sexual Health & Health Protection Budget,3rd Party Payments,Contract Payments,BARTS HEALTH NHS TRUST,E14 ,12/02/2024,543.17
125947234,Communications & Engagement,Communications & Engagement,"Policy, Campaigns and Communications",Supplies and Services,Materials,BAY MEDIA LTD,SE1 ,21/02/2024,"1,250.00"
125946233,Communications & Engagement,Communications & Engagement,"Policy, Campaigns and Communications",Supplies and Services,Materials,BAY MEDIA LTD,SE1 ,21/02/2024,"1,074.60"
125997233,Supported Housing,Special Services,Supported Housing Management,Supplies and Services,Equipment,BED FACTORY SWINDON T/A TBF (UK) LTD,SN3 ,21/02/2024,"2,244.95"
127497233,DSG Other Funding,Dedicated Schools Grant (DSG),LAC pupil premium,Supplies and Services,Services,BEECHCROFT INFANT SCHOOL,SN2 ,28/02/2024,600.00
124754245,DSG Other Funding,Dedicated Schools Grant (DSG),DFE Additional Grants,3rd Party Payments,Payment of Pupil Premium to school,BEECHCROFT INFANT SCHOOL,SN2 ,14/02/2024,"8,347.00"
125063277,High Needs Block,Dedicated Schools Grant (DSG),SEN Resourcing Assessment Panel,3rd Party Payments,Top up funding - Maintained providers Pre 16,BEECHCROFT INFANT SCHOOL,SN2 ,14/02/2024,"5,354.17"
124749233,Schools - Primary,Dedicated Schools Grant (DSG),Primary School Budgets,3rd Party Payments,Mainstream Delegated Funding,BEECHCROFT INFANT SCHOOL,SN2 ,14/02/2024,"96,891.00"
124518271,Learning Disabilities,Adults,Learning Disability 18 - 64,3rd Party Payments,Residential Care,BEECHWOOD COURT LTD,CF10,09/02/2024,"20,830.56"
124518271,Learning Disabilities,Adults,Learning Disability 18 - 64,3rd Party Payments,Residential Care,BEECHWOOD COURT LTD,CF10,09/02/2024,"29,947.84"
124518271,Learning Disabilities,Adults,Learning Disability 18 - 64,Income,Client Contribution - Residential,BEECHWOOD COURT LTD,CF10,09/02/2024,-322.56
127759233,Homelessness and Travellers,Housing Services,Bed and Breakfast Accommodation,Transfer Payments,Payment of Costs,BELLE MASION LIMITED T/A PARAMOUNT APARTMENTS BY STAYSERVE,SN5 ,28/02/2024,"1,950.00"
126993233,Homelessness and Travellers,Housing Services,Bed and Breakfast Accommodation,Transfer Payments,Payment of Costs,BELLE MASION LIMITED T/A PARAMOUNT APARTMENTS BY STAYSERVE,SN5 ,26/02/2024,"1,950.00"
127758233,Homelessness and Travellers,Housing Services,Bed and Breakfast Accommodation,Transfer Payments,Payment of Costs,BELLE MASION LIMITED T/A PARAMOUNT APARTMENTS BY STAYSERVE,SN5 ,28/02/2024,"1,950.00"
126994233,Homelessness and Travellers,Housing Services,Bed and Breakfast Accommodation,Transfer Payments,Payment of Costs,BELLE MASION LIMITED T/A PARAMOUNT APARTMENTS BY STAYSERVE,SN5 ,26/02/2024,"1,950.00"
126995233,Homelessness and Travellers,Housing Services,Bed and Breakfast Accommodation,Transfer Payments,Payment of Costs,BELLE MASION LIMITED T/A PARAMOUNT APARTMENTS BY STAYSERVE,SN5 ,26/02/2024,"1,950.00"
124007233,Social Care,Children & Families,Children's Resource and Home Finding Team,3rd Party Payments,Residential Care,BENJAMIN UK LIMITED,LU7 ,07/02/2024,"16,550.59"
125686234,Local Transport Plan Funded,Strategic Planning and Highways,Local Safety Schemes,Capital,Contractor Payments,BERNARD GEOMATICS LTD,SN2 ,19/02/2024,"3,315.00"
123447233,Lydiard Park,Culture & Heritage,Lydiard : Hotel Operations,Supplies and Services,Food,BFS GROUP LTD T/A BIDFOOD,NP16,02/02/2024,139.93
123447233,Lydiard Park,Culture & Heritage,Lydiard : Hotel Operations,Supplies and Services,Materials,BFS GROUP LTD T/A BIDFOOD,NP16,02/02/2024,413.74
126015233,Libraries,"Education, Inclusion and Skills",Central,Premises Costs,Waste,BIFFA WASTE SERVICES LTD,HP12,21/02/2024,419.52
124977233,Sheltered Accomodation,Special Services,Sheltered Housing Management General,Premises Costs,Contract Cleaning,BIOVATION LTD,SN1 ,14/02/2024,819.73
124754238,DSG Other Funding,Dedicated Schools Grant (DSG),DFE Additional Grants,3rd Party Payments,Payment of Pupil Premium to school,BISHOPSTONE C E PRIMARY SCHOOL,SN6 ,14/02/2024,"1,619.00"
124744233,Schools - Primary,Dedicated Schools Grant (DSG),Primary School Budgets,3rd Party Payments,Mainstream Delegated Funding,BISHOPSTONE C E PRIMARY SCHOOL,SN6 ,14/02/2024,"27,037.00"
Corporate Card Transaction,Homelessness and Travellers,Housing Services,Bed and Breakfast Accommodation,Transfer Payments,Payment of Costs,Bkg*hotel At Booking.C,,21/02/2024,855.88
Corporate Card Transaction,Homelessness and Travellers,Housing Services,Bed and Breakfast Accommodation,Transfer Payments,Payment of Costs,Bkg*hotel At Booking.C,,05/02/2024,"1,314.00"
Corporate Card Transaction,Homelessness and Travellers,Housing Services,Bed and Breakfast Accommodation,Transfer Payments,Payment of Costs,Bkg*hotel At Booking.C,,05/02/2024,917.86
Corporate Card Transaction,Adults - Staffing and Supporting People,Adults,ASC Leadership Team,Supplies and Services,Equipment,Bkg*hotel At Booking.C,,09/02/2024,"1,408.00"
Corporate Card Transaction,Homelessness and Travellers,Housing Services,Bed and Breakfast Accommodation,Transfer Payments,Payment of Costs,Bkg*hotel At Booking.C,,31/01/2024,690.00
Corporate Card Transaction,Adults - Staffing and Supporting People,Adults,ASC Leadership Team,Supplies and Services,Equipment,Bkg*hotel At Booking.C,,09/02/2024,"1,408.00"
Corporate Card Transaction,Homelessness and Travellers,Housing Services,Bed and Breakfast Accommodation,Transfer Payments,Payment of Costs,Bkg*hotel At Booking.C,,08/02/2024,545.93
Corporate Card Transaction,Homelessness and Travellers,Housing Services,Bed and Breakfast Accommodation,Transfer Payments,Payment of Costs,Bkg*hotel At Booking.C,,31/01/2024,565.00
124727233,Local Transport Plan Funded,Strategic Planning and Highways,Surface Water Management,Capital,Contractor Payments,BLACKHALL ENGINEERING LTD,HD6 ,12/02/2024,"6,232.72"
124726233,Local Transport Plan Funded,Strategic Planning and Highways,Surface Water Management,Capital,Contractor Payments,BLACKHALL ENGINEERING LTD,HD6 ,12/02/2024,"3,344.00"
124105233,Non-HRA Vehicles,Transport,Vehicle & Plant replacement strategy,Capital,Contractor Payments,BLAKEDALE LTD,PR7 ,07/02/2024,"9,770.00"
125953233,Landscaping & Open Space,Culture & Heritage & Art,Moredon Recreation - Multi Sports Hub,Capital,Contractor Payments,BLB KILMINSTER BEER LLP,SN1 ,21/02/2024,"8,210.00"
126980233,Homelessness and Travellers,Housing Services,Private Sector Landlords,Transfer Payments,Payment of Costs,BLOCK 3 STUDIO,SN1 ,26/02/2024,520.00
124253233,Homelessness and Travellers,Housing Services,Private Sector Landlords,Transfer Payments,Payment of Costs,BLOCK 3 STUDIO,SN1 ,09/02/2024,870.00
127536233,Homelessness and Travellers,Housing Services,Private Sector Landlords,Transfer Payments,Payment of Costs,BLOCK 3 STUDIO,SN1 ,28/02/2024,520.00
126647233,Homelessness and Travellers,Housing Services,Private Sector Landlords,Transfer Payments,Payment of Costs,BLOCK 3 STUDIO,SN1 ,23/02/2024,"1,000.00"
127485233,Social Care,Children & Families,Children's Resource and Home Finding Team,3rd Party Payments,Parent & Child Placements,BLUE SKY,HA1 ,28/02/2024,"-2,886.00"
127484233,Social Care,Children & Families,Children's Resource and Home Finding Team,3rd Party Payments,Independent Fostering Agency Placements,BLUE SKY,HA1 ,28/02/2024,"6,040.12"
127482233,Social Care,Children & Families,Children's Resource and Home Finding Team,3rd Party Payments,Independent Fostering Agency Placements,BLUE SKY,HA1 ,28/02/2024,"5,551.18"
127483233,Social Care,Children & Families,Children's Resource and Home Finding Team,3rd Party Payments,Independent Fostering Agency Placements,BLUE SKY,HA1 ,28/02/2024,"6,040.12"
123772233,Learning Disabilities,Adults,Learning Disability 18 - 64,3rd Party Payments,Personal Budget - Domiciliary care,BLUEBIRD CARE (SWINDON),SN25,05/02/2024,995.54
127735233,Physical Support,Adults,Physical Support 65 and over,3rd Party Payments,Personal Budget - Domiciliary care,BLUEBIRD CARE (SWINDON),SN25,28/02/2024,-242.38
123772233,Physical Support,Adults,Physical Support 65 and over,3rd Party Payments,Personal Budget - Domiciliary care,BLUEBIRD CARE (SWINDON),SN25,05/02/2024,"1,825.82"
127735233,Learning Disabilities,Adults,Learning Disability 18 - 64,3rd Party Payments,Personal Budget - Domiciliary care,BLUEBIRD CARE (SWINDON),SN25,28/02/2024,-465.66
127735233,Learning Disabilities,Adults,Learning Disability 18 - 64,3rd Party Payments,Personal Budget - Domiciliary care,BLUEBIRD CARE (SWINDON),SN25,28/02/2024,971.66
123772233,Learning Disabilities,Adults,Learning Disability 18 - 64,3rd Party Payments,Personal Budget - Domiciliary care,BLUEBIRD CARE (SWINDON),SN25,05/02/2024,-251.52
127735233,Physical Support,Adults,Physical Support 18 - 64,3rd Party Payments,Personal Budget - Domiciliary care,BLUEBIRD CARE (SWINDON),SN25,28/02/2024,"1,113.88"
123772233,Physical Support,Adults,Physical Support 18 - 64,3rd Party Payments,Personal Budget - Domiciliary care,BLUEBIRD CARE (SWINDON),SN25,05/02/2024,"1,121.84"
127735233,Learning Disabilities,Adults,Learning Disability 18 - 64,3rd Party Payments,Personal Budget - Domiciliary care,BLUEBIRD CARE (SWINDON),SN25,28/02/2024,-122.12
127735233,Learning Disabilities,Adults,Learning Disability 18 - 64,3rd Party Payments,Personal Budget - Domiciliary care,BLUEBIRD CARE (SWINDON),SN25,28/02/2024,-242.48
127735233,Learning Disabilities,Adults,Learning Disability 18 - 64,3rd Party Payments,Personal Budget - Domiciliary care,BLUEBIRD CARE (SWINDON),SN25,28/02/2024,"1,264.06"
123772233,Learning Disabilities,Adults,Learning Disability 18 - 64,3rd Party Payments,Personal Budget - Domiciliary care,BLUEBIRD CARE (SWINDON),SN25,05/02/2024,"1,279.98"
123772233,Learning Disabilities,Adults,Learning Disability 18 - 64,3rd Party Payments,Personal Budget - Domiciliary care,BLUEBIRD CARE (SWINDON),SN25,05/02/2024,"1,121.84"
123772233,Mental Health,Adults,Mental Health 18-64,3rd Party Payments,Personal Budget - Domiciliary care,BLUEBIRD CARE (SWINDON),SN25,05/02/2024,138.24
123772233,Mental Health,Adults,Mental Health 18-64,3rd Party Payments,Personal Budget - Domiciliary care,BLUEBIRD CARE (SWINDON),SN25,05/02/2024,23.68
123772233,Physical Support,Adults,Physical Support 18 - 64,3rd Party Payments,Personal Budget - Domiciliary care,BLUEBIRD CARE (SWINDON),SN25,05/02/2024,92.56
127735233,Physical Support,Adults,Physical Support 65 and over,3rd Party Payments,Personal Budget - Domiciliary care,BLUEBIRD CARE (SWINDON),SN25,28/02/2024,"1,805.92"
127735233,Physical Support,Adults,Physical Support 18 - 64,3rd Party Payments,Personal Budget - Domiciliary care,BLUEBIRD CARE (SWINDON),SN25,28/02/2024,-142.36
123772233,Learning Disabilities,Adults,Learning Disability 18 - 64,3rd Party Payments,Personal Budget - Domiciliary care,BLUEBIRD CARE (SWINDON),SN25,05/02/2024,86.32
123772233,Learning Disabilities,Adults,Learning Disability 18 - 64,3rd Party Payments,Personal Budget - Domiciliary care,BLUEBIRD CARE (SWINDON),SN25,05/02/2024,552.96
123772233,Learning Disabilities,Adults,Learning Disability 18 - 64,3rd Party Payments,Personal Budget - Domiciliary care,BLUEBIRD CARE (SWINDON),SN25,05/02/2024,-459.18
127735233,Learning Disabilities,Adults,Learning Disability 18 - 64,3rd Party Payments,Personal Budget - Domiciliary care,BLUEBIRD CARE (SWINDON),SN25,28/02/2024,"1,113.88"
127735233,Learning Disabilities,Adults,Learning Disability 18 - 64,3rd Party Payments,Personal Budget - Domiciliary care,BLUEBIRD CARE (SWINDON),SN25,28/02/2024,-171.10
123772233,Learning Disabilities,Adults,Learning Disability 18 - 64,3rd Party Payments,Personal Budget - Domiciliary care,BLUEBIRD CARE (SWINDON),SN25,05/02/2024,13.76
123772233,Physical Support,Adults,Physical Support 65 and over,3rd Party Payments,Personal Budget - Domiciliary care,BLUEBIRD CARE (SWINDON),SN25,05/02/2024,193.12
127735233,Learning Disabilities,Adults,Learning Disability 18 - 64,3rd Party Payments,Personal Budget - Domiciliary care,BLUEBIRD CARE (SWINDON),SN25,28/02/2024,829.44
127589233,Digital & Business Change,Digital & Business Change,IT Operations,Supplies and Services,MFD Charges,BNP PARIBAS LEASING SOLUTIONS LTD,BS1 ,28/02/2024,882.12
124518289,Mental Health,Adults,Mental Health 65 and over,3rd Party Payments,Residential Care,BOLEALLER HOUSE LTD,EX15,09/02/2024,"5,299.80"
126142234,Libraries,"Education, Inclusion and Skills",Library Delivery,Supplies and Services,Materials,BOLINDA UK LTD,RG14,23/02/2024,486.99
124247233,Physical Support,Adults,Fessey House,Supplies and Services,Food,BOOKER LIMITED,NN8 ,09/02/2024,126.47
124923233,Physical Support,Adults,Fessey House,Supplies and Services,Food,BOOKER LIMITED,NN8 ,14/02/2024,163.92
123985233,Physical Support,Adults,Fessey House,Supplies and Services,Food,BOOKER LIMITED,CH5 ,07/02/2024,142.69
124247233,Physical Support,Adults,Fessey House,Supplies and Services,Food,BOOKER LIMITED,NN8 ,09/02/2024,369.83
123985233,Physical Support,Adults,Fessey House,Supplies and Services,Food,BOOKER LIMITED,CH5 ,07/02/2024,343.77
124923233,Physical Support,Adults,Fessey House,Supplies and Services,Food,BOOKER LIMITED,NN8 ,14/02/2024,329.04
127587233,Physical Support,Adults,Fessey House,Supplies and Services,Food,BOOKER LIMITED,NN8 ,28/02/2024,449.30
127587233,Physical Support,Adults,Fessey House,Supplies and Services,Food,BOOKER LIMITED,NN8 ,28/02/2024,66.80
124518242,Physical Support,Adults,Physical Support 18 - 64,Income,Client Contribution - Nursing,BOTHWELLS LTD,HA6 ,09/02/2024,-425.60
124518242,Physical Support,Adults,Physical Support 65 and over,3rd Party Payments,Nursing Care,BOTHWELLS LTD,HA6 ,09/02/2024,-63.67
124518242,Physical Support,Adults,Physical Support 18 - 64,3rd Party Payments,Nursing Care,BOTHWELLS LTD,HA6 ,09/02/2024,"3,270.76"
124518242,Physical Support,Adults,Physical Support 18 - 64,Income,Client Contribution - Nursing,BOTHWELLS LTD,HA6 ,09/02/2024,-659.80
124518242,Physical Support,Adults,Physical Support 18 - 64,3rd Party Payments,Nursing Care,BOTHWELLS LTD,HA6 ,09/02/2024,"2,867.32"
124518242,Physical Support,Adults,Physical Support 65 and over,3rd Party Payments,Nursing Care,BOTHWELLS LTD,HA6 ,09/02/2024,"7,160.96"
124518242,Physical Support,Adults,Physical Support 65 and over,Income,Client Contribution - Nursing,BOTHWELLS LTD,HA6 ,09/02/2024,-781.40
124518242,Physical Support,Adults,Physical Support 65 and over,Income,Client Contribution - Nursing,BOTHWELLS LTD,HA6 ,09/02/2024,"-1,384.80"
124518242,Physical Support,Adults,Physical Support 65 and over,3rd Party Payments,Nursing Care,BOTHWELLS LTD,HA6 ,09/02/2024,"2,867.32"
124518242,Physical Support,Adults,Physical Support 65 and over,3rd Party Payments,Nursing Care,BOTHWELLS LTD,HA6 ,09/02/2024,"3,763.24"
124518242,Physical Support,Adults,Physical Support 65 and over,Income,Client Contribution - Nursing,BOTHWELLS LTD,HA6 ,09/02/2024,-909.16
124518242,Physical Support,Adults,Physical Support 65 and over,Income,Client Contribution - Nursing,BOTHWELLS LTD,HA6 ,09/02/2024,-691.20
124518242,Physical Support,Adults,Physical Support 65 and over,Income,Client Contribution - Nursing,BOTHWELLS LTD,HA6 ,09/02/2024,"-1,084.96"
124518242,Physical Support,Adults,Physical Support 65 and over,Income,Client Contribution - Nursing,BOTHWELLS LTD,HA6 ,09/02/2024,-779.00
124518242,Physical Support,Adults,Physical Support 65 and over,Income,Client Contribution - Nursing,BOTHWELLS LTD,HA6 ,09/02/2024,"-1,182.84"
124518242,Physical Support,Adults,Physical Support 65 and over,3rd Party Payments,Residential Care,BOTHWELLS LTD,HA6 ,09/02/2024,"3,600.00"
124955233,Responsive Repairs,Repairs,Responsive Repairs,3rd Party Payments,Contract Payments,BOUNDARY SCAFFOLDING LTD,SN6 ,14/02/2024,660.00
124955233,Responsive Repairs,Repairs,Responsive Repairs,3rd Party Payments,Contract Payments,BOUNDARY SCAFFOLDING LTD,SN6 ,14/02/2024,980.00
124955233,Responsive Repairs,Repairs,Responsive Repairs,3rd Party Payments,Contract Payments,BOUNDARY SCAFFOLDING LTD,SN6 ,14/02/2024,580.00
124955233,Responsive Repairs,Repairs,Responsive Repairs,3rd Party Payments,Contract Payments,BOUNDARY SCAFFOLDING LTD,SN6 ,14/02/2024,"1,170.00"
125409233,Property Management,Property,Property Assets,Supplies and Services,Fees,BPE SOLICITORS LLP,GL50,16/02/2024,"1,262.00"
125082235,Responsive Repairs,Repairs,Responsive Repairs,3rd Party Payments,Contract Payments,BPM CONTRACTING SERVICES LTD,BA2 ,14/02/2024,583.81
125084238,Responsive Repairs,Repairs,Responsive Repairs,3rd Party Payments,Contract Payments,BPM CONTRACTING SERVICES LTD,BA2 ,14/02/2024,"8,340.69"
125082233,Responsive Repairs,Repairs,Responsive Repairs,3rd Party Payments,Contract Payments,BPM CONTRACTING SERVICES LTD,BA2 ,14/02/2024,"2,943.90"
125084234,Responsive Repairs,Repairs,Responsive Repairs,3rd Party Payments,Contract Payments,BPM CONTRACTING SERVICES LTD,BA2 ,14/02/2024,490.75
125130233,Lydiard Park,Culture & Heritage,Lydiard : Hotel Operations,Supplies and Services,Food,BRAKE BROS LTD,TN25,14/02/2024,721.60
125776233,High Needs Block,Dedicated Schools Grant (DSG),SEN Resourcing Assessment Panel,3rd Party Payments,Top up funding - Maintained providers Pre 16,BRAMBLE HOUSE DAY NURSERY LTD,SN2 ,21/02/2024,"1,188.00"
124197233,Social Care,Children & Families,Children's Resource and Home Finding Team,3rd Party Payments,Residential Care,BRANAS ISAF LIMITED,EN6 ,07/02/2024,"22,992.94"
125041235,Social Care,Children & Families,Children's Resource and Home Finding Team,3rd Party Payments,Residential Care,BRANAS ISAF LIMITED,EN6 ,14/02/2024,"24,578.66"
124719240,Social Care,Children & Families,Placement Adoption Service,3rd Party Payments,Special Guardianship Orders,REDACTED PERSONAL DATA,SN2 ,12/02/2024,572.00
127256233,Social Care,Children & Families,Placement Adoption Service,3rd Party Payments,Special Guardianship Orders,REDACTED PERSONAL DATA,SN2 ,26/02/2024,572.00
123528233,Customer Strategy & Operations,"People, Culture and Organisational Resilience",Cemeteries & Crematoria,Supplies and Services,Materials,BRISTOL CITY COUNCIL,BS1 ,02/02/2024,527.75
124069233,Streetsmart,Streetsmart,Grounds Maintenance,Supplies and Services,Materials,BRISTOL CITY COUNCIL,BS1 ,07/02/2024,"6,150.85"
124070233,Streetsmart,Streetsmart,Grounds Maintenance,Supplies and Services,Materials,BRISTOL CITY COUNCIL,BS1 ,07/02/2024,"3,885.00"
125799233,Property Service Charged Properties,Property,Service Charged - Theatre Square,Premises Costs,Maintenance - Buildings,BRISTOL FIRE,BS37,21/02/2024,257.00
125797233,Property Service Charged Properties,Property,Service Charged - Theatre Square,Premises Costs,Maintenance - Buildings,BRISTOL FIRE,BS37,21/02/2024,595.00
125799233,Facilities Management,"People, Culture and Organisational Resilience",Office Accommodation,Premises Costs,Maintenance - Buildings,BRISTOL FIRE,BS37,21/02/2024,257.00
125292233,Streetsmart,Streetsmart,Waterside Depot,Premises Costs,Gas,BRITISH GAS TRADING LTD,S98 ,16/02/2024,"1,995.73"
125742233,Lydiard Park,Culture & Heritage,Lydiard : Hotel Operations,Supplies and Services,Services,BRITISH TELECOMMUNICATIONS PLC,S98 ,19/02/2024,"1,887.00"
125789233,Public Health,Public Health,Supplementary SMTR Grant,3rd Party Payments,Contract Payments,BROADWAY LODGE LTD,BS24,21/02/2024,"5,628.57"
125432233,DSG Other Funding,Dedicated Schools Grant (DSG),LAC pupil premium,Supplies and Services,Services,BROCKMOOR PRIMARY SCHOOL,DY1 ,23/02/2024,600.00
127561233,Human Resources and Organisational Development,"People, Culture and Organisational Resilience",Organisational Development,Employees,Training,BROOK YOUNG PEOPLE,TR1 ,28/02/2024,510.00
125271233,Disabled Children,Children & Families,DCT Daytime Short Breaks,3rd Party Payments,Day Care,BRUNEL EDUCATION,SN5 ,16/02/2024,842.76
127617233,Disabled Children,Children & Families,DCT Daytime Short Breaks,3rd Party Payments,Day Care,BRUNEL EDUCATION,SN5 ,28/02/2024,786.72
126689233,Disabled Children,Children & Families,DCT Daytime Short Breaks,3rd Party Payments,Day Care,BRUNEL EDUCATION,SN5 ,23/02/2024,561.84
123548233,Disabled Children,Children & Families,DCT Daytime Short Breaks,3rd Party Payments,Day Care,BRUNEL EDUCATION,SN5 ,02/02/2024,"1,123.68"
123782234,Disabled Children,Children & Families,DCT Daytime Short Breaks,3rd Party Payments,Day Care,BRUNEL EDUCATION,SN5 ,05/02/2024,561.84
125223233,Disabled Children,Children & Families,DCT Daytime Short Breaks,3rd Party Payments,Day Care,BRUNEL EDUCATION,SN5 ,16/02/2024,786.72
127629233,Disabled Children,Children & Families,DCT Daytime Short Breaks,3rd Party Payments,Day Care,BRUNEL EDUCATION,SN5 ,28/02/2024,"1,158.80"
123554233,Disabled Children,Children & Families,DCT Daytime Short Breaks,3rd Party Payments,Respite Care,BRUNEL EDUCATION,SN5 ,02/02/2024,842.76
127610233,Disabled Children,Children & Families,DCT Daytime Short Breaks,3rd Party Payments,Day Care,BRUNEL EDUCATION,SN5 ,28/02/2024,655.48
125240234,Disabled Children,Children & Families,DCT Daytime Short Breaks,3rd Party Payments,Day Care,BRUNEL EDUCATION,SN5 ,16/02/2024,786.72
125283233,Disabled Children,Children & Families,DCT Daytime Short Breaks,3rd Party Payments,Day Care,BRUNEL EDUCATION,SN5 ,16/02/2024,"1,081.74"
123551233,Disabled Children,Children & Families,DCT Daytime Short Breaks,3rd Party Payments,Respite Care,BRUNEL EDUCATION,SN5 ,02/02/2024,842.76
125279234,Disabled Children,Children & Families,DCT Daytime Short Breaks,3rd Party Payments,Day Care,BRUNEL EDUCATION,SN5 ,16/02/2024,"1,081.74"
125247233,Disabled Children,Children & Families,DCT Daytime Short Breaks,3rd Party Payments,Day Care,BRUNEL EDUCATION,SN5 ,16/02/2024,655.48
126686233,Disabled Children,Children & Families,DCT Daytime Short Breaks,3rd Party Payments,Day Care,BRUNEL EDUCATION,SN5 ,23/02/2024,790.09
125210233,Disabled Children,Children & Families,DCT Daytime Short Breaks,3rd Party Payments,Day Care,BRUNEL EDUCATION,SN5 ,16/02/2024,538.43
125063336,High Needs Block,Dedicated Schools Grant (DSG),SEN Resourcing Assessment Panel,3rd Party Payments,Top up funding - Academies and Free Schools Pre 16,BRUNEL EDUCATION,SN25,14/02/2024,"11,437.26"
126754233,Disabled Children,Children & Families,Aiming High for Disabled Children,Supplies and Services,Services,BRUNEL EDUCATION,SN25,23/02/2024,978.88
125056233,Disabled Children,Children & Families,DCT Daytime Short Breaks,3rd Party Payments,Day Care,BRUNEL EDUCATION,SN5 ,14/02/2024,561.84
127626233,Disabled Children,Children & Families,DCT Daytime Short Breaks,3rd Party Payments,Day Care,BRUNEL EDUCATION,SN5 ,28/02/2024,842.76
125063372,High Needs Block,Dedicated Schools Grant (DSG),Post 16 - New Responsibilties,3rd Party Payments,Independent Service Provider- Post 16,BRUNEL EDUCATION,SN25,14/02/2024,"164,951.50"
126692233,Disabled Children,Children & Families,DCT Daytime Short Breaks,3rd Party Payments,Day Care,BRUNEL EDUCATION,SN5 ,23/02/2024,842.76
124896237,Early Years Block,Dedicated Schools Grant (DSG),Free Nursery Education Commissioning - three & four  year olds,3rd Party Payments,Contracts - Child Care,REDACTED PERSONAL DATA,SN25,14/02/2024,"12,091.86"
127723233,High Needs Block,Dedicated Schools Grant (DSG),DSG Retained High Needs,Supplies and Services,Payments to Educational Bodies,REDACTED PERSONAL DATA,SN25,28/02/2024,"15,618.24"
124974233,School Transport,"Education, Inclusion and Skills",Special Educational Needs Transport,Employees,Temporary / Agency - by Accounts Payable,REDACTED PERSONAL DATA,SN25,14/02/2024,"6,298.22"
127722233,High Needs Block,Dedicated Schools Grant (DSG),DSG Retained High Needs,Supplies and Services,Payments to Educational Bodies,REDACTED PERSONAL DATA,SN25,28/02/2024,"8,574.72"
124763233,High Needs Block,Dedicated Schools Grant (DSG),Advisory Teacher Services,Supplies and Services,Payments to Educational Bodies,REDACTED PERSONAL DATA,SN25,14/02/2024,"11,325.00"
125063335,High Needs Block,Dedicated Schools Grant (DSG),SEN Resourcing Assessment Panel,3rd Party Payments,Top up funding - Academies and Free Schools Pre 16,REDACTED PERSONAL DATA,SN25,14/02/2024,"7,291.67"
125063319,High Needs Block,Dedicated Schools Grant (DSG),SEN Resourcing Assessment Panel,3rd Party Payments,Top up funding - Academies and Free Schools Pre 16,REDACTED PERSONAL DATA,SN25,14/02/2024,"4,264.17"
127729235,High Needs Block,Dedicated Schools Grant (DSG),DSG Retained High Needs,Supplies and Services,Payments to Educational Bodies,REDACTED PERSONAL DATA,SN25,28/02/2024,"25,460.10"
125063361,High Needs Block,Dedicated Schools Grant (DSG),SEN Resourcing Assessment Panel,3rd Party Payments,Top up funding - Academies and Free Schools Pre 16,REDACTED PERSONAL DATA,SN25,14/02/2024,"13,224.24"
125063350,High Needs Block,Dedicated Schools Grant (DSG),SEN Resourcing Assessment Panel,3rd Party Payments,Top up funding - Academies and Free Schools Pre 16,REDACTED PERSONAL DATA,SN25,14/02/2024,"62,485.83"
125063342,High Needs Block,Dedicated Schools Grant (DSG),SEN Resourcing Assessment Panel,3rd Party Payments,Top up funding - Academies and Free Schools Pre 16,REDACTED PERSONAL DATA,SN25,14/02/2024,"186,021.26"
125063362,High Needs Block,Dedicated Schools Grant (DSG),SEN Resourcing Assessment Panel,3rd Party Payments,Top up funding - Academies and Free Schools Pre 16,REDACTED PERSONAL DATA,SN25,14/02/2024,"34,338.09"
125063365,High Needs Block,Dedicated Schools Grant (DSG),SEN Resourcing Assessment Panel,3rd Party Payments,Top up funding - Academies and Free Schools Post 16,REDACTED PERSONAL DATA,SN25,14/02/2024,"72,003.45"
125063338,High Needs Block,Dedicated Schools Grant (DSG),SEN Resourcing Assessment Panel,3rd Party Payments,Top up funding - Academies and Free Schools Pre 16,REDACTED PERSONAL DATA,SN25,14/02/2024,"80,304.41"
125460233,School Transport,"Education, Inclusion and Skills",Special Educational Needs Transport,Employees,Temporary / Agency - by Accounts Payable,REDACTED PERSONAL DATA,SN25,16/02/2024,"4,212.78"
127723235,High Needs Block,Dedicated Schools Grant (DSG),DSG Retained High Needs,Supplies and Services,Payments to Educational Bodies,REDACTED PERSONAL DATA,SN25,28/02/2024,"9,187.20"
125063337,High Needs Block,Dedicated Schools Grant (DSG),SEN Resourcing Assessment Panel,3rd Party Payments,Top up funding - Academies and Free Schools Pre 16,REDACTED PERSONAL DATA,SN25,14/02/2024,"67,270.92"
125461233,School Transport,"Education, Inclusion and Skills",Special Educational Needs Transport,Employees,Temporary / Agency - by Accounts Payable,REDACTED PERSONAL DATA,SN25,16/02/2024,"3,803.58"
127730238,High Needs Block,Dedicated Schools Grant (DSG),DSG Retained High Needs,Supplies and Services,Payments to Educational Bodies,REDACTED PERSONAL DATA,SN25,28/02/2024,"1,608.52"
127728233,High Needs Block,Dedicated Schools Grant (DSG),DSG Retained High Needs,Supplies and Services,Payments to Educational Bodies,REDACTED PERSONAL DATA,SN25,28/02/2024,"23,762.76"
125063357,High Needs Block,Dedicated Schools Grant (DSG),SEN Resourcing Assessment Panel,3rd Party Payments,Top up funding - Academies and Free Schools Pre 16,REDACTED PERSONAL DATA,SN25,14/02/2024,"7,332.89"
124762233,High Needs Block,Dedicated Schools Grant (DSG),Advisory Teacher Services,Supplies and Services,Payments to Educational Bodies,REDACTED PERSONAL DATA,SN25,14/02/2024,"7,250.00"
127729233,High Needs Block,Dedicated Schools Grant (DSG),DSG Retained High Needs,Supplies and Services,Payments to Educational Bodies,REDACTED PERSONAL DATA,SN25,28/02/2024,"43,282.17"
125462233,School Transport,"Education, Inclusion and Skills",Special Educational Needs Transport,Transport Costs,Home to School Transport,REDACTED PERSONAL DATA,SN25,16/02/2024,"2,856.00"
127721233,High Needs Block,Dedicated Schools Grant (DSG),DSG Retained High Needs,Supplies and Services,Payments to Educational Bodies,REDACTED PERSONAL DATA,SN25,28/02/2024,"13,576.64"
127727233,High Needs Block,Dedicated Schools Grant (DSG),DSG Retained High Needs,Supplies and Services,Payments to Educational Bodies,REDACTED PERSONAL DATA,SN25,28/02/2024,"37,624.37"
127730234,High Needs Block,Dedicated Schools Grant (DSG),DSG Retained High Needs,Supplies and Services,Payments to Educational Bodies,REDACTED PERSONAL DATA,SN25,28/02/2024,"8,007.86"
125063339,High Needs Block,Dedicated Schools Grant (DSG),SEN Resourcing Assessment Panel,3rd Party Payments,Top up funding - Academies and Free Schools Pre 16,REDACTED PERSONAL DATA,SN25,14/02/2024,"200,777.48"
127730236,High Needs Block,Dedicated Schools Grant (DSG),DSG Retained High Needs,Supplies and Services,Payments to Educational Bodies,REDACTED PERSONAL DATA,SN25,28/02/2024,"2,277.18"
125063334,High Needs Block,Dedicated Schools Grant (DSG),SEN Resourcing Assessment Panel,3rd Party Payments,Top up funding - Academies and Free Schools Pre 16,REDACTED PERSONAL DATA,SN25,14/02/2024,"130,042.97"
125656233,Landscaping & Open Space,Culture & Heritage & Art,GWCF - Trees for Climate,Capital,Contractor Payments,BRUNEL SURVEYS LTD,CM20,19/02/2024,570.00
125394233,NEV,"Economy, Growth and Place",Southern Connector Road,Capital,Contractor Payments,BRUNEL SURVEYS LTD,CM20,16/02/2024,"13,650.00"
125661233,Landscaping & Open Space,Culture & Heritage & Art,GWCF - Trees for Climate,Capital,Contractor Payments,BRUNEL SURVEYS LTD,CM20,19/02/2024,650.00
123787233,Landscaping & Open Space,Culture & Heritage & Art,GWCF - Trees for Climate,Capital,Contractor Payments,BRUNEL SURVEYS LTD,CM20,05/02/2024,565.00
125903233,Landscaping & Open Space,Culture & Heritage & Art,GWCF - Trees for Climate,Capital,Contractor Payments,BRUNEL SURVEYS LTD,CM20,21/02/2024,550.00
126691233,Landscaping & Open Space,Culture & Heritage & Art,GWCF - Trees for Climate,Capital,Contractor Payments,BRUNEL SURVEYS LTD,CM20,23/02/2024,550.00
124991233,Landscaping & Open Space,Culture & Heritage & Art,GWCF - Trees for Climate,Capital,Contractor Payments,BRUNEL SURVEYS LTD,CM20,14/02/2024,550.00
125393233,NEV,"Economy, Growth and Place",Southern Connector Road,Capital,Contractor Payments,BRUNEL SURVEYS LTD,CM20,16/02/2024,"1,450.00"
127508233,NEV,"Economy, Growth and Place",Southern Connector Road,Capital,Consultants,BRUTON KNOWLES,GL2 ,28/02/2024,"1,966.45"
125129233,Streetsmart,Streetsmart,Waste - Processing,Supplies and Services,Repairs & Maintenance,BS ENGINEERING,DN21,14/02/2024,"1,550.00"
125041250,Social Care,Children & Families,Children's Resource and Home Finding Team,3rd Party Payments,Residential Care,BUDWOOD LTD,B60 ,14/02/2024,"20,388.70"
125041249,Social Care,Children & Families,Children's Resource and Home Finding Team,3rd Party Payments,Residential Care,BUDWOOD LTD,B60 ,14/02/2024,"14,906.66"
124518322,Physical Support,Adults,Physical Support 65 and over,3rd Party Payments,Residential Care,BUPA CARE HOME (ANS) LTD,LS5 ,09/02/2024,"4,400.00"
124788233,Early Years Block,Dedicated Schools Grant (DSG),Free Nursery Education Commissioning - two year olds,3rd Party Payments,Contracts - Child Care,"BUSY BEES, BROOME MANOR",SN3 ,14/02/2024,"2,547.60"
124787233,Early Years Block,Dedicated Schools Grant (DSG),Free Nursery Education Commissioning - three & four  year olds,3rd Party Payments,Contracts - Child Care,"BUSY BEES, BROOME MANOR",SN3 ,14/02/2024,"18,156.60"
124789233,Early Years Block,Dedicated Schools Grant (DSG),Free Nursery Education Commissioning - two year olds,3rd Party Payments,Contracts - Child Care,"BUSY BEES, PEATMOOR",SN5 ,14/02/2024,"2,547.60"
125777233,High Needs Block,Dedicated Schools Grant (DSG),SEN Resourcing Assessment Panel,3rd Party Payments,Top up funding - Maintained providers Pre 16,"BUSY BEES, PEATMOOR",SN5 ,21/02/2024,660.00
124790233,Early Years Block,Dedicated Schools Grant (DSG),Free Nursery Education Commissioning - three & four  year olds,3rd Party Payments,Contracts - Child Care,"BUSY BEES, PEATMOOR",SN5 ,14/02/2024,"20,189.40"
124785233,Early Years Block,Dedicated Schools Grant (DSG),Free Nursery Education Commissioning - two year olds,3rd Party Payments,Contracts - Child Care,"BUSY BEES, ST ANDREWS RIDGE",SN25,14/02/2024,"2,038.08"
124786233,Early Years Block,Dedicated Schools Grant (DSG),Free Nursery Education Commissioning - three & four  year olds,3rd Party Payments,Contracts - Child Care,"BUSY BEES, ST ANDREWS RIDGE",SN25,14/02/2024,"27,016.50"
126696233,Major Build Schemes,HRA Capital Financing,Queens Drive,Capital,Contractor Payments,BW SIGNS LIMITED,SN11,23/02/2024,"3,820.00"
127524233,Landscaping & Open Space,Culture & Heritage & Art,Mouldon Hill Country Park,Capital,Contractor Payments,C J COOK CONTRACTORS LTD,GL53,28/02/2024,"90,027.77"
124518257,Learning Disabilities,Adults,Learning Disability 65 and over,3rd Party Payments,Residential Care,C.H.O.I.C.E LTD,RG12,09/02/2024,"9,862.32"
124518254,Learning Disabilities,Adults,Learning Disability 18 - 64,Income,Client Contribution - Residential,C.H.O.I.C.E LTD,RG12,09/02/2024,-511.20
124518255,Learning Disabilities,Adults,Learning Disability 18 - 64,Income,Client Contribution - Residential,C.H.O.I.C.E LTD,RG12,09/02/2024,-427.20
124518255,Learning Disabilities,Adults,Learning Disability 18 - 64,3rd Party Payments,Residential Care,C.H.O.I.C.E LTD,RG12,09/02/2024,"13,814.08"
124518253,Learning Disabilities,Adults,Learning Disability 18 - 64,3rd Party Payments,Residential Care,C.H.O.I.C.E LTD,RG12,09/02/2024,"13,440.00"
124518259,Learning Disabilities,Adults,Learning Disability 18 - 64,Income,Client Contribution - Residential,C.H.O.I.C.E LTD,RG12,09/02/2024,-454.80
124518257,Learning Disabilities,Adults,Learning Disability 65 and over,3rd Party Payments,Residential Care,C.H.O.I.C.E LTD,RG12,09/02/2024,"10,516.64"
124518258,Learning Disabilities,Adults,Learning Disability 18 - 64,3rd Party Payments,Residential Care,C.H.O.I.C.E LTD,RG12,09/02/2024,"10,380.16"
124518256,Learning Disabilities,Adults,Learning Disability 18 - 64,3rd Party Payments,Residential Care,C.H.O.I.C.E LTD,SO23,09/02/2024,"8,531.76"
124518254,Learning Disabilities,Adults,Learning Disability 18 - 64,3rd Party Payments,Residential Care,C.H.O.I.C.E LTD,RG12,09/02/2024,"9,531.52"
124518258,Learning Disabilities,Adults,Learning Disability 18 - 64,Income,Client Contribution - Residential,C.H.O.I.C.E LTD,RG12,09/02/2024,-481.00
124518253,Learning Disabilities,Adults,Learning Disability 18 - 64,Income,Client Contribution - Residential,C.H.O.I.C.E LTD,RG12,09/02/2024,-384.56
124518258,Learning Disabilities,Adults,Learning Disability 18 - 64,Income,Client Contribution - Residential,C.H.O.I.C.E LTD,RG12,09/02/2024,-617.76
124518258,Learning Disabilities,Adults,Learning Disability 18 - 64,3rd Party Payments,Residential Care,C.H.O.I.C.E LTD,RG12,09/02/2024,"9,797.76"
124518257,Learning Disabilities,Adults,Learning Disability 65 and over,Income,Client Contribution - Residential,C.H.O.I.C.E LTD,RG12,09/02/2024,-691.20
124518259,Learning Disabilities,Adults,Learning Disability 18 - 64,Income,Client Contribution - Residential,C.H.O.I.C.E LTD,RG12,09/02/2024,-276.60
124518259,Physical Support,Adults,Physical Support 18 - 64,3rd Party Payments,Residential Care,C.H.O.I.C.E LTD,RG12,09/02/2024,"11,449.52"
124518259,Learning Disabilities,Adults,Learning Disability 18 - 64,3rd Party Payments,Residential Care,C.H.O.I.C.E LTD,RG12,09/02/2024,"12,844.16"
124518258,Learning Disabilities,Adults,Learning Disability 18 - 64,3rd Party Payments,Residential Care,C.H.O.I.C.E LTD,RG12,09/02/2024,"9,887.36"
124518257,Learning Disabilities,Adults,Learning Disability 65 and over,Income,Client Contribution - Residential,C.H.O.I.C.E LTD,RG12,09/02/2024,-773.20
124518259,Learning Disabilities,Adults,Learning Disability 18 - 64,3rd Party Payments,Residential Care,C.H.O.I.C.E LTD,RG12,09/02/2024,"13,870.08"
124518258,Learning Disabilities,Adults,Learning Disability 18 - 64,Income,Client Contribution - Residential,C.H.O.I.C.E LTD,RG12,09/02/2024,-639.20
124518259,Physical Support,Adults,Physical Support 18 - 64,Income,Client Contribution - Residential,C.H.O.I.C.E LTD,RG12,09/02/2024,-483.20
124186233,Social Care,Children & Families,Children's Resource and Home Finding Team,3rd Party Payments,Residential Care,CALCOT SERVICES FOR CHILDREN LTD,RG7 ,07/02/2024,"27,964.12"
124185233,Social Care,Children & Families,Children's Resource and Home Finding Team,3rd Party Payments,Residential Care,CALCOT SERVICES FOR CHILDREN LTD,RG7 ,07/02/2024,"27,467.06"
124336233,Social Care,Children & Families,Children's Resource and Home Finding Team,3rd Party Payments,Independent Fostering Agency Placements,CALDECOTT FOSTERING LTD,TN25,09/02/2024,"6,685.37"
125598434,Learning Disabilities,Adults,Learning Disability 18 - 64,Income,Client Contribution - Personal Budget - DP,REDACTED PERSONAL DATA,SP11,16/02/2024,-10.36
125598434,Learning Disabilities,Adults,Learning Disability 18 - 64,Transfer Payments,Personal Budget - Direct Payments - Domiciliary Care,REDACTED PERSONAL DATA,SP11,16/02/2024,94.80
125598434,Learning Disabilities,Adults,Learning Disability 18 - 64,Transfer Payments,Personal Budget - Direct Payments - Domiciliary Care,REDACTED PERSONAL DATA,SP11,16/02/2024,520.96
125598434,Learning Disabilities,Adults,Learning Disability 18 - 64,Income,Client Contribution - Personal Budget - DP,REDACTED PERSONAL DATA,SP11,16/02/2024,-4.92
125598434,Learning Disabilities,Adults,Learning Disability 18 - 64,Transfer Payments,Personal Budget - Direct Payments - Domiciliary Care,REDACTED PERSONAL DATA,SP11,16/02/2024,198.32
125598434,Learning Disabilities,Adults,Learning Disability 18 - 64,Transfer Payments,Personal Budget - Direct Payments - Domiciliary Care,REDACTED PERSONAL DATA,SP11,16/02/2024,360.48
125598434,Learning Disabilities,Adults,Learning Disability 18 - 64,Transfer Payments,Personal Budget - Direct Payments - Domiciliary Care,REDACTED PERSONAL DATA,SP11,16/02/2024,821.76
125598434,Learning Disabilities,Adults,Learning Disability 18 - 64,Income,Client Contribution - Personal Budget - DP,REDACTED PERSONAL DATA,SP11,16/02/2024,-42.80
125598434,Learning Disabilities,Adults,Learning Disability 18 - 64,Income,Client Contribution - Personal Budget - DP,REDACTED PERSONAL DATA,SP11,16/02/2024,-27.12
125598434,Learning Disabilities,Adults,Learning Disability 18 - 64,Income,Client Contribution - Personal Budget - DP,REDACTED PERSONAL DATA,SP11,16/02/2024,-18.76
125598535,Learning Disabilities,Adults,Learning Disability 18 - 64,Transfer Payments,Personal Budget - Direct Payments - Domiciliary Care,REDACTED PERSONAL DATA,SP11,16/02/2024,651.20
123808233,Lydiard Park,Culture & Heritage,Lydiard : Hotel Operations,Premises Costs,Gas,CALOR GAS LTD,CV34,05/02/2024,"1,487.07"
125120234,Lydiard Park,Culture & Heritage,Lydiard : Hotel Operations,Premises Costs,Gas,CALOR GAS LTD,CV34,14/02/2024,"2,031.12"
125598282,Physical Support,Adults,Physical Support 18 - 64,Income,Client Contribution - Personal Budget - DP,REDACTED PERSONAL DATA,SN25,16/02/2024,-75.68
125598282,Physical Support,Adults,Physical Support 18 - 64,Transfer Payments,Personal Budget - Direct Payments - Domiciliary Care,REDACTED PERSONAL DATA,SN25,16/02/2024,408.24
125598282,Physical Support,Adults,Physical Support 18 - 64,Income,Client Contribution - Personal Budget - DP,REDACTED PERSONAL DATA,SN25,16/02/2024,-52.72
125598282,Physical Support,Adults,Physical Support 18 - 64,Transfer Payments,Personal Budget - Direct Payments - Domiciliary Care,REDACTED PERSONAL DATA,SN25,16/02/2024,586.08
123517245,Other Repairs,Repairs,Cyclical Maintenance,Supplies and Services,Testing / Inspection,CANTILLON GROUP LTD,SN25,02/02/2024,688.79
123517236,Other Repairs,Repairs,Cyclical Maintenance,Supplies and Services,Testing / Inspection,CANTILLON GROUP LTD,SN25,02/02/2024,"2,131.34"
127766233,Other Repairs,Repairs,Cyclical Maintenance,Supplies and Services,Testing / Inspection,CANTILLON GROUP LTD,SN25,28/02/2024,88.30
125526233,Other Repairs,Repairs,Cyclical Maintenance,Supplies and Services,Testing / Inspection,CANTILLON GROUP LTD,SN25,16/02/2024,88.30
124936238,Other Repairs,Repairs,Cyclical Maintenance,Supplies and Services,Testing / Inspection,CANTILLON GROUP LTD,SN25,14/02/2024,455.51
124936236,Other Repairs,Repairs,Cyclical Maintenance,Supplies and Services,Testing / Inspection,CANTILLON GROUP LTD,SN25,14/02/2024,160.00
127606233,Other Repairs,Repairs,Cyclical Maintenance,Supplies and Services,Testing / Inspection,CANTILLON GROUP LTD,SN25,28/02/2024,88.30
125529233,Other Repairs,Repairs,Cyclical Maintenance,Supplies and Services,Testing / Inspection,CANTILLON GROUP LTD,SN25,16/02/2024,88.30
124936236,Other Repairs,Repairs,Cyclical Maintenance,Supplies and Services,Testing / Inspection,CANTILLON GROUP LTD,SN25,14/02/2024,"2,438.08"
124934233,Other Repairs,Repairs,Cyclical Maintenance,Supplies and Services,Testing / Inspection,CANTILLON GROUP LTD,SN25,14/02/2024,323.11
124933233,Other Repairs,Repairs,Cyclical Maintenance,Supplies and Services,Testing / Inspection,CANTILLON GROUP LTD,SN25,14/02/2024,160.00
123704233,Other Repairs,Repairs,Cyclical Maintenance,Supplies and Services,Testing / Inspection,CANTILLON GROUP LTD,SN25,02/02/2024,350.56
123701234,Other Repairs,Repairs,Cyclical Maintenance,Supplies and Services,Testing / Inspection,CANTILLON GROUP LTD,SN25,02/02/2024,88.30
123517240,Other Repairs,Repairs,Cyclical Maintenance,Supplies and Services,Testing / Inspection,CANTILLON GROUP LTD,SN25,02/02/2024,517.58
127763233,Other Repairs,Repairs,Cyclical Maintenance,Supplies and Services,Testing / Inspection,CANTILLON GROUP LTD,SN25,28/02/2024,88.30
127598233,Other Repairs,Repairs,Cyclical Maintenance,Supplies and Services,Testing / Inspection,CANTILLON GROUP LTD,SN25,28/02/2024,674.86
125528233,Other Repairs,Repairs,Cyclical Maintenance,Supplies and Services,Testing / Inspection,CANTILLON GROUP LTD,SN25,16/02/2024,845.64
125382233,Other Repairs,Repairs,Cyclical Maintenance,Supplies and Services,Testing / Inspection,CANTILLON GROUP LTD,SN25,16/02/2024,88.30
125382233,Other Repairs,Repairs,Cyclical Maintenance,Supplies and Services,Testing / Inspection,CANTILLON GROUP LTD,SN25,16/02/2024,483.40
124936238,Other Repairs,Repairs,Cyclical Maintenance,Supplies and Services,Testing / Inspection,CANTILLON GROUP LTD,SN25,14/02/2024,88.30
124936234,Other Repairs,Repairs,Cyclical Maintenance,Supplies and Services,Testing / Inspection,CANTILLON GROUP LTD,SN25,14/02/2024,"2,333.41"
124934233,Other Repairs,Repairs,Cyclical Maintenance,Supplies and Services,Testing / Inspection,CANTILLON GROUP LTD,SN25,14/02/2024,160.00
123704233,Other Repairs,Repairs,Cyclical Maintenance,Supplies and Services,Testing / Inspection,CANTILLON GROUP LTD,SN25,02/02/2024,88.30
123703233,Other Repairs,Repairs,Cyclical Maintenance,Supplies and Services,Testing / Inspection,CANTILLON GROUP LTD,SN25,02/02/2024,390.04
123517234,Other Repairs,Repairs,Cyclical Maintenance,Supplies and Services,Testing / Inspection,CANTILLON GROUP LTD,SN25,02/02/2024,"1,621.43"
123517238,Other Repairs,Repairs,Cyclical Maintenance,Supplies and Services,Testing / Inspection,CANTILLON GROUP LTD,SN25,02/02/2024,88.30
123517236,Other Repairs,Repairs,Cyclical Maintenance,Supplies and Services,Testing / Inspection,CANTILLON GROUP LTD,SN25,02/02/2024,160.00
127600233,Other Repairs,Repairs,Cyclical Maintenance,Supplies and Services,Testing / Inspection,CANTILLON GROUP LTD,SN25,28/02/2024,88.30
125481238,Other Repairs,Repairs,Cyclical Maintenance,Supplies and Services,Testing / Inspection,CANTILLON GROUP LTD,SN25,16/02/2024,88.30
125175233,Other Repairs,Repairs,Cyclical Maintenance,Supplies and Services,Testing / Inspection,CANTILLON GROUP LTD,SN25,14/02/2024,88.30
124936235,Other Repairs,Repairs,Cyclical Maintenance,Supplies and Services,Testing / Inspection,CANTILLON GROUP LTD,SN25,14/02/2024,160.00
124928233,Other Repairs,Repairs,Cyclical Maintenance,Supplies and Services,Testing / Inspection,CANTILLON GROUP LTD,SN25,14/02/2024,160.00
123404235,Other Repairs,Repairs,Cyclical Maintenance,Supplies and Services,Testing / Inspection,CANTILLON GROUP LTD,SN25,02/02/2024,"1,483.33"
123702234,Other Repairs,Repairs,Cyclical Maintenance,Supplies and Services,Testing / Inspection,CANTILLON GROUP LTD,SN25,02/02/2024,88.30
123517234,Other Repairs,Repairs,Cyclical Maintenance,Supplies and Services,Testing / Inspection,CANTILLON GROUP LTD,SN25,02/02/2024,160.00
123703233,Other Repairs,Repairs,Cyclical Maintenance,Supplies and Services,Testing / Inspection,CANTILLON GROUP LTD,SN25,02/02/2024,88.30
123517240,Other Repairs,Repairs,Cyclical Maintenance,Supplies and Services,Testing / Inspection,CANTILLON GROUP LTD,SN25,02/02/2024,88.30
123517238,Other Repairs,Repairs,Cyclical Maintenance,Supplies and Services,Testing / Inspection,CANTILLON GROUP LTD,SN25,02/02/2024,375.62
127766233,Other Repairs,Repairs,Cyclical Maintenance,Supplies and Services,Testing / Inspection,CANTILLON GROUP LTD,SN25,28/02/2024,561.20
127763233,Other Repairs,Repairs,Cyclical Maintenance,Supplies and Services,Testing / Inspection,CANTILLON GROUP LTD,SN25,28/02/2024,"1,048.01"
127602233,Other Repairs,Repairs,Cyclical Maintenance,Supplies and Services,Testing / Inspection,CANTILLON GROUP LTD,SN25,28/02/2024,583.88
127602233,Other Repairs,Repairs,Cyclical Maintenance,Supplies and Services,Testing / Inspection,CANTILLON GROUP LTD,SN25,28/02/2024,88.30
125528233,Other Repairs,Repairs,Cyclical Maintenance,Supplies and Services,Testing / Inspection,CANTILLON GROUP LTD,SN25,16/02/2024,88.30
125481238,Other Repairs,Repairs,Cyclical Maintenance,Supplies and Services,Testing / Inspection,CANTILLON GROUP LTD,SN25,16/02/2024,428.67
125173233,Other Repairs,Repairs,Cyclical Maintenance,Supplies and Services,Testing / Inspection,CANTILLON GROUP LTD,SN25,14/02/2024,88.30
125173233,Other Repairs,Repairs,Cyclical Maintenance,Supplies and Services,Testing / Inspection,CANTILLON GROUP LTD,SN25,14/02/2024,376.03
124936245,Other Repairs,Repairs,Cyclical Maintenance,Supplies and Services,Testing / Inspection,CANTILLON GROUP LTD,SN25,14/02/2024,88.30
124930233,Other Repairs,Repairs,Cyclical Maintenance,Supplies and Services,Testing / Inspection,CANTILLON GROUP LTD,SN25,14/02/2024,353.15
124930233,Other Repairs,Repairs,Cyclical Maintenance,Supplies and Services,Testing / Inspection,CANTILLON GROUP LTD,SN25,14/02/2024,160.00
124928233,Other Repairs,Repairs,Cyclical Maintenance,Supplies and Services,Testing / Inspection,CANTILLON GROUP LTD,SN25,14/02/2024,404.96
124936252,Other Repairs,Repairs,Cyclical Maintenance,Supplies and Services,Testing / Inspection,CANTILLON GROUP LTD,SN25,14/02/2024,88.30
123517235,Other Repairs,Repairs,Cyclical Maintenance,Supplies and Services,Testing / Inspection,CANTILLON GROUP LTD,SN25,02/02/2024,160.00
127603233,Other Repairs,Repairs,Cyclical Maintenance,Supplies and Services,Testing / Inspection,CANTILLON GROUP LTD,SN25,28/02/2024,88.30
125526233,Other Repairs,Repairs,Cyclical Maintenance,Supplies and Services,Testing / Inspection,CANTILLON GROUP LTD,SN25,16/02/2024,561.12
124936239,Other Repairs,Repairs,Cyclical Maintenance,Supplies and Services,Testing / Inspection,CANTILLON GROUP LTD,SN25,14/02/2024,88.30
124936237,Other Repairs,Repairs,Cyclical Maintenance,Supplies and Services,Testing / Inspection,CANTILLON GROUP LTD,SN25,14/02/2024,455.51
124933233,Other Repairs,Repairs,Cyclical Maintenance,Supplies and Services,Testing / Inspection,CANTILLON GROUP LTD,SN25,14/02/2024,278.19
124936252,Other Repairs,Repairs,Cyclical Maintenance,Supplies and Services,Testing / Inspection,CANTILLON GROUP LTD,SN25,14/02/2024,480.41
123404235,Other Repairs,Repairs,Cyclical Maintenance,Supplies and Services,Testing / Inspection,CANTILLON GROUP LTD,SN25,02/02/2024,88.30
123517241,Other Repairs,Repairs,Cyclical Maintenance,Supplies and Services,Testing / Inspection,CANTILLON GROUP LTD,SN25,02/02/2024,"1,321.80"
127606233,Other Repairs,Repairs,Cyclical Maintenance,Supplies and Services,Testing / Inspection,CANTILLON GROUP LTD,SN25,28/02/2024,559.45
127600233,Other Repairs,Repairs,Cyclical Maintenance,Supplies and Services,Testing / Inspection,CANTILLON GROUP LTD,SN25,28/02/2024,486.83
127598233,Other Repairs,Repairs,Cyclical Maintenance,Supplies and Services,Testing / Inspection,CANTILLON GROUP LTD,SN25,28/02/2024,88.30
125529233,Other Repairs,Repairs,Cyclical Maintenance,Supplies and Services,Testing / Inspection,CANTILLON GROUP LTD,SN25,16/02/2024,492.65
124936239,Other Repairs,Repairs,Cyclical Maintenance,Supplies and Services,Testing / Inspection,CANTILLON GROUP LTD,SN25,14/02/2024,689.91
124936234,Other Repairs,Repairs,Cyclical Maintenance,Supplies and Services,Testing / Inspection,CANTILLON GROUP LTD,SN25,14/02/2024,160.00
123702234,Other Repairs,Repairs,Cyclical Maintenance,Supplies and Services,Testing / Inspection,CANTILLON GROUP LTD,SN25,02/02/2024,340.56
123517241,Other Repairs,Repairs,Cyclical Maintenance,Supplies and Services,Testing / Inspection,CANTILLON GROUP LTD,SN25,02/02/2024,160.00
123517237,Other Repairs,Repairs,Cyclical Maintenance,Supplies and Services,Testing / Inspection,CANTILLON GROUP LTD,SN25,02/02/2024,88.30
127603233,Other Repairs,Repairs,Cyclical Maintenance,Supplies and Services,Testing / Inspection,CANTILLON GROUP LTD,SN25,28/02/2024,366.73
125175233,Other Repairs,Repairs,Cyclical Maintenance,Supplies and Services,Testing / Inspection,CANTILLON GROUP LTD,SN25,14/02/2024,493.36
124936245,Other Repairs,Repairs,Cyclical Maintenance,Supplies and Services,Testing / Inspection,CANTILLON GROUP LTD,SN25,14/02/2024,527.23
124936237,Other Repairs,Repairs,Cyclical Maintenance,Supplies and Services,Testing / Inspection,CANTILLON GROUP LTD,SN25,14/02/2024,88.30
123517245,Other Repairs,Repairs,Cyclical Maintenance,Supplies and Services,Testing / Inspection,CANTILLON GROUP LTD,SN25,02/02/2024,88.30
123517237,Other Repairs,Repairs,Cyclical Maintenance,Supplies and Services,Testing / Inspection,CANTILLON GROUP LTD,SN25,02/02/2024,535.22
123517235,Other Repairs,Repairs,Cyclical Maintenance,Supplies and Services,Testing / Inspection,CANTILLON GROUP LTD,SN25,02/02/2024,"2,665.47"
124936235,Other Repairs,Repairs,Cyclical Maintenance,Supplies and Services,Testing / Inspection,CANTILLON GROUP LTD,SN25,14/02/2024,"1,932.10"
123701234,Other Repairs,Repairs,Cyclical Maintenance,Supplies and Services,Testing / Inspection,CANTILLON GROUP LTD,SN25,02/02/2024,520.32
125041252,Social Care,Children & Families,Children's Resource and Home Finding Team,3rd Party Payments,Independent Fostering Agency Placements,CAPSTONE FOSTER CARE (SOUTH WEST) LTD,GL13,14/02/2024,"3,487.98"
123591233,Social Care,Children & Families,Children's Resource and Home Finding Team,3rd Party Payments,Independent Fostering Agency Placements,CAPSTONE FOSTER CARE (SOUTH WEST) LTD,GL13,02/02/2024,"3,728.53"
123590234,Social Care,Children & Families,Children's Resource and Home Finding Team,3rd Party Payments,Independent Fostering Agency Placements,CAPSTONE FOSTER CARE (SOUTH WEST) LTD,GL13,02/02/2024,"7,881.75"
125041251,Social Care,Children & Families,Children's Resource and Home Finding Team,3rd Party Payments,Independent Fostering Agency Placements,CAPSTONE FOSTER CARE (SOUTH WEST) LTD,GL13,14/02/2024,"7,373.25"
123457236,Streetsmart,Streetsmart,Waterside Fleet Workshops,Supplies and Services,Equipment,CAR AND TRUCK SERVICES (SWINDON) LTD,SN1 ,02/02/2024,662.46
125605233,Treasury,Corporate Finance,Treasury,Supplies and Services,Fees,CARD PROCESSING ADVISORY SERVICES LTD (CPRAS),W1W ,19/02/2024,857.80
126598233,Disabled Children,Children & Families,ICES Paediatric,Supplies and Services,Equipment,CARE AND INDEPENDENCE LTD,OX26,23/02/2024,"2,299.50"
126391234,Disabled Children,Children & Families,ICES Paediatric,Supplies and Services,Equipment,CARE AND INDEPENDENCE LTD,OX26,23/02/2024,"1,312.58"
125208233,Learning Disabilities,Adults,Learning Disability 18 - 64,3rd Party Payments,Supported Lodgings (Childrens)/Supported Living (Adults),CAREFORYOU LTD,N13 ,14/02/2024,"4,882.00"
125041246,Social Care,Children & Families,Placements - Positive Futures,3rd Party Payments,Semi Independent,CARING FOR COMMUNITIES AND PEOPLE (CCP),GL50,14/02/2024,"2,630.00"
125929233,Disabled Children,Children & Families,DCT Daytime Short Breaks,3rd Party Payments,Respite Care,CARING FOR COMMUNITIES AND PEOPLE (CCP),GL50,21/02/2024,953.55
125041248,Social Care,Children & Families,Unaccompanied Asylum Seeking Children (UASC),3rd Party Payments,Semi Independent,CARING FOR COMMUNITIES AND PEOPLE (CCP),GL50,14/02/2024,"3,650.00"
125041247,Social Care,Children & Families,Placements - Positive Futures,3rd Party Payments,Semi Independent,CARING FOR COMMUNITIES AND PEOPLE (CCP),GL50,14/02/2024,"2,630.00"
125457233,Physical Support,Adults,Physical Support 18 - 64,3rd Party Payments,Personal Budget - Domiciliary care,CARING HEART CARERS LIMITED,SN25,16/02/2024,"1,306.16"
125457233,Physical Support,Adults,Physical Support 65 and over,3rd Party Payments,Personal Budget - Domiciliary care,CARING HEART CARERS LIMITED,SN25,16/02/2024,"1,256.10"
125457233,Physical Support,Adults,Physical Support 18 - 64,3rd Party Payments,Personal Budget - Domiciliary care,CARING HEART CARERS LIMITED,SN25,16/02/2024,-154.16
125457233,Physical Support,Adults,Physical Support 65 and over,3rd Party Payments,Personal Budget - Domiciliary care,CARING HEART CARERS LIMITED,SN25,16/02/2024,-161.28
125003252,Streetsmart,Streetsmart,Waterside Fleet Workshops,Transport Costs,Repairs & Maintenance - Vehicles,CARKEY MOBILE AUTO LOCKSMITH,SN1 ,14/02/2024,420.00
125598243,Learning Disabilities,Adults,Learning Disability 18 - 64,Income,Client Contribution - Personal Budget - DP,REDACTED PERSONAL DATA,SN2 ,16/02/2024,-2.48
125598243,Learning Disabilities,Adults,Learning Disability 18 - 64,Transfer Payments,Personal Budget - Direct Payments - Domiciliary Care,REDACTED PERSONAL DATA,SN2 ,16/02/2024,359.52
125598243,Learning Disabilities,Adults,Learning Disability 18 - 64,Transfer Payments,Personal Budget - Direct Payments - Domiciliary Care,REDACTED PERSONAL DATA,SN2 ,16/02/2024,683.76
125598243,Learning Disabilities,Adults,Learning Disability 18 - 64,Income,Client Contribution - Personal Budget - DP,REDACTED PERSONAL DATA,SN2 ,16/02/2024,-4.52
125598243,Learning Disabilities,Adults,Learning Disability 18 - 64,Transfer Payments,Personal Budget - Direct Payments - Domiciliary Care,REDACTED PERSONAL DATA,SN2 ,16/02/2024,651.20
125598243,Learning Disabilities,Adults,Learning Disability 18 - 64,Income,Client Contribution - Personal Budget - DP,REDACTED PERSONAL DATA,SN2 ,16/02/2024,-5.08
125598243,Learning Disabilities,Adults,Learning Disability 18 - 64,Income,Client Contribution - Personal Budget - DP,REDACTED PERSONAL DATA,SN2 ,16/02/2024,-4.72
125598243,Learning Disabilities,Adults,Learning Disability 18 - 64,Transfer Payments,Personal Budget - Direct Payments - Domiciliary Care,REDACTED PERSONAL DATA,SN2 ,16/02/2024,736.16
125063237,High Needs Block,Dedicated Schools Grant (DSG),SEN Resourcing Assessment Panel,Supplies and Services,Services,REDACTED PERSONAL DATA,SN3 ,14/02/2024,"1,079.20"
125063239,High Needs Block,Dedicated Schools Grant (DSG),SEN Resourcing Assessment Panel,Supplies and Services,Services,REDACTED PERSONAL DATA,SN3 ,14/02/2024,"1,557.82"
125598326,Learning Disabilities,Adults,Learning Disability 18 - 64,Income,Client Contribution - Personal Budget - DP,REDACTED PERSONAL DATA,SN2 ,16/02/2024,-2.20
125598326,Learning Disabilities,Adults,Learning Disability 18 - 64,Transfer Payments,Personal Budget - Direct Payments - Other,REDACTED PERSONAL DATA,SN2 ,16/02/2024,270.48
125598326,Learning Disabilities,Adults,Learning Disability 18 - 64,Transfer Payments,Personal Budget - Direct Payments - Other,REDACTED PERSONAL DATA,SN2 ,16/02/2024,96.00
125598326,Learning Disabilities,Adults,Learning Disability 18 - 64,Income,Client Contribution - Personal Budget - DP,REDACTED PERSONAL DATA,SN2 ,16/02/2024,-2.08
125598326,Learning Disabilities,Adults,Learning Disability 18 - 64,Transfer Payments,Personal Budget - Direct Payments - Domiciliary Care,REDACTED PERSONAL DATA,SN2 ,16/02/2024,"1,408.50"
125598326,Learning Disabilities,Adults,Learning Disability 18 - 64,Transfer Payments,Personal Budget - Direct Payments - Other,REDACTED PERSONAL DATA,SN2 ,16/02/2024,157.92
125598326,Learning Disabilities,Adults,Learning Disability 18 - 64,Transfer Payments,Personal Budget - Direct Payments - Other,REDACTED PERSONAL DATA,SN2 ,16/02/2024,405.72
125598326,Learning Disabilities,Adults,Learning Disability 18 - 64,Transfer Payments,Personal Budget - Direct Payments - Other,REDACTED PERSONAL DATA,SN2 ,16/02/2024,94.80
125598326,Learning Disabilities,Adults,Learning Disability 18 - 64,Transfer Payments,Personal Budget - Direct Payments - Other,REDACTED PERSONAL DATA,SN2 ,16/02/2024,142.20
125598326,Learning Disabilities,Adults,Learning Disability 18 - 64,Transfer Payments,Personal Budget - Direct Payments - Other,REDACTED PERSONAL DATA,SN2 ,16/02/2024,360.96
125598326,Learning Disabilities,Adults,Learning Disability 18 - 64,Transfer Payments,Personal Budget - Direct Payments - Other,REDACTED PERSONAL DATA,SN2 ,16/02/2024,405.76
125598326,Learning Disabilities,Adults,Learning Disability 18 - 64,Income,Client Contribution - Personal Budget - DP,REDACTED PERSONAL DATA,SN2 ,16/02/2024,-5.00
125598326,Learning Disabilities,Adults,Learning Disability 18 - 64,Income,Client Contribution - Personal Budget - DP,REDACTED PERSONAL DATA,SN2 ,16/02/2024,-1.96
125598326,Learning Disabilities,Adults,Learning Disability 18 - 64,Income,Client Contribution - Personal Budget - DP,REDACTED PERSONAL DATA,SN2 ,16/02/2024,-0.84
125598326,Learning Disabilities,Adults,Learning Disability 18 - 64,Transfer Payments,Personal Budget - Direct Payments - Other,REDACTED PERSONAL DATA,SN2 ,16/02/2024,151.20
125598326,Learning Disabilities,Adults,Learning Disability 18 - 64,Income,Client Contribution - Personal Budget - DP,REDACTED PERSONAL DATA,SN2 ,16/02/2024,-0.64
125598326,Learning Disabilities,Adults,Learning Disability 18 - 64,Income,Client Contribution - Personal Budget - DP,REDACTED PERSONAL DATA,SN2 ,16/02/2024,-1.64
125598326,Learning Disabilities,Adults,Learning Disability 18 - 64,Transfer Payments,Personal Budget - Direct Payments - Other,REDACTED PERSONAL DATA,SN2 ,16/02/2024,45.08
125598326,Learning Disabilities,Adults,Learning Disability 18 - 64,Transfer Payments,Personal Budget - Direct Payments - Other,REDACTED PERSONAL DATA,SN2 ,16/02/2024,60.16
125598326,Learning Disabilities,Adults,Learning Disability 18 - 64,Income,Client Contribution - Personal Budget - DP,REDACTED PERSONAL DATA,SN2 ,16/02/2024,-3.76
125598326,Learning Disabilities,Adults,Learning Disability 18 - 64,Income,Client Contribution - Personal Budget - DP,REDACTED PERSONAL DATA,SN2 ,16/02/2024,-19.48
125598326,Learning Disabilities,Adults,Learning Disability 18 - 64,Transfer Payments,Personal Budget - Direct Payments - Other,REDACTED PERSONAL DATA,SN2 ,16/02/2024,118.80
125598326,Learning Disabilities,Adults,Learning Disability 18 - 64,Transfer Payments,Personal Budget - Direct Payments - Other,REDACTED PERSONAL DATA,SN2 ,16/02/2024,410.80
125598326,Learning Disabilities,Adults,Learning Disability 18 - 64,Income,Client Contribution - Personal Budget - DP,REDACTED PERSONAL DATA,SN2 ,16/02/2024,-5.68
125598326,Learning Disabilities,Adults,Learning Disability 18 - 64,Income,Client Contribution - Personal Budget - DP,REDACTED PERSONAL DATA,SN2 ,16/02/2024,-5.64
125598326,Learning Disabilities,Adults,Learning Disability 18 - 64,Income,Client Contribution - Personal Budget - DP,REDACTED PERSONAL DATA,SN2 ,16/02/2024,-1.32
124634249,Social Care,Children & Families,Placement Fostering Service,3rd Party Payments,Carers Skills Payments - Advanced,REDACTED PERSONAL DATA,SN2 ,12/02/2024,370.00
124634249,Social Care,Children & Families,Placement Fostering Service,3rd Party Payments,Foster Care Basic Payments,REDACTED PERSONAL DATA,SN2 ,12/02/2024,600.00
126872233,Social Care,Children & Families,Placement Fostering Service,3rd Party Payments,Foster Care Basic Payments,REDACTED PERSONAL DATA,SN2 ,26/02/2024,600.00
126872233,Social Care,Children & Families,Placement Fostering Service,3rd Party Payments,Carers Skills Payments - Advanced,REDACTED PERSONAL DATA,SN2 ,26/02/2024,370.00
127900233,Responsive Repairs,Repairs,Responsive Repairs,3rd Party Payments,Contract Payments,CARPET WAREHOUSE SWINDON LTD,SN2 ,28/02/2024,825.06
127707233,Social Care,Children & Families,Legal Fees,Supplies and Services,Fees,CARTER BROWN LTD,B15 ,28/02/2024,"2,584.40"
127528234,Social Care,Children & Families,Legal Fees,Supplies and Services,Fees,CARTER BROWN LTD,B15 ,28/02/2024,"2,705.25"
127527233,Social Care,Children & Families,Legal Fees,Supplies and Services,Fees,CARTER BROWN LTD,B15 ,28/02/2024,"3,845.00"
127529233,Social Care,Children & Families,Legal Fees,Supplies and Services,Fees,CARTER BROWN LTD,B15 ,28/02/2024,"2,684.50"
127554234,Social Care,Children & Families,Legal Fees,Supplies and Services,Fees,CARTER BROWN LTD,B15 ,28/02/2024,"2,340.00"
125598347,Learning Disabilities,Adults,Learning Disability 18 - 64,Income,Client Contribution - Personal Budget - DP,REDACTED PERSONAL DATA,SN6 ,16/02/2024,-18.80
125598347,Learning Disabilities,Adults,Learning Disability 18 - 64,Transfer Payments,Personal Budget - Direct Payments - Other,REDACTED PERSONAL DATA,SN6 ,16/02/2024,94.80
125598347,Learning Disabilities,Adults,Learning Disability 18 - 64,Income,Client Contribution - Personal Budget - DP,REDACTED PERSONAL DATA,SN6 ,16/02/2024,-26.16
125598347,Learning Disabilities,Adults,Learning Disability 18 - 64,Transfer Payments,Personal Budget - Direct Payments - Other,REDACTED PERSONAL DATA,SN6 ,16/02/2024,150.40
125598347,Learning Disabilities,Adults,Learning Disability 18 - 64,Transfer Payments,Personal Budget - Direct Payments - Other,REDACTED PERSONAL DATA,SN6 ,16/02/2024,198.32
125598347,Learning Disabilities,Adults,Learning Disability 18 - 64,Income,Client Contribution - Personal Budget - DP,REDACTED PERSONAL DATA,SN6 ,16/02/2024,-19.16
125598347,Learning Disabilities,Adults,Learning Disability 18 - 64,Transfer Payments,Personal Budget - Direct Payments - Other,REDACTED PERSONAL DATA,SN6 ,16/02/2024,147.60
125598347,Learning Disabilities,Adults,Learning Disability 18 - 64,Income,Client Contribution - Personal Budget - DP,REDACTED PERSONAL DATA,SN6 ,16/02/2024,-12.08
125598347,Learning Disabilities,Adults,Learning Disability 18 - 64,Transfer Payments,Personal Budget - Direct Payments - Domiciliary Care,REDACTED PERSONAL DATA,SN6 ,16/02/2024,205.44
125598347,Learning Disabilities,Adults,Learning Disability 18 - 64,Transfer Payments,Personal Budget - Direct Payments - Domiciliary Care,REDACTED PERSONAL DATA,SN6 ,16/02/2024,180.36
125598347,Learning Disabilities,Adults,Learning Disability 18 - 64,Income,Client Contribution - Personal Budget - DP,REDACTED PERSONAL DATA,SN6 ,16/02/2024,-22.96
125598347,Learning Disabilities,Adults,Learning Disability 18 - 64,Income,Client Contribution - Personal Budget - DP,REDACTED PERSONAL DATA,SN6 ,16/02/2024,-25.28
125974233,Traded Services,"Education, Inclusion and Skills",Plas Pencelli Outdoor Education Centre,Supplies and Services,Materials,CASTELL HOWELL FOODS LIMITED,SA14,21/02/2024,980.11
125974233,Traded Services,"Education, Inclusion and Skills",Plas Pencelli Outdoor Education Centre,Supplies and Services,Materials,CASTELL HOWELL FOODS LIMITED,SA14,21/02/2024,438.61
125198235,Learning Disabilities,Adults,Learning Disability 18 - 64,Income,Client Contribution - Supported Living,CATHEDRAL HOMES,GL1 ,14/02/2024,-118.40
125198235,Learning Disabilities,Adults,Learning Disability 18 - 64,Income,Client Contribution - Supported Living,CATHEDRAL HOMES,GL1 ,14/02/2024,-45.28
125198235,Learning Disabilities,Adults,Learning Disability 18 - 64,3rd Party Payments,Supported Lodgings (Childrens)/Supported Living (Adults),CATHEDRAL HOMES,GL1 ,14/02/2024,"1,706.28"
125198235,Learning Disabilities,Adults,Learning Disability 18 - 64,Income,Client Contribution - Supported Living,CATHEDRAL HOMES,GL1 ,14/02/2024,-17.92
125198235,Learning Disabilities,Adults,Learning Disability 18 - 64,3rd Party Payments,Supported Lodgings (Childrens)/Supported Living (Adults),CATHEDRAL HOMES,GL1 ,14/02/2024,"2,325.00"
125198235,Learning Disabilities,Adults,Learning Disability 18 - 64,3rd Party Payments,Supported Lodgings (Childrens)/Supported Living (Adults),CATHEDRAL HOMES,GL1 ,14/02/2024,"3,225.00"
125198235,Learning Disabilities,Adults,Learning Disability 18 - 64,3rd Party Payments,Supported Lodgings (Childrens)/Supported Living (Adults),CATHEDRAL HOMES,GL1 ,14/02/2024,675.00
125198235,Learning Disabilities,Adults,Learning Disability 18 - 64,3rd Party Payments,Supported Lodgings (Childrens)/Supported Living (Adults),CATHEDRAL HOMES,GL1 ,14/02/2024,"4,462.52"
125113234,Learning Disabilities,Adults,Learning Disability 18 - 64,3rd Party Payments,Supported Accommodation Scheme,REDACTED PERSONAL DATA,SN6 ,21/02/2024,"1,480.00"
125113234,Learning Disabilities,Adults,Learning Disability 18 - 64,3rd Party Payments,Supported Accommodation Scheme,REDACTED PERSONAL DATA,SN6 ,21/02/2024,"2,280.00"
124361233,Legal Services,Legal and Democracy,Committees,Supplies and Services,Services,REDACTED PERSONAL DATA,CF36,09/02/2024,800.00
123767233,Physical Support,Adults,Physical Support 65 and over,3rd Party Payments,Personal Budget - Domiciliary care,CELTIC CARE SERVICES LTD,SN15,05/02/2024,"1,632.70"
123767233,Mental Health,Adults,Mental Health 65 and over,3rd Party Payments,Personal Budget - Domiciliary care,CELTIC CARE SERVICES LTD,SN15,05/02/2024,653.08
126753233,Public Health,Public Health,Child 0-19 Public Health Programmes,3rd Party Payments,Contract Payments,CHAMELEON PDE LTD,CA6 ,23/02/2024,"4,000.00"
125498233,Public Health,Public Health,DAAT,3rd Party Payments,Contract Payments,CHANGE GROW LIVE SERVICES LTD,BN1 ,16/02/2024,"15,416.67"
127045233,Public Health,Public Health,Supplementary SMTR Grant,3rd Party Payments,Contract Payments,CHANGE GROW LIVE SERVICES LTD,BN1 ,26/02/2024,"61,560.66"
125499233,Public Health,Public Health,DAAT,3rd Party Payments,Contract Payments,CHANGE GROW LIVE SERVICES LTD,BN1 ,16/02/2024,"458,961.32"
125497233,Public Health,Public Health,Supplementary SMTR Grant,3rd Party Payments,Contract Payments,CHANGE GROW LIVE SERVICES LTD,BN1 ,16/02/2024,"5,000.00"
124016233,Streetsmart,Streetsmart,Waterside Canteen,Supplies and Services,Confectionary,CHAPPLE & JENKINS LTD,BS15,07/02/2024,497.64
125366233,Streetsmart,Streetsmart,Waterside Canteen,Supplies and Services,Confectionary,CHAPPLE & JENKINS LTD,BS15,16/02/2024,46.68
125366233,Streetsmart,Streetsmart,Waterside Canteen,Supplies and Services,Confectionary,CHAPPLE & JENKINS LTD,BS15,16/02/2024,922.22
124016233,Streetsmart,Streetsmart,Waterside Canteen,Supplies and Services,Confectionary,CHAPPLE & JENKINS LTD,BS15,07/02/2024,35.52
125146233,Other Repairs,Repairs,Unallocated job costs from OPEN system,Premises Costs,Maintenance - Buildings,CHARLES HARDING ESTATE AGENTS LIMITED,SN1 ,14/02/2024,30.00
123518256,Other Repairs,Repairs,Unallocated job costs from OPEN system,Premises Costs,Maintenance - Buildings,CHARLES HARDING ESTATE AGENTS LIMITED,SN1 ,02/02/2024,30.00
125338233,Homelessness and Travellers,Housing Services,Homelessness Prevention,Transfer Payments,Payment of Costs,CHARLES HOPES HOLDINGS LIMITED,SO15,16/02/2024,"66,450.00"
126514235,Lydiard Park,Culture & Heritage,Lydiard : Hotel Operations,Supplies and Services,Food,CHARLES SAUNDERS LTD,BS37,23/02/2024,486.14
124022233,Streetsmart,Streetsmart,Waterside Canteen,Supplies and Services,Materials,CHARLES SAUNDERS LTD,BS37,07/02/2024,11.18
123933233,Lydiard Park,Culture & Heritage,Lydiard : Hotel Operations,Supplies and Services,Materials,CHARLES SAUNDERS LTD,BS37,07/02/2024,312.80
123933233,Lydiard Park,Culture & Heritage,Lydiard : Hotel Operations,Supplies and Services,Food,CHARLES SAUNDERS LTD,BS37,07/02/2024,226.69
124022233,Streetsmart,Streetsmart,Waterside Canteen,Supplies and Services,Food,CHARLES SAUNDERS LTD,BS37,07/02/2024,533.32
126514235,Lydiard Park,Culture & Heritage,Lydiard : Hotel Operations,Supplies and Services,Food,CHARLES SAUNDERS LTD,BS37,23/02/2024,119.36
124022233,Streetsmart,Streetsmart,Waterside Canteen,Supplies and Services,Confectionary,CHARLES SAUNDERS LTD,BS37,07/02/2024,25.04
124916233,Business Development,Supervision & Management,Personnel &Performance,Employees,Training,CHARTERED INSTITUTE OF HOUSING,CV4 ,14/02/2024,"2,250.00"
124829233,Early Years Block,Dedicated Schools Grant (DSG),Free Nursery Education Commissioning - three & four  year olds,3rd Party Payments,Contracts - Child Care,REDACTED PERSONAL DATA,SN4 ,14/02/2024,"1,386.00"
124896240,Early Years Block,Dedicated Schools Grant (DSG),Free Nursery Education Commissioning - two year olds,3rd Party Payments,Contracts - Child Care,CHILD BASE NURSERIES,MK16,14/02/2024,"1,911.47"
124896239,Early Years Block,Dedicated Schools Grant (DSG),Free Nursery Education Commissioning - three & four  year olds,3rd Party Payments,Contracts - Child Care,CHILD BASE NURSERIES,MK16,14/02/2024,"25,956.30"
123517249,Responsive Repairs,Repairs,Responsive Repairs,3rd Party Payments,Contract Payments,CHILD SCAFFOLDING LTD,SN1 ,02/02/2024,"2,250.00"
123427251,Responsive Repairs,Repairs,Responsive Repairs,3rd Party Payments,Contract Payments,CHILD SCAFFOLDING LTD,SN1 ,02/02/2024,"1,120.00"
123427251,Responsive Repairs,Repairs,Responsive Repairs,3rd Party Payments,Contract Payments,CHILD SCAFFOLDING LTD,SN1 ,02/02/2024,860.00
123427250,Responsive Repairs,Repairs,Responsive Repairs,3rd Party Payments,Contract Payments,CHILD SCAFFOLDING LTD,SN1 ,02/02/2024,276.00
126588233,Responsive Repairs,Repairs,Responsive Repairs,3rd Party Payments,Contract Payments,CHILD SCAFFOLDING LTD,SN1 ,23/02/2024,195.00
123427251,Responsive Repairs,Repairs,Responsive Repairs,3rd Party Payments,Contract Payments,CHILD SCAFFOLDING LTD,SN1 ,02/02/2024,580.00
123427250,Responsive Repairs,Repairs,Responsive Repairs,3rd Party Payments,Contract Payments,CHILD SCAFFOLDING LTD,SN1 ,02/02/2024,262.40
123427251,Responsive Repairs,Repairs,Responsive Repairs,3rd Party Payments,Contract Payments,CHILD SCAFFOLDING LTD,SN1 ,02/02/2024,520.00
123427250,Responsive Repairs,Repairs,Responsive Repairs,3rd Party Payments,Contract Payments,CHILD SCAFFOLDING LTD,SN1 ,02/02/2024,484.00
125385249,Responsive Repairs,Repairs,Responsive Repairs,3rd Party Payments,Contract Payments,CHILD SCAFFOLDING LTD,SN1 ,16/02/2024,580.00
125385250,Responsive Repairs,Repairs,Responsive Repairs,3rd Party Payments,Contract Payments,CHILD SCAFFOLDING LTD,SN1 ,16/02/2024,920.00
125385249,Responsive Repairs,Repairs,Responsive Repairs,3rd Party Payments,Contract Payments,CHILD SCAFFOLDING LTD,SN1 ,16/02/2024,820.00
125385249,Responsive Repairs,Repairs,Responsive Repairs,3rd Party Payments,Contract Payments,CHILD SCAFFOLDING LTD,SN1 ,16/02/2024,480.00
125385249,Responsive Repairs,Repairs,Responsive Repairs,3rd Party Payments,Contract Payments,CHILD SCAFFOLDING LTD,SN1 ,16/02/2024,"1,520.00"
125385250,Responsive Repairs,Repairs,Responsive Repairs,3rd Party Payments,Contract Payments,CHILD SCAFFOLDING LTD,SN1 ,16/02/2024,480.00
125385249,Responsive Repairs,Repairs,Responsive Repairs,3rd Party Payments,Contract Payments,CHILD SCAFFOLDING LTD,SN1 ,16/02/2024,"1,640.00"
126639233,Responsive Repairs,Repairs,Responsive Repairs,3rd Party Payments,Contract Payments,CHILD SCAFFOLDING LTD,SN1 ,23/02/2024,195.00
125385250,Responsive Repairs,Repairs,Responsive Repairs,3rd Party Payments,Contract Payments,CHILD SCAFFOLDING LTD,SN1 ,16/02/2024,460.00
126639233,Responsive Repairs,Repairs,Responsive Repairs,3rd Party Payments,Contract Payments,CHILD SCAFFOLDING LTD,SN1 ,23/02/2024,130.00
126588233,Responsive Repairs,Repairs,Responsive Repairs,3rd Party Payments,Contract Payments,CHILD SCAFFOLDING LTD,SN1 ,23/02/2024,65.00
123427250,Responsive Repairs,Repairs,Responsive Repairs,3rd Party Payments,Contract Payments,CHILD SCAFFOLDING LTD,SN1 ,02/02/2024,"2,347.00"
126639233,Responsive Repairs,Repairs,Responsive Repairs,3rd Party Payments,Contract Payments,CHILD SCAFFOLDING LTD,SN1 ,23/02/2024,260.00
126588233,Responsive Repairs,Repairs,Responsive Repairs,3rd Party Payments,Contract Payments,CHILD SCAFFOLDING LTD,SN1 ,23/02/2024,130.00
123427251,Responsive Repairs,Repairs,Responsive Repairs,3rd Party Payments,Contract Payments,CHILD SCAFFOLDING LTD,SN1 ,02/02/2024,"1,640.00"
123427251,Responsive Repairs,Repairs,Responsive Repairs,3rd Party Payments,Contract Payments,CHILD SCAFFOLDING LTD,SN1 ,02/02/2024,440.00
126639233,Responsive Repairs,Repairs,Responsive Repairs,3rd Party Payments,Contract Payments,CHILD SCAFFOLDING LTD,SN1 ,23/02/2024,65.00
125385249,Responsive Repairs,Repairs,Responsive Repairs,3rd Party Payments,Contract Payments,CHILD SCAFFOLDING LTD,SN1 ,16/02/2024,"1,220.00"
125385249,Responsive Repairs,Repairs,Responsive Repairs,3rd Party Payments,Contract Payments,CHILD SCAFFOLDING LTD,SN1 ,16/02/2024,"1,120.00"
124172233,Social Care,Children & Families,Looked After Children Service,3rd Party Payments,Personal Needs,CHILDREN'S CONTACT SERVICES LTD,BS9 ,07/02/2024,903.00
127024233,Social Care,Children & Families,Children's Resource and Home Finding Team,3rd Party Payments,Parent & Child Placements,REDACTED PERSONAL DATA,B60 ,28/02/2024,"5,675.59"
127024234,Social Care,Children & Families,Children's Resource and Home Finding Team,3rd Party Payments,Parent & Child Placements,REDACTED PERSONAL DATA,B60 ,28/02/2024,"4,697.04"
126918233,Parking & Bus lanes,Highway Operations and Car Parking,Street Parking,Supplies and Services,Fees,CHIPSIDE LTD,SN15,26/02/2024,911.40
125063265,High Needs Block,Dedicated Schools Grant (DSG),SEN Resourcing Assessment Panel,3rd Party Payments,Top up funding - Maintained providers Pre 16,CHISELDON PRIMARY SCHOOL,SN4 ,14/02/2024,"1,231.25"
124744234,Schools - Primary,Dedicated Schools Grant (DSG),Primary School Budgets,3rd Party Payments,Mainstream Delegated Funding,CHISELDON PRIMARY SCHOOL,SN4 ,14/02/2024,"71,288.00"
124754239,DSG Other Funding,Dedicated Schools Grant (DSG),DFE Additional Grants,3rd Party Payments,Payment of Pupil Premium to school,CHISELDON PRIMARY SCHOOL,SN4 ,14/02/2024,"5,441.00"
124518243,Learning Disabilities,Adults,Learning Disability 18 - 64,Income,Client Contribution - Residential,CHOSEN CARE LTD,GL3 ,09/02/2024,-779.20
124518243,Learning Disabilities,Adults,Learning Disability 18 - 64,3rd Party Payments,Residential Care,CHOSEN CARE LTD,GL3 ,09/02/2024,"7,631.68"
124518243,Learning Disabilities,Adults,Learning Disability 18 - 64,3rd Party Payments,Residential Care,CHOSEN CARE LTD,GL3 ,09/02/2024,"7,639.52"
124518243,Learning Disabilities,Adults,Learning Disability 18 - 64,3rd Party Payments,Residential Care,CHOSEN CARE LTD,GL3 ,09/02/2024,"7,802.16"
124518243,Learning Disabilities,Adults,Learning Disability 18 - 64,Income,Client Contribution - Residential,CHOSEN CARE LTD,GL3 ,09/02/2024,-400.48
126930233,Responsive Repairs,Repairs,Responsive Repairs,3rd Party Payments,Contract Payments,CHRIS WHEELER CONSTRUCTION LTD,SN8 ,26/02/2024,"2,017.76"
126929233,Responsive Repairs,Repairs,Responsive Repairs,3rd Party Payments,Contract Payments,CHRIS WHEELER CONSTRUCTION LTD,SN8 ,26/02/2024,"1,268.11"
126928233,Responsive Repairs,Repairs,Responsive Repairs,3rd Party Payments,Contract Payments,CHRIS WHEELER CONSTRUCTION LTD,SN8 ,26/02/2024,598.08
126580233,Responsive Repairs,Repairs,Responsive Repairs,3rd Party Payments,Contract Payments,CHRIS WHEELER CONSTRUCTION LTD,SN8 ,23/02/2024,"1,712.04"
126141245,Responsive Repairs,Repairs,Responsive Repairs,3rd Party Payments,Contract Payments,CHRIS WHEELER CONSTRUCTION LTD,SN8 ,21/02/2024,"1,735.13"
126141237,Responsive Repairs,Repairs,Responsive Repairs,3rd Party Payments,Contract Payments,CHRIS WHEELER CONSTRUCTION LTD,SN8 ,21/02/2024,490.34
127522233,Responsive Repairs,Repairs,Responsive Repairs,3rd Party Payments,Contract Payments,CHRIS WHEELER CONSTRUCTION LTD,SN8 ,28/02/2024,"1,051.63"
126927233,Responsive Repairs,Repairs,Responsive Repairs,3rd Party Payments,Contract Payments,CHRIS WHEELER CONSTRUCTION LTD,SN8 ,26/02/2024,"2,311.82"
126932233,Responsive Repairs,Repairs,Responsive Repairs,3rd Party Payments,Contract Payments,CHRIS WHEELER CONSTRUCTION LTD,SN8 ,26/02/2024,"2,926.24"
126141236,Responsive Repairs,Repairs,Responsive Repairs,3rd Party Payments,Contract Payments,CHRIS WHEELER CONSTRUCTION LTD,SN8 ,21/02/2024,737.80
127520233,Responsive Repairs,Repairs,Responsive Repairs,3rd Party Payments,Contract Payments,CHRIS WHEELER CONSTRUCTION LTD,SN8 ,28/02/2024,"1,735.13"
127518233,Responsive Repairs,Repairs,Responsive Repairs,3rd Party Payments,Contract Payments,CHRIS WHEELER CONSTRUCTION LTD,SN8 ,28/02/2024,"2,300.40"
126922234,Responsive Repairs,Repairs,Responsive Repairs,3rd Party Payments,Contract Payments,CHRIS WHEELER CONSTRUCTION LTD,SN8 ,26/02/2024,862.08
126141235,Responsive Repairs,Repairs,Responsive Repairs,3rd Party Payments,Contract Payments,CHRIS WHEELER CONSTRUCTION LTD,SN8 ,21/02/2024,"1,460.22"
126141238,Responsive Repairs,Repairs,Responsive Repairs,3rd Party Payments,Contract Payments,CHRIS WHEELER CONSTRUCTION LTD,SN8 ,21/02/2024,939.84
127523233,Responsive Repairs,Repairs,Responsive Repairs,3rd Party Payments,Contract Payments,CHRIS WHEELER CONSTRUCTION LTD,SN8 ,28/02/2024,"2,630.61"
126931233,Responsive Repairs,Repairs,Responsive Repairs,3rd Party Payments,Contract Payments,CHRIS WHEELER CONSTRUCTION LTD,SN8 ,26/02/2024,"2,328.66"
126920233,Responsive Repairs,Repairs,Responsive Repairs,3rd Party Payments,Contract Payments,CHRIS WHEELER CONSTRUCTION LTD,SN8 ,26/02/2024,"1,541.10"
126933233,Responsive Repairs,Repairs,Responsive Repairs,3rd Party Payments,Contract Payments,CHRIS WHEELER CONSTRUCTION LTD,SN8 ,26/02/2024,"2,009.42"
126926233,Responsive Repairs,Repairs,Responsive Repairs,3rd Party Payments,Contract Payments,CHRIS WHEELER CONSTRUCTION LTD,SN8 ,26/02/2024,"1,026.95"
126923233,Responsive Repairs,Repairs,Responsive Repairs,3rd Party Payments,Contract Payments,CHRIS WHEELER CONSTRUCTION LTD,SN8 ,26/02/2024,"1,452.48"
126141244,Responsive Repairs,Repairs,Responsive Repairs,3rd Party Payments,Contract Payments,CHRIS WHEELER CONSTRUCTION LTD,SN8 ,21/02/2024,585.17
126924233,Responsive Repairs,Repairs,Responsive Repairs,3rd Party Payments,Contract Payments,CHRIS WHEELER CONSTRUCTION LTD,SN8 ,26/02/2024,"2,512.38"
126141240,Responsive Repairs,Repairs,Responsive Repairs,3rd Party Payments,Contract Payments,CHRIS WHEELER CONSTRUCTION LTD,SN8 ,21/02/2024,653.98
126579233,Responsive Repairs,Repairs,Responsive Repairs,3rd Party Payments,Contract Payments,CHRIS WHEELER CONSTRUCTION LTD,SN8 ,23/02/2024,"2,249.05"
126578233,Responsive Repairs,Repairs,Responsive Repairs,3rd Party Payments,Contract Payments,CHRIS WHEELER CONSTRUCTION LTD,SN8 ,23/02/2024,"3,619.84"
127521233,Responsive Repairs,Repairs,Responsive Repairs,3rd Party Payments,Contract Payments,CHRIS WHEELER CONSTRUCTION LTD,SN8 ,28/02/2024,"1,535.63"
127519233,Responsive Repairs,Repairs,Responsive Repairs,3rd Party Payments,Contract Payments,CHRIS WHEELER CONSTRUCTION LTD,SN8 ,28/02/2024,"1,192.95"
126141242,Responsive Repairs,Repairs,Responsive Repairs,3rd Party Payments,Contract Payments,CHRIS WHEELER CONSTRUCTION LTD,SN8 ,21/02/2024,"2,176.96"
126141234,Responsive Repairs,Repairs,Responsive Repairs,3rd Party Payments,Contract Payments,CHRIS WHEELER CONSTRUCTION LTD,SN8 ,21/02/2024,916.64
125598400,Physical Support,Adults,Physical Support 18 - 64,Income,Client Contribution - Personal Budget - DP,REDACTED PERSONAL DATA,SN25,16/02/2024,-147.40
125598400,Physical Support,Adults,Physical Support 18 - 64,Transfer Payments,Personal Budget - Direct Payments - Domiciliary Care,REDACTED PERSONAL DATA,SN25,16/02/2024,952.56
124659234,Social Care,Children & Families,Placement Adoption Service,3rd Party Payments,Adoption Allowances,REDACTED PERSONAL DATA,SN6 ,12/02/2024,"1,055.64"
127172233,Social Care,Children & Families,Placement Adoption Service,3rd Party Payments,Adoption Allowances,REDACTED PERSONAL DATA,SN6 ,26/02/2024,"1,055.64"
127171233,Social Care,Children & Families,Placement Adoption Service,3rd Party Payments,Adoption Allowances,REDACTED PERSONAL DATA,SN6 ,26/02/2024,699.84
124659233,Social Care,Children & Families,Placement Adoption Service,3rd Party Payments,Adoption Allowances,REDACTED PERSONAL DATA,SN6 ,12/02/2024,699.84
124340233,Social Care,Children & Families,Children's Resource and Home Finding Team,3rd Party Payments,Independent Fostering Agency Placements,CHRYSALISCARE LTD,DA7 ,09/02/2024,"5,881.01"
124339233,Social Care,Children & Families,Children's Resource and Home Finding Team,3rd Party Payments,Independent Fostering Agency Placements,CHRYSALISCARE LTD,DA7 ,09/02/2024,"6,589.67"
124518274,Physical Support,Adults,Physical Support 65 and over,Income,Client Contribution - Nursing,CHURCH VIEW,SN3 ,09/02/2024,98.75
124518274,Physical Support,Adults,Physical Support 65 and over,Income,Client Contribution - Nursing,CHURCH VIEW,SN3 ,09/02/2024,-800.96
124518274,Physical Support,Adults,Physical Support 18 - 64,3rd Party Payments,Nursing Care,CHURCH VIEW,SN3 ,09/02/2024,"2,988.96"
124518274,Memory & Cognition,Adults,Support for Memory and Cognition 65 and over,3rd Party Payments,Nursing Care,CHURCH VIEW,SN3 ,09/02/2024,"-3,746.16"
124518274,Physical Support,Adults,Physical Support 65 and over,3rd Party Payments,Nursing Care,CHURCH VIEW,SN3 ,09/02/2024,"2,355.30"
124518274,Physical Support,Adults,Physical Support 65 and over,3rd Party Payments,Nursing Care,CHURCH VIEW,SN3 ,09/02/2024,409.62
124518274,Physical Support,Adults,Physical Support 18 - 64,Income,Client Contribution - Nursing,CHURCH VIEW,SN3 ,09/02/2024,-744.56
124518274,Memory & Cognition,Adults,Support for Memory and Cognition 65 and over,Income,Client Contribution - Nursing,CHURCH VIEW,SN3 ,09/02/2024,691.20
124518274,Memory & Cognition,Adults,Support for Memory and Cognition 65 and over,Income,Client Contribution - Nursing,CHURCH VIEW,SN3 ,09/02/2024,280.61
124518274,Physical Support,Adults,Physical Support 65 and over,Income,Client Contribution - Nursing,CHURCH VIEW,SN3 ,09/02/2024,"-1,080.04"
124518274,Physical Support,Adults,Physical Support 65 and over,Income,Client Contribution - Nursing,CHURCH VIEW,SN3 ,09/02/2024,-491.76
124518274,Physical Support,Adults,Physical Support 65 and over,3rd Party Payments,Nursing Care,CHURCH VIEW,SN3 ,09/02/2024,"1,024.04"
124518274,Physical Support,Adults,Physical Support 65 and over,3rd Party Payments,Nursing Care,CHURCH VIEW,SN3 ,09/02/2024,"-3,746.16"
124518274,Physical Support,Adults,Physical Support 65 and over,3rd Party Payments,Nursing Care,CHURCH VIEW,SN3 ,09/02/2024,-535.17
124518274,Physical Support,Adults,Physical Support 65 and over,3rd Party Payments,Nursing Care,CHURCH VIEW,SN3 ,09/02/2024,"2,867.32"
124518274,Physical Support,Adults,Physical Support 65 and over,Income,Client Contribution - Nursing,CHURCH VIEW,SN3 ,09/02/2024,-691.20
124518274,Physical Support,Adults,Physical Support 65 and over,Income,Client Contribution - Nursing,CHURCH VIEW,SN3 ,09/02/2024,-236.79
124518274,Physical Support,Adults,Physical Support 65 and over,3rd Party Payments,Nursing Care,CHURCH VIEW,SN3 ,09/02/2024,"3,746.16"
124518274,Physical Support,Adults,Physical Support 65 and over,3rd Party Payments,Nursing Care,CHURCH VIEW,SN3 ,09/02/2024,"2,988.96"
124518274,Physical Support,Adults,Physical Support 65 and over,Income,Client Contribution - Nursing,CHURCH VIEW,SN3 ,09/02/2024,-98.74
124518274,Physical Support,Adults,Physical Support 65 and over,Income,Client Contribution - Nursing,CHURCH VIEW,SN3 ,09/02/2024,-930.44
124518274,Physical Support,Adults,Physical Support 65 and over,Income,Client Contribution - Nursing,CHURCH VIEW,SN3 ,09/02/2024,-763.24
124518274,Physical Support,Adults,Physical Support 65 and over,Income,Client Contribution - Nursing,CHURCH VIEW,SN3 ,09/02/2024,-741.88
124518274,Physical Support,Adults,Physical Support 65 and over,Income,Client Contribution - Nursing,CHURCH VIEW,SN3 ,09/02/2024,-172.80
124518274,Physical Support,Adults,Physical Support 65 and over,Income,Client Contribution - Nursing,CHURCH VIEW,SN3 ,09/02/2024,"2,107.68"
124518274,Physical Support,Adults,Physical Support 65 and over,Income,Client Contribution - Nursing,CHURCH VIEW,SN3 ,09/02/2024,-709.76
124518274,Physical Support,Adults,Physical Support 65 and over,Income,Client Contribution - Nursing,CHURCH VIEW,SN3 ,09/02/2024,-663.00
124518274,Physical Support,Adults,Physical Support 65 and over,Income,Client Contribution - Nursing,CHURCH VIEW,SN3 ,09/02/2024,-567.77
124518274,Physical Support,Adults,Physical Support 18 - 64,Income,Client Contribution - Nursing,CHURCH VIEW,SN3 ,09/02/2024,-552.52
124518274,Memory & Cognition,Adults,Support for Memory and Cognition 65 and over,3rd Party Payments,Nursing Care,CHURCH VIEW,SN3 ,09/02/2024,"-1,471.71"
124518274,Physical Support,Adults,Physical Support 65 and over,3rd Party Payments,Nursing Care,CHURCH VIEW,SN3 ,09/02/2024,"-3,344.79"
124518274,Physical Support,Adults,Physical Support 65 and over,3rd Party Payments,Nursing Care,CHURCH VIEW,SN3 ,09/02/2024,"6,496.00"
124518274,Physical Support,Adults,Physical Support 18 - 64,3rd Party Payments,Nursing Care,CHURCH VIEW,SN3 ,09/02/2024,"2,867.32"
124518274,Physical Support,Adults,Physical Support 65 and over,Income,Client Contribution - Nursing,CHURCH VIEW,SN3 ,09/02/2024,-979.88
124518274,Physical Support,Adults,Physical Support 65 and over,Income,Client Contribution - Nursing,CHURCH VIEW,SN3 ,09/02/2024,-984.92
124518274,Physical Support,Adults,Physical Support 65 and over,Income,Client Contribution - Nursing,CHURCH VIEW,SN3 ,09/02/2024,691.20
124518274,Physical Support,Adults,Physical Support 65 and over,3rd Party Payments,Nursing Care,CHURCH VIEW,SN3 ,09/02/2024,"-4,456.04"
124518274,Physical Support,Adults,Physical Support 65 and over,3rd Party Payments,Nursing Care,CHURCH VIEW,SN3 ,09/02/2024,"5,863.96"
124518274,Physical Support,Adults,Physical Support 65 and over,Income,Client Contribution - Nursing,CHURCH VIEW,SN3 ,09/02/2024,617.15
124518293,Learning Disabilities,Adults,Learning Disability 18 - 64,Income,Client Contribution - Residential,CIDERSTONE HOUSE,SN25,09/02/2024,-438.80
124518293,Learning Disabilities,Adults,Learning Disability 18 - 64,Income,Client Contribution - Residential,CIDERSTONE HOUSE,SN25,09/02/2024,-483.20
124518293,Learning Disabilities,Adults,Learning Disability 18 - 64,Income,Client Contribution - Residential,CIDERSTONE HOUSE,SN25,09/02/2024,-788.80
124518293,Learning Disabilities,Adults,Learning Disability 18 - 64,3rd Party Payments,Residential Care,CIDERSTONE HOUSE,SN25,09/02/2024,"11,782.40"
124518293,Learning Disabilities,Adults,Learning Disability 18 - 64,3rd Party Payments,Residential Care,CIDERSTONE HOUSE,SN25,09/02/2024,"12,163.20"
125063375,High Needs Block,Dedicated Schools Grant (DSG),Post 16 - New Responsibilties,3rd Party Payments,FE Colleges,CIRENCESTER COLLEGE,GL7 ,14/02/2024,"6,958.50"
126153233,Homelessness and Travellers,Housing Services,Private Sector Landlords,Transfer Payments,Payment of Costs,REDACTED PERSONAL DATA,SN5 ,23/02/2024,575.00
125361233,Licencing,Regulatory Services,Licensing,Supplies and Services,Equipment,CIRRUS RESEARCH PLC,YO14,16/02/2024,729.20
123536234,Legal Services,Legal and Democracy,Committees,Supplies and Services,Services,CIVICA UK LTD,SE1 ,02/02/2024,"3,999.01"
125482233,Planning & Regulatory,Strategic Planning,Economy & Development Management,Employees,Temporary / Agency - by Accounts Payable,REDACTED PERSONAL DATA,BS37,16/02/2024,"14,070.00"
124795233,Early Years Block,Dedicated Schools Grant (DSG),Free Nursery Education Commissioning - two year olds,3rd Party Payments,Contracts - Child Care,REDACTED PERSONAL DATA,SN2 ,14/02/2024,509.52
124794233,Early Years Block,Dedicated Schools Grant (DSG),Free Nursery Education Commissioning - three & four  year olds,3rd Party Payments,Contracts - Child Care,REDACTED PERSONAL DATA,SN2 ,14/02/2024,644.16
124603233,Care Management & Safeguarding,Adults,Swindon Safeguarding Partnershiph,Supplies and Services,Fees,CLARK WARD ASSOCIATES LTD,SN1 ,09/02/2024,"1,230.00"
125492233,Education,"Education, Inclusion and Skills",Inclusion and Achievement Senior Management Team,Supplies and Services,Fees,CLARKE WILLMOTT LLP,TA1 ,16/02/2024,"4,000.00"
126939233,Property Management,Property,Property Assets,Supplies and Services,Fees,CLARKE WILLMOTT LLP,TA1 ,26/02/2024,"5,164.40"
123427244,Responsive Repairs,Repairs,Responsive Repairs,3rd Party Payments,Contract Payments,CLOSOMAT LIMITED,M33 ,02/02/2024,515.00
124518267,Physical Support,Adults,Physical Support 65 and over,3rd Party Payments,Residential Care,COATE WATER CARE CO LTD,SN3 ,09/02/2024,"1,126.45"
124518267,Physical Support,Adults,Physical Support 65 and over,Income,Client Contribution - Residential,COATE WATER CARE CO LTD,SN3 ,09/02/2024,-760.96
124518267,Physical Support,Adults,Physical Support 65 and over,Income,Client Contribution - Residential,COATE WATER CARE CO LTD,SN3 ,09/02/2024,-727.20
124518267,Memory & Cognition,Adults,Support for Memory and Cognition 65 and over,3rd Party Payments,Residential Care,COATE WATER CARE CO LTD,SN3 ,09/02/2024,"1,024.04"
124518267,Physical Support,Adults,Physical Support 65 and over,Income,Client Contribution - Residential,COATE WATER CARE CO LTD,SN3 ,09/02/2024,-996.80
124518267,Physical Support,Adults,Physical Support 18 - 64,3rd Party Payments,Residential Care,COATE WATER CARE CO LTD,SN3 ,09/02/2024,"3,942.86"
124518267,Physical Support,Adults,Physical Support 65 and over,Income,Client Contribution - Residential,COATE WATER CARE CO LTD,SN3 ,09/02/2024,-201.22
124518267,Physical Support,Adults,Physical Support 65 and over,Income,Client Contribution - Residential,COATE WATER CARE CO LTD,SN3 ,09/02/2024,244.39
124518267,Physical Support,Adults,Physical Support 65 and over,Income,Client Contribution - Residential,COATE WATER CARE CO LTD,SN3 ,09/02/2024,-649.98
124518267,Physical Support,Adults,Physical Support 65 and over,3rd Party Payments,Residential Care,COATE WATER CARE CO LTD,SN3 ,09/02/2024,354.94
124518267,Physical Support,Adults,Physical Support 65 and over,3rd Party Payments,Residential Care,COATE WATER CARE CO LTD,SN3 ,09/02/2024,-139.29
124518267,Physical Support,Adults,Physical Support 65 and over,Income,Client Contribution - Residential,COATE WATER CARE CO LTD,SN3 ,09/02/2024,"-1,040.80"
124518267,Physical Support,Adults,Physical Support 65 and over,Income,Client Contribution - Residential,COATE WATER CARE CO LTD,SN3 ,09/02/2024,-691.20
124518267,Physical Support,Adults,Physical Support 65 and over,Income,Client Contribution - Residential,COATE WATER CARE CO LTD,SN3 ,09/02/2024,-652.56
124518267,Physical Support,Adults,Physical Support 65 and over,Income,Client Contribution - Residential,COATE WATER CARE CO LTD,SN3 ,09/02/2024,-933.04
124518267,Physical Support,Adults,Physical Support 65 and over,Income,Client Contribution - Residential,COATE WATER CARE CO LTD,SN3 ,09/02/2024,"-1,175.40"
124518267,Physical Support,Adults,Physical Support 65 and over,Income,Client Contribution - Residential,COATE WATER CARE CO LTD,SN3 ,09/02/2024,"-1,328.68"
124518267,Physical Support,Adults,Physical Support 65 and over,Income,Client Contribution - Residential,COATE WATER CARE CO LTD,SN3 ,09/02/2024,-847.96
124518267,Physical Support,Adults,Physical Support 65 and over,Income,Client Contribution - Residential,COATE WATER CARE CO LTD,SN3 ,09/02/2024,-713.24
124518267,Physical Support,Adults,Physical Support 65 and over,3rd Party Payments,Residential Care,COATE WATER CARE CO LTD,SN3 ,09/02/2024,"1,024.04"
124518267,Physical Support,Adults,Physical Support 65 and over,Income,Client Contribution - Residential,COATE WATER CARE CO LTD,SN3 ,09/02/2024,-895.60
124518267,Mental Health,Adults,Mental Health 65 and over,Income,Client Contribution - Residential,COATE WATER CARE CO LTD,SN3 ,09/02/2024,592.46
124518267,Memory & Cognition,Adults,Support for Memory and Cognition 65 and over,Income,Client Contribution - Residential,COATE WATER CARE CO LTD,SN3 ,09/02/2024,"-1,043.68"
124518267,Memory & Cognition,Adults,Support for Memory and Cognition 65 and over,Income,Client Contribution - Residential,COATE WATER CARE CO LTD,SN3 ,09/02/2024,-352.48
124518267,Memory & Cognition,Adults,Support for Memory and Cognition 65 and over,3rd Party Payments,Residential Care,COATE WATER CARE CO LTD,SN3 ,09/02/2024,"2,867.32"
124518267,Physical Support,Adults,Physical Support 65 and over,3rd Party Payments,Residential Care,COATE WATER CARE CO LTD,SN3 ,09/02/2024,"2,988.96"
124518267,Physical Support,Adults,Physical Support 65 and over,3rd Party Payments,Residential Care,COATE WATER CARE CO LTD,SN3 ,09/02/2024,"-3,900.00"
124518267,Physical Support,Adults,Physical Support 65 and over,Income,Client Contribution - Residential,COATE WATER CARE CO LTD,SN3 ,09/02/2024,"2,280.92"
124518267,Physical Support,Adults,Physical Support 18 - 64,Income,Client Contribution - Residential,COATE WATER CARE CO LTD,SN3 ,09/02/2024,-416.56
124518267,Physical Support,Adults,Physical Support 18 - 64,3rd Party Payments,Residential Care,COATE WATER CARE CO LTD,SN3 ,09/02/2024,-330.52
124518267,Mental Health,Adults,Mental Health 65 and over,3rd Party Payments,Residential Care,COATE WATER CARE CO LTD,SN3 ,09/02/2024,"3,480.00"
124518267,Physical Support,Adults,Physical Support 18 - 64,3rd Party Payments,Residential Care,COATE WATER CARE CO LTD,SN3 ,09/02/2024,492.86
124518267,Physical Support,Adults,Physical Support 18 - 64,3rd Party Payments,Residential Care,COATE WATER CARE CO LTD,SN3 ,09/02/2024,"2,867.32"
124518267,Physical Support,Adults,Physical Support 18 - 64,Income,Client Contribution - Residential,COATE WATER CARE CO LTD,SN3 ,09/02/2024,-385.60
126698233,Physical Support,Adults,Physical Support 65 and over,3rd Party Payments,Personal Budget - Respite Care,COATE WATER CARE CO LTD,SN3 ,23/02/2024,"1,122.44"
124518267,Physical Support,Adults,Physical Support 65 and over,Income,Client Contribution - Residential,COATE WATER CARE CO LTD,SN3 ,09/02/2024,"-1,395.32"
124518267,Mental Health,Adults,Mental Health 65 and over,3rd Party Payments,Residential Care,COATE WATER CARE CO LTD,SN3 ,09/02/2024,"-2,252.89"
124518267,Physical Support,Adults,Physical Support 18 - 64,3rd Party Payments,Residential Care,COATE WATER CARE CO LTD,SN3 ,09/02/2024,"4,600.00"
124518267,Memory & Cognition,Adults,Support for Memory and Cognition 65 and over,Income,Client Contribution - Residential,COATE WATER CARE CO LTD,SN3 ,09/02/2024,-251.77
124518267,Physical Support,Adults,Physical Support 65 and over,Income,Client Contribution - Residential,COATE WATER CARE CO LTD,SN3 ,09/02/2024,"-1,434.76"
124518267,Physical Support,Adults,Physical Support 65 and over,Income,Client Contribution - Residential,COATE WATER CARE CO LTD,SN3 ,09/02/2024,-675.20
124518267,Physical Support,Adults,Physical Support 65 and over,Income,Client Contribution - Residential,COATE WATER CARE CO LTD,SN3 ,09/02/2024,-493.71
124518267,Physical Support,Adults,Physical Support 65 and over,3rd Party Payments,Residential Care,COATE WATER CARE CO LTD,SN3 ,09/02/2024,"4,400.00"
124518267,Physical Support,Adults,Physical Support 65 and over,3rd Party Payments,Residential Care,COATE WATER CARE CO LTD,SN3 ,09/02/2024,"2,867.32"
124518267,Mental Health,Adults,Mental Health 65 and over,3rd Party Payments,Residential Care,COATE WATER CARE CO LTD,SN3 ,09/02/2024,"2,867.32"
124518267,Physical Support,Adults,Physical Support 18 - 64,3rd Party Payments,Residential Care,COATE WATER CARE CO LTD,SN3 ,09/02/2024,-151.49
124518267,Physical Support,Adults,Physical Support 18 - 64,Income,Client Contribution - Residential,COATE WATER CARE CO LTD,SN3 ,09/02/2024,-234.11
124518235,Learning Disabilities,Adults,Learning Disability 18 - 64,3rd Party Payments,Residential Care,COCKLEBURY FARMHOUSE,SN15,09/02/2024,"10,364.00"
124518235,Learning Disabilities,Adults,Learning Disability 18 - 64,Income,Client Contribution - Residential,COCKLEBURY FARMHOUSE,SN15,09/02/2024,-425.60
124521233,Streetsmart,Streetsmart,Waste - Disposal,3rd Party Payments,Contract Payments,CODFORD BIOGAS LTD,NR7 ,09/02/2024,894.20
125679233,Town Centre,"Economy, Growth and Place",Fleming Way Improvement Scheme,Capital,Contractor Payments,COLAS LTD,B37 ,19/02/2024,"689,493.43"
125200234,Learning Disabilities,Adults,Learning Disability 18 - 64,3rd Party Payments,Supported Lodgings (Childrens)/Supported Living (Adults),COLLABORATIVE CARE SERVICES LTD,SN2 ,14/02/2024,"9,303.00"
125791233,Disabled Children,Children & Families,DCT Daytime Short Breaks,3rd Party Payments,Respite Care,COLLABORATIVE CARE SERVICES LTD,SN2 ,21/02/2024,"5,847.60"
125200234,Learning Disabilities,Adults,Learning Disability 18 - 64,3rd Party Payments,Supported Lodgings (Childrens)/Supported Living (Adults),COLLABORATIVE CARE SERVICES LTD,SN2 ,14/02/2024,"3,007.76"
125200234,Learning Disabilities,Adults,Learning Disability 18 - 64,3rd Party Payments,Supported Lodgings (Childrens)/Supported Living (Adults),COLLABORATIVE CARE SERVICES LTD,SN2 ,14/02/2024,"5,980.50"
125200234,Learning Disabilities,Adults,Learning Disability 18 - 64,3rd Party Payments,Supported Lodgings (Childrens)/Supported Living (Adults),COLLABORATIVE CARE SERVICES LTD,SN2 ,14/02/2024,"1,933.56"
125790233,Disabled Children,Children & Families,DCT Daytime Short Breaks,3rd Party Payments,Respite Care,COLLABORATIVE CARE SERVICES LTD,SN2 ,21/02/2024,"14,688.00"
125199235,Learning Disabilities,Adults,Learning Disability 18 - 64,Income,Client Contribution - Supported Living,COMMUNITY ACCESS NETWORK LTD,SN25,14/02/2024,-37.84
125199235,Learning Disabilities,Adults,Learning Disability 18 - 64,Income,Client Contribution - Supported Living,COMMUNITY ACCESS NETWORK LTD,SN25,14/02/2024,-103.68
125199235,Learning Disabilities,Adults,Learning Disability 18 - 64,Income,Client Contribution - Supported Living,COMMUNITY ACCESS NETWORK LTD,SN25,14/02/2024,-0.60
124512233,Learning Disabilities,Adults,Learning Disability 18 - 64,Income,Client Contribution - Residential,COMMUNITY ACCESS NETWORK LTD,SN25,09/02/2024,-483.20
125199235,Learning Disabilities,Adults,Learning Disability 18 - 64,3rd Party Payments,Supported Lodgings (Childrens)/Supported Living (Adults),COMMUNITY ACCESS NETWORK LTD,SN25,14/02/2024,"4,120.00"
125198234,Learning Disabilities,Adults,Learning Disability 65 and over,3rd Party Payments,Supported Lodgings (Childrens)/Supported Living (Adults),COMMUNITY ACCESS NETWORK LTD,SN25,14/02/2024,907.60
124512233,Learning Disabilities,Adults,Learning Disability 18 - 64,3rd Party Payments,Residential Care,COMMUNITY ACCESS NETWORK LTD,SN25,09/02/2024,"7,036.52"
125199235,Learning Disabilities,Adults,Learning Disability 18 - 64,3rd Party Payments,Supported Lodgings (Childrens)/Supported Living (Adults),COMMUNITY ACCESS NETWORK LTD,SN25,14/02/2024,"1,503.88"
125199235,Learning Disabilities,Adults,Learning Disability 18 - 64,Income,Client Contribution - Supported Living,COMMUNITY ACCESS NETWORK LTD,SN25,14/02/2024,-0.68
125199235,Learning Disabilities,Adults,Learning Disability 18 - 64,3rd Party Payments,Supported Lodgings (Childrens)/Supported Living (Adults),COMMUNITY ACCESS NETWORK LTD,SN25,14/02/2024,27.76
125199235,Learning Disabilities,Adults,Learning Disability 18 - 64,3rd Party Payments,Supported Lodgings (Childrens)/Supported Living (Adults),COMMUNITY ACCESS NETWORK LTD,SN25,14/02/2024,24.00
125199235,Learning Disabilities,Adults,Learning Disability 18 - 64,3rd Party Payments,Supported Lodgings (Childrens)/Supported Living (Adults),COMMUNITY ACCESS NETWORK LTD,SN25,14/02/2024,560.00
125199235,Learning Disabilities,Adults,Learning Disability 18 - 64,3rd Party Payments,Supported Lodgings (Childrens)/Supported Living (Adults),COMMUNITY ACCESS NETWORK LTD,SN25,14/02/2024,"1,360.00"
125041259,Social Care,Children & Families,Children's Resource and Home Finding Team,3rd Party Payments,Independent Fostering Agency Placements,COMMUNITY FOSTER CARE,GL1 ,14/02/2024,"10,416.62"
125041258,Social Care,Children & Families,Children's Resource and Home Finding Team,3rd Party Payments,Independent Fostering Agency Placements,COMMUNITY FOSTER CARE,GL1 ,14/02/2024,"4,058.21"
124518268,Learning Disabilities,Adults,Learning Disability 18 - 64,3rd Party Payments,Residential Care,COMMUNITY THERAPEUTIC SERVICES LTD,BS22,09/02/2024,"12,423.92"
123593233,Social Care,Children & Families,Children's Resource and Home Finding Team,3rd Party Payments,Residential Care,COMPASS CHILDREN'S HOMES LTD,LE7 ,02/02/2024,"31,276.83"
127494233,Social Care,Children & Families,Children's Resource and Home Finding Team,3rd Party Payments,Residential Care,COMPASS CHILDREN'S HOMES LTD,LE7 ,28/02/2024,"19,792.50"
123592233,Social Care,Children & Families,Children's Resource and Home Finding Team,3rd Party Payments,Residential Care,COMPASS CHILDREN'S HOMES LTD,LE7 ,02/02/2024,"21,157.50"
127033233,Social Care,Children & Families,Children's Resource and Home Finding Team,3rd Party Payments,Independent Fostering Agency Placements,COMPASS FOSTERING WEST LTD,LE7 ,28/02/2024,"5,487.38"
127028233,Social Care,Children & Families,Children's Resource and Home Finding Team,3rd Party Payments,Independent Fostering Agency Placements,COMPASS FOSTERING WEST LTD,LE7 ,28/02/2024,"3,229.73"
123894233,Social Care,Children & Families,Children's Resource and Home Finding Team,3rd Party Payments,Independent Fostering Agency Placements,COMPASS FOSTERING WEST LTD,LE7 ,07/02/2024,"3,222.45"
123899233,Social Care,Children & Families,Children's Resource and Home Finding Team,3rd Party Payments,Independent Fostering Agency Placements,COMPASS FOSTERING WEST LTD,LE7 ,07/02/2024,"5,822.73"
127030233,Social Care,Children & Families,Children's Resource and Home Finding Team,3rd Party Payments,Independent Fostering Agency Placements,COMPASS FOSTERING WEST LTD,LE7 ,28/02/2024,"3,384.59"
123897233,Social Care,Children & Families,Children's Resource and Home Finding Team,3rd Party Payments,Independent Fostering Agency Placements,COMPASS FOSTERING WEST LTD,LE7 ,07/02/2024,"3,618.01"
123901233,Social Care,Children & Families,Children's Resource and Home Finding Team,3rd Party Payments,Independent Fostering Agency Placements,COMPASS FOSTERING WEST LTD,LE7 ,07/02/2024,"3,852.99"
127027233,Social Care,Children & Families,Children's Resource and Home Finding Team,3rd Party Payments,Independent Fostering Agency Placements,COMPASS FOSTERING WEST LTD,LE7 ,28/02/2024,"3,014.55"
123898233,Social Care,Children & Families,Children's Resource and Home Finding Team,3rd Party Payments,Independent Fostering Agency Placements,COMPASS FOSTERING WEST LTD,LE7 ,07/02/2024,"3,401.63"
127035233,Social Care,Children & Families,Children's Resource and Home Finding Team,3rd Party Payments,Independent Fostering Agency Placements,COMPASS FOSTERING WEST LTD,LE7 ,28/02/2024,"3,604.41"
127029233,Social Care,Children & Families,Children's Resource and Home Finding Team,3rd Party Payments,Independent Fostering Agency Placements,COMPASS FOSTERING WEST LTD,LE7 ,28/02/2024,"3,544.38"
127026233,Social Care,Children & Families,Children's Resource and Home Finding Team,3rd Party Payments,Independent Fostering Agency Placements,COMPASS FOSTERING WEST LTD,LE7 ,28/02/2024,"3,014.55"
123903233,Social Care,Children & Families,Children's Resource and Home Finding Team,3rd Party Payments,Independent Fostering Agency Placements,COMPASS FOSTERING WEST LTD,LE7 ,07/02/2024,"3,852.99"
123900233,Social Care,Children & Families,Children's Resource and Home Finding Team,3rd Party Payments,Independent Fostering Agency Placements,COMPASS FOSTERING WEST LTD,LE7 ,07/02/2024,"5,885.22"
123892235,Social Care,Children & Families,Children's Resource and Home Finding Team,3rd Party Payments,Independent Fostering Agency Placements,COMPASS FOSTERING WEST LTD,LE7 ,07/02/2024,"3,401.63"
127031233,Social Care,Children & Families,Children's Resource and Home Finding Team,3rd Party Payments,Independent Fostering Agency Placements,COMPASS FOSTERING WEST LTD,LE7 ,28/02/2024,"3,182.17"
127034233,Social Care,Children & Families,Children's Resource and Home Finding Team,3rd Party Payments,Independent Fostering Agency Placements,COMPASS FOSTERING WEST LTD,LE7 ,28/02/2024,"3,514.22"
127033234,Social Care,Children & Families,Children's Resource and Home Finding Team,3rd Party Payments,Independent Fostering Agency Placements,COMPASS FOSTERING WEST LTD,LE7 ,28/02/2024,"3,604.41"
123902233,Social Care,Children & Families,Children's Resource and Home Finding Team,3rd Party Payments,Independent Fostering Agency Placements,COMPASS FOSTERING WEST LTD,LE7 ,07/02/2024,"3,756.58"
127025235,Social Care,Children & Families,Children's Resource and Home Finding Team,3rd Party Payments,Independent Fostering Agency Placements,COMPASS FOSTERING WEST LTD,LE7 ,28/02/2024,"3,182.17"
123896233,Social Care,Children & Families,Children's Resource and Home Finding Team,3rd Party Payments,Independent Fostering Agency Placements,COMPASS FOSTERING WEST LTD,LE7 ,07/02/2024,"3,788.82"
123893233,Social Care,Children & Families,Children's Resource and Home Finding Team,3rd Party Payments,Independent Fostering Agency Placements,COMPASS FOSTERING WEST LTD,LE7 ,07/02/2024,"3,222.45"
127032233,Social Care,Children & Families,Children's Resource and Home Finding Team,3rd Party Payments,Independent Fostering Agency Placements,COMPASS FOSTERING WEST LTD,LE7 ,28/02/2024,"5,447.07"
123895233,Social Care,Children & Families,Children's Resource and Home Finding Team,3rd Party Payments,Independent Fostering Agency Placements,COMPASS FOSTERING WEST LTD,LE7 ,07/02/2024,"3,452.47"
125795233,Public Health,Public Health,Disabled Facilities Grants,Capital,Grant Payments,CONCEPT CONSTRUCTION,SN2 ,21/02/2024,"2,060.40"
125018233,Highways Schemes,Strategic Planning and Highways,Footway Upgrade Wroughton,Capital,Contractor Payments,CONNOR CONSTRUCTION (SOUTH WEST) LTD,BA11,14/02/2024,721.96
125598340,Learning Disabilities,Adults,Learning Disability 18 - 64,Income,Client Contribution - Personal Budget - DP,REDACTED PERSONAL DATA,GL2 ,16/02/2024,-0.48
125598340,Learning Disabilities,Adults,Learning Disability 18 - 64,Transfer Payments,Personal Budget - Direct Payments - Other,REDACTED PERSONAL DATA,GL2 ,16/02/2024,"4,560.00"
125598340,Learning Disabilities,Adults,Learning Disability 18 - 64,Transfer Payments,Personal Budget - Direct Payments - Other,REDACTED PERSONAL DATA,GL2 ,16/02/2024,32.32
125598340,Learning Disabilities,Adults,Learning Disability 18 - 64,Income,Client Contribution - Personal Budget - DP,REDACTED PERSONAL DATA,GL2 ,16/02/2024,-68.32
126352233,Disabled Children,Children & Families,ICES Paediatric,Supplies and Services,Equipment,CONSOLOR LIMITED,SO40,23/02/2024,974.34
126353233,Disabled Children,Children & Families,ICES Paediatric,Supplies and Services,Equipment,CONSOLOR LIMITED,SO40,23/02/2024,974.34
126350233,Disabled Children,Children & Families,ICES Paediatric,Supplies and Services,Equipment,CONSOLOR LIMITED,SO40,23/02/2024,980.66
126489233,Social Care,Children & Families,Placement Adoption Service,Supplies and Services,Subscriptions,CORAM ACADEMY LTD T/A CORAMBAAF,WC1N,23/02/2024,"2,095.60"
124957233,Responsive Repairs,Repairs,Responsive Repairs,3rd Party Payments,Contract Payments,REDACTED PERSONAL DATA,SN2 ,14/02/2024,"2,100.00"
124956233,Responsive Repairs,Repairs,Responsive Repairs,3rd Party Payments,Contract Payments,REDACTED PERSONAL DATA,SN2 ,14/02/2024,"3,075.00"
126642233,Responsive Repairs,Repairs,Responsive Repairs,3rd Party Payments,Contract Payments,REDACTED PERSONAL DATA,SN2 ,23/02/2024,950.00
124956233,Responsive Repairs,Repairs,Responsive Repairs,3rd Party Payments,Contract Payments,REDACTED PERSONAL DATA,SN2 ,14/02/2024,"4,500.00"
124957233,Responsive Repairs,Repairs,Responsive Repairs,3rd Party Payments,Contract Payments,REDACTED PERSONAL DATA,SN2 ,14/02/2024,"1,050.00"
126642233,Responsive Repairs,Repairs,Responsive Repairs,3rd Party Payments,Contract Payments,REDACTED PERSONAL DATA,SN2 ,23/02/2024,250.00
124682234,Social Care,Children & Families,Placement Adoption Service,3rd Party Payments,Adoption Allowances,REDACTED PERSONAL DATA,BA15,12/02/2024,860.00
127204233,Social Care,Children & Families,Placement Adoption Service,3rd Party Payments,Adoption Allowances,REDACTED PERSONAL DATA,BA15,26/02/2024,860.00
124518246,Learning Disabilities,Adults,Learning Disability 18 - 64,3rd Party Payments,Residential Care,CORNERSTONES UK LTD,SN9 ,09/02/2024,"7,337.52"
124518246,Learning Disabilities,Adults,Learning Disability 18 - 64,3rd Party Payments,Residential Care,CORNERSTONES UK LTD,SN9 ,09/02/2024,"8,650.40"
124518246,Learning Disabilities,Adults,Learning Disability 18 - 64,Income,Client Contribution - Residential,CORNERSTONES UK LTD,SN9 ,09/02/2024,-438.80
124518246,Learning Disabilities,Adults,Learning Disability 18 - 64,3rd Party Payments,Residential Care,CORNERSTONES UK LTD,SN9 ,09/02/2024,"8,465.28"
124518246,Learning Disabilities,Adults,Learning Disability 18 - 64,Income,Client Contribution - Residential,CORNERSTONES UK LTD,SN9 ,09/02/2024,-381.00
124518246,Learning Disabilities,Adults,Learning Disability 18 - 64,Income,Client Contribution - Residential,CORNERSTONES UK LTD,SN9 ,09/02/2024,-483.20
124518246,Learning Disabilities,Adults,Learning Disability 18 - 64,3rd Party Payments,Residential Care,CORNERSTONES UK LTD,SN9 ,09/02/2024,"9,501.40"
124518246,Learning Disabilities,Adults,Learning Disability 18 - 64,Income,Client Contribution - Residential,CORNERSTONES UK LTD,SN9 ,09/02/2024,-487.80
124518246,Learning Disabilities,Adults,Learning Disability 18 - 64,3rd Party Payments,Residential Care,CORNERSTONES UK LTD,SN9 ,09/02/2024,"6,626.24"
124518246,Learning Disabilities,Adults,Learning Disability 18 - 64,Income,Client Contribution - Residential,CORNERSTONES UK LTD,SN9 ,09/02/2024,-423.00
125483233,Disabled Children,Children & Families,Occupational Therapy - Children,Supplies and Services,Equipment,COTSWOLD BUILDING RENOVATIONS LTD,GL7 ,16/02/2024,585.00
125483233,Disabled Children,Children & Families,Occupational Therapy - Children,Supplies and Services,Equipment,COTSWOLD BUILDING RENOVATIONS LTD,GL7 ,16/02/2024,403.00
123594233,Social Care,Children & Families,Children's Resource and Home Finding Team,3rd Party Payments,Residential Care,COTSWOLD CHINE SCHOOL,GL5 ,02/02/2024,"75,053.33"
125005236,Streetsmart,Streetsmart,Waterside Fleet Hires,Transport Costs,Vehicle Hire / Contract,COTSWOLD RECYCLING COMPANY LTD,GL12,14/02/2024,"1,900.00"
126030235,Streetsmart,Streetsmart,Waterside Fleet Hires,Transport Costs,Vehicle Hire / Contract,COTSWOLD RECYCLING COMPANY LTD,GL12,21/02/2024,"1,430.00"
125005234,Streetsmart,Streetsmart,Waterside Fleet Hires,Transport Costs,Vehicle Hire / Contract,COTSWOLD RECYCLING COMPANY LTD,GL12,14/02/2024,"7,000.00"
125005233,Streetsmart,Streetsmart,Waste - Processing,Transport Costs,Vehicle Hire / Contract,COTSWOLD RECYCLING COMPANY LTD,GL12,14/02/2024,"11,321.95"
123458233,Streetsmart,Streetsmart,Waterside Fleet Hires,Transport Costs,Vehicle Hire / Contract,COTSWOLD RECYCLING COMPANY LTD,GL12,02/02/2024,"1,430.00"
127877233,Learning Disabilities,Adults,Firethorn Close,Premises Costs,Contract Cleaning,COUNTRYWIDE GROUNDS MAINTENANCE LTD,NN13,28/02/2024,873.90
125598389,Learning Disabilities,Adults,Learning Disability 18 - 64,Income,Client Contribution - Personal Budget - DP,REDACTED PERSONAL DATA,SP11,16/02/2024,-3.52
125598389,Learning Disabilities,Adults,Learning Disability 18 - 64,Transfer Payments,Personal Budget - Direct Payments - Domiciliary Care,REDACTED PERSONAL DATA,SP11,16/02/2024,410.88
125598389,Learning Disabilities,Adults,Learning Disability 18 - 64,Transfer Payments,Personal Budget - Direct Payments - Domiciliary Care,REDACTED PERSONAL DATA,SP11,16/02/2024,82.00
125598389,Learning Disabilities,Adults,Learning Disability 18 - 64,Transfer Payments,Personal Budget - Direct Payments - Domiciliary Care,REDACTED PERSONAL DATA,SP11,16/02/2024,"1,302.40"
125598389,Learning Disabilities,Adults,Learning Disability 18 - 64,Income,Client Contribution - Personal Budget - DP,REDACTED PERSONAL DATA,SP11,16/02/2024,-122.00
125598389,Learning Disabilities,Adults,Learning Disability 18 - 64,Income,Client Contribution - Personal Budget - DP,REDACTED PERSONAL DATA,SP11,16/02/2024,-7.68
125598389,Learning Disabilities,Adults,Learning Disability 18 - 64,Income,Client Contribution - Personal Budget - DP,REDACTED PERSONAL DATA,SP11,16/02/2024,-38.52
125598389,Learning Disabilities,Adults,Learning Disability 18 - 64,Transfer Payments,Personal Budget - Direct Payments - Domiciliary Care,REDACTED PERSONAL DATA,SP11,16/02/2024,37.76
124654233,Completed Schemes (GF),Completed Schemes (GF & HRA),Croft Leisure Centre,Capital,Contractor Payments,COURTSHIP LIMITED,TA21,12/02/2024,"6,515.00"
125813233,Streetsmart,Streetsmart,Waste - Processing,Supplies and Services,Repairs & Maintenance,COVEYA LTD,BS30,21/02/2024,"1,255.80"
124518303,Memory & Cognition,Adults,Support for Memory and Cognition 65 and over,Income,Client Contribution - Nursing,COXWELL HALL AND MEWS NURSING HOME,TW20,09/02/2024,-845.60
124518303,Memory & Cognition,Adults,Support for Memory and Cognition 65 and over,3rd Party Payments,Residential Care,COXWELL HALL AND MEWS NURSING HOME,TW20,09/02/2024,"5,968.24"
124518303,Memory & Cognition,Adults,Support for Memory and Cognition 65 and over,3rd Party Payments,Nursing Care,COXWELL HALL AND MEWS NURSING HOME,TW20,09/02/2024,"5,121.16"
124516233,Learning Disabilities,Adults,Learning Disability 18 - 64,Income,Client Contribution - Residential,CRAEGMOOR HEALTHCARE,BA14,09/02/2024,-483.20
124516233,Learning Disabilities,Adults,Learning Disability 18 - 64,3rd Party Payments,Residential Care,CRAEGMOOR HEALTHCARE,BA14,09/02/2024,"9,158.28"
125040235,Streetsmart,Streetsmart,Waste - Disposal,3rd Party Payments,Contract Payments,CRAPPER & SONS LANDFILL LTD,SN4 ,14/02/2024,"5,232.03"
124637233,Streetsmart,Streetsmart,Waste - Disposal,3rd Party Payments,Contract Payments,CRAPPER & SONS LANDFILL LTD,SN4 ,12/02/2024,"6,310.63"
124632234,Streetsmart,Streetsmart,Waste - Disposal,3rd Party Payments,Contract Payments,CRAPPER & SONS LANDFILL LTD,SN4 ,12/02/2024,"1,617.20"
125041269,Streetsmart,Streetsmart,Waste - Disposal,3rd Party Payments,Contract Payments,CRAPPER & SONS LANDFILL LTD,SN4 ,14/02/2024,"4,164.29"
124639233,Streetsmart,Streetsmart,Waste - Disposal,3rd Party Payments,Contract Payments,CRAPPER & SONS LANDFILL LTD,SN4 ,12/02/2024,711.14
125044233,Streetsmart,Streetsmart,Waste - Disposal,3rd Party Payments,Contract Payments,CRAPPER & SONS LANDFILL LTD,SN4 ,14/02/2024,"3,365.02"
125039233,Streetsmart,Streetsmart,Waste - Disposal,3rd Party Payments,Contract Payments,CRAPPER & SONS LANDFILL LTD,SN4 ,14/02/2024,"3,454.40"
125169233,Streetsmart,Streetsmart,Waste - Disposal,3rd Party Payments,Contract Payments,CRAPPER & SONS LANDFILL LTD,SN4 ,14/02/2024,"2,601.16"
124576233,Streetsmart,Streetsmart,Waste - Disposal,3rd Party Payments,Contract Payments,CRAPPER & SONS LANDFILL LTD,SN4 ,09/02/2024,"1,080.00"
123781233,Streetsmart,Streetsmart,Waste - Disposal,3rd Party Payments,Contract Payments,CRAPPER & SONS LANDFILL LTD,SN4 ,05/02/2024,"1,095.59"
125127233,Streetsmart,Streetsmart,Waste - Disposal,3rd Party Payments,Contract Payments,CRAPPER & SONS LANDFILL LTD,SN4 ,14/02/2024,"1,469.00"
124630233,Streetsmart,Streetsmart,Waste - Disposal,3rd Party Payments,Contract Payments,CRAPPER & SONS LANDFILL LTD,SN4 ,12/02/2024,"5,042.49"
124482233,Streetsmart,Streetsmart,Waste - Disposal,3rd Party Payments,Contract Payments,CRAPPER & SONS LANDFILL LTD,SN4 ,09/02/2024,840.00
123709233,Streetsmart,Streetsmart,Waste - Disposal,3rd Party Payments,Contract Payments,CRAPPER & SONS LANDFILL LTD,SN4 ,02/02/2024,853.23
123706233,Streetsmart,Streetsmart,Waste - Disposal,3rd Party Payments,Contract Payments,CRAPPER & SONS LANDFILL LTD,SN4 ,02/02/2024,604.41
125128233,Streetsmart,Streetsmart,Waste - Disposal,3rd Party Payments,Contract Payments,CRAPPER & SONS LANDFILL LTD,SN4 ,14/02/2024,494.00
125167233,Streetsmart,Streetsmart,Waste - Disposal,3rd Party Payments,Contract Payments,CRAPPER & SONS LANDFILL LTD,SN4 ,14/02/2024,"4,181.64"
125168233,Streetsmart,Streetsmart,Waste - Disposal,3rd Party Payments,Contract Payments,CRAPPER & SONS LANDFILL LTD,SN4 ,14/02/2024,"3,568.33"
124638233,Streetsmart,Streetsmart,Waste - Disposal,3rd Party Payments,Contract Payments,CRAPPER & SONS LANDFILL LTD,SN4 ,12/02/2024,816.66
124627233,Streetsmart,Streetsmart,Waste - Disposal,3rd Party Payments,Contract Payments,CRAPPER & SONS LANDFILL LTD,SN4 ,12/02/2024,"3,985.49"
124636233,Streetsmart,Streetsmart,Waste - Disposal,3rd Party Payments,Contract Payments,CRAPPER & SONS LANDFILL LTD,SN4 ,12/02/2024,"4,793.43"
125045234,Streetsmart,Streetsmart,Waste - Disposal,3rd Party Payments,Contract Payments,CRAPPER & SONS LANDFILL LTD,SN4 ,14/02/2024,"2,188.51"
125042233,Streetsmart,Streetsmart,Waste - Disposal,3rd Party Payments,Contract Payments,CRAPPER & SONS LANDFILL LTD,SN4 ,14/02/2024,"3,429.04"
124635233,Streetsmart,Streetsmart,Waste - Disposal,3rd Party Payments,Contract Payments,CRAPPER & SONS LANDFILL LTD,SN4 ,12/02/2024,"5,452.79"
124625233,Streetsmart,Streetsmart,Waste - Disposal,3rd Party Payments,Contract Payments,CRAPPER & SONS LANDFILL LTD,SN4 ,12/02/2024,"2,155.32"
123708233,Streetsmart,Streetsmart,Waste - Disposal,3rd Party Payments,Contract Payments,CRAPPER & SONS LANDFILL LTD,SN4 ,02/02/2024,"1,478.46"
126496233,"Data, Performance and Insight",Digital & Business Change,"Performance, Intelligence and Insight",Supplies and Services,Services,CRAYON DRAGONS LTD,SL6 ,23/02/2024,"12,125.00"
127884233,Heritage,Culture,SMAG relocation,Capital,Contractor Payments,CREATIVE CONSTRUCTION SOUTH WEST LTD,BS20,28/02/2024,"50,277.79"
125171234,Physical Support,Adults,Fessey House,Supplies and Services,Food,CREED CATERING SUPPLIES LTD,GL51,14/02/2024,74.15
125177233,Physical Support,Adults,Fessey House,Supplies and Services,Food,CREED CATERING SUPPLIES LTD,GL51,14/02/2024,68.91
123938233,Physical Support,Adults,Fessey House,Supplies and Services,Food,CREED CATERING SUPPLIES LTD,GL51,07/02/2024,929.27
126393233,Physical Support,Adults,Fessey House,Supplies and Services,Food,CREED CATERING SUPPLIES LTD,GL51,23/02/2024,139.15
127860233,Physical Support,Adults,Fessey House,Supplies and Services,Food,CREED CATERING SUPPLIES LTD,GL51,28/02/2024,407.51
125171234,Physical Support,Adults,Fessey House,Supplies and Services,Food,CREED CATERING SUPPLIES LTD,GL51,14/02/2024,554.10
126393233,Physical Support,Adults,Fessey House,Supplies and Services,Food,CREED CATERING SUPPLIES LTD,GL51,23/02/2024,713.07
125177233,Physical Support,Adults,Fessey House,Supplies and Services,Food,CREED CATERING SUPPLIES LTD,GL51,14/02/2024,512.14
123938233,Physical Support,Adults,Fessey House,Supplies and Services,Food,CREED CATERING SUPPLIES LTD,GL51,07/02/2024,337.66
127860233,Physical Support,Adults,Fessey House,Supplies and Services,Food,CREED CATERING SUPPLIES LTD,GL51,28/02/2024,152.48
126395233,Physical Support,Adults,Fessey House,Supplies and Services,Food,CREED CATERING SUPPLIES LTD,GL51,23/02/2024,349.61
126395233,Physical Support,Adults,Fessey House,Supplies and Services,Food,CREED CATERING SUPPLIES LTD,GL51,23/02/2024,157.48
123518258,Property & Assets,Property & Assets,General Enhancement Works Corporate Buildings,Capital,Contractor Payments,CRL SURVEYS LIMITED,CR4 ,02/02/2024,"12,990.00"
126739233,Organisational Resilience,"People, Culture and Organisational Resilience",Security,Employees,Casual Staff - Basic,CROCSEC LIMITED,SN25,23/02/2024,"2,091.00"
126742234,Sheltered Accomodation,Special Services,George Hall Court,Premises Costs,Maintenance - Grounds,CROCSEC LIMITED,SN25,23/02/2024,595.00
125792233,Organisational Resilience,"People, Culture and Organisational Resilience",Security,Employees,Casual Staff - Basic,CROCSEC LIMITED,SN25,21/02/2024,"1,836.00"
125733233,Sheltered Accomodation,Special Services,Sheltered Housing Management General,Supplies and Services,Services,CROCSEC LIMITED,SN25,19/02/2024,578.00
126743233,Organisational Resilience,"People, Culture and Organisational Resilience",Security,Employees,Casual Staff - Basic,CROCSEC LIMITED,SN25,23/02/2024,"2,091.00"
125487234,Organisational Resilience,"People, Culture and Organisational Resilience",Security,Employees,Casual Staff - Basic,CROCSEC LIMITED,SN25,16/02/2024,"2,091.00"
126952233,Licencing,Regulatory Services,Taxis & Private Hire,Supplies and Services,Testing / Inspection,CROSS STREET GARAGE (SWINDON) LTD,SN1 ,26/02/2024,"1,045.00"
125965234,Streetsmart,Streetsmart,Waterside Fleet Workshops,Transport Costs,Repairs & Maintenance - Vehicles,CROSS STREET GARAGE (SWINDON) LTD,SN1 ,21/02/2024,"2,867.87"
127806233,School Transport,"Education, Inclusion and Skills",Special Educational Needs Transport,Transport Costs,Home to School Transport,CROSS STREET RADIO CARS,SN1 ,28/02/2024,"2,600.00"
127805233,School Transport,"Education, Inclusion and Skills",Special Educational Needs Transport,Transport Costs,Home to School Transport,CROSS STREET RADIO CARS,SN1 ,28/02/2024,"3,400.00"
126717233,School Transport,"Education, Inclusion and Skills",Special Educational Needs Transport,Transport Costs,Home to School Transport,CROSS STREET RADIO CARS,SN1 ,23/02/2024,"2,200.00"
126730233,School Transport,"Education, Inclusion and Skills",Special Educational Needs Transport,Transport Costs,Home to School Transport,CROSS STREET RADIO CARS,SN1 ,23/02/2024,"2,850.00"
125063283,High Needs Block,Dedicated Schools Grant (DSG),SEN Resourcing Assessment Panel,3rd Party Payments,Top up funding - Maintained providers Pre 16,CROWDYS HILL SCHOOL,SN2 ,14/02/2024,"70,308.23"
125063289,High Needs Block,Dedicated Schools Grant (DSG),SEN Resourcing Assessment Panel,3rd Party Payments,Top up funding - Maintained providers Post 16,CROWDYS HILL SCHOOL,SN2 ,14/02/2024,"80,640.40"
125063285,High Needs Block,Dedicated Schools Grant (DSG),SEN Resourcing Assessment Panel,3rd Party Payments,Top up funding - Maintained providers Pre 16,CROWDYS HILL SCHOOL,SN2 ,14/02/2024,"4,375.00"
125063284,High Needs Block,Dedicated Schools Grant (DSG),SEN Resourcing Assessment Panel,3rd Party Payments,Top up funding - Maintained providers Pre 16,CROWDYS HILL SCHOOL,SN2 ,14/02/2024,"155,376.48"
124754247,DSG Other Funding,Dedicated Schools Grant (DSG),DFE Additional Grants,3rd Party Payments,Payment of Pupil Premium to school,CROWDYS HILL SCHOOL,SN2 ,14/02/2024,"10,282.00"
127729237,High Needs Block,Dedicated Schools Grant (DSG),DSG Retained High Needs,Supplies and Services,Payments to Educational Bodies,CROWDYS HILL SCHOOL,SN2 ,28/02/2024,"70,722.50"
127725233,High Needs Block,Dedicated Schools Grant (DSG),DSG Retained High Needs,Supplies and Services,Payments to Educational Bodies,CROWDYS HILL SCHOOL,SN2 ,28/02/2024,"25,520.00"
124751233,High Needs Block,Dedicated Schools Grant (DSG),Special School Place,3rd Party Payments,HNB- Place Funding post 16,CROWDYS HILL SCHOOL,SN2 ,14/02/2024,"38,333.00"
124751234,High Needs Block,Dedicated Schools Grant (DSG),Special School Place,3rd Party Payments,HNB- Place Funding pre 16,CROWDYS HILL SCHOOL,SN2 ,14/02/2024,"170,000.00"
125456233,Physical Support,Adults,Physical Support 65 and over,3rd Party Payments,Personal Budget - Domiciliary care,CRYSTAL CARING LIMITED,SN2 ,16/02/2024,"3,174.92"
127740233,Physical Support,Adults,Physical Support 65 and over,3rd Party Payments,Personal Budget - Domiciliary care,CRYSTAL CARING LIMITED,SN2 ,28/02/2024,"1,510.38"
125456233,Physical Support,Adults,Physical Support 65 and over,3rd Party Payments,Personal Budget - Domiciliary care,CRYSTAL CARING LIMITED,SN2 ,16/02/2024,"2,974.68"
127740233,Physical Support,Adults,Physical Support 65 and over,3rd Party Payments,Personal Budget - Domiciliary care,CRYSTAL CARING LIMITED,SN2 ,28/02/2024,-404.46
125456233,Physical Support,Adults,Physical Support 65 and over,3rd Party Payments,Personal Budget - Domiciliary care,CRYSTAL CARING LIMITED,SN2 ,16/02/2024,"-2,130.44"
125456233,Physical Support,Adults,Physical Support 65 and over,3rd Party Payments,Personal Budget - Domiciliary care,CRYSTAL CARING LIMITED,SN2 ,16/02/2024,-797.40
123429235,Other Repairs,Repairs,Unallocated job costs from OPEN system,Premises Costs,Repairs - Buildings,CRYSTAL ELECTRONICS LTD,NN6 ,02/02/2024,"3,026.19"
127869233,Physical Support,Adults,Fessey House,Supplies and Services,Equipment,CULLIGAN COMMERCIAL (UK) LTD,HP12,28/02/2024,430.00
126335234,Repairs Staffing,Repairs,Maintenance,Supplies and Services,Fees,CURRIE & BROWN (UK) LTD,EC1N,23/02/2024,77.00
124950234,Repairs Staffing,Repairs,Maintenance,Supplies and Services,Fees,CURRIE & BROWN (UK) LTD,EC1N,14/02/2024,77.00
126335234,Repairs Staffing,Repairs,Maintenance,Supplies and Services,Fees,CURRIE & BROWN (UK) LTD,EC1N,23/02/2024,77.00
124950234,Repairs Staffing,Repairs,Maintenance,Supplies and Services,Fees,CURRIE & BROWN (UK) LTD,EC1N,14/02/2024,77.00
Corporate Card Transaction,ASC Finance Services Teams,ASC Finance Services,ASC Money Management Team,3rd Party Payments,Recoverable Client Costs,Currys Online,,30/01/2024,749.00
Corporate Card Transaction,Homelessness and Travellers,Housing Services,Warm Welcome Project,Supplies and Services,Equipment,Currys Online,,07/02/2024,560.83
125561233,Physical Support,Adults,Physical Support 18 - 64,Transfer Payments,Personal Budget - Direct Payments - Domiciliary Care,REDACTED PERSONAL DATA,SN25,16/02/2024,547.84
125561233,Physical Support,Adults,Physical Support 18 - 64,Income,Client Contribution - Personal Budget - DP,REDACTED PERSONAL DATA,SN25,16/02/2024,-8.12
125561233,Physical Support,Adults,Physical Support 18 - 64,Income,Client Contribution - Personal Budget - DP,REDACTED PERSONAL DATA,SN25,16/02/2024,-217.00
125561233,Physical Support,Adults,Physical Support 18 - 64,Transfer Payments,Personal Budget - Direct Payments - Domiciliary Care,REDACTED PERSONAL DATA,SN25,16/02/2024,75.52
125561233,Physical Support,Adults,Physical Support 18 - 64,Income,Client Contribution - Personal Budget - DP,REDACTED PERSONAL DATA,SN25,16/02/2024,-58.88
125561233,Physical Support,Adults,Physical Support 18 - 64,Transfer Payments,Personal Budget - Direct Payments - Other,REDACTED PERSONAL DATA,SN25,16/02/2024,820.00
125561233,Physical Support,Adults,Physical Support 18 - 64,Transfer Payments,Personal Budget - Direct Payments - Domiciliary Care,REDACTED PERSONAL DATA,SN25,16/02/2024,"2,018.72"
125561233,Physical Support,Adults,Physical Support 18 - 64,Income,Client Contribution - Personal Budget - DP,REDACTED PERSONAL DATA,SN25,16/02/2024,-88.16
123950233,Highways Inspections & Maintenance,Highway Operations and Car Parking,Streetlighting,3rd Party Payments,Contract Payments,DABRESOURCE LTD,RG30,07/02/2024,"1,440.00"
125598277,Physical Support,Adults,Physical Support 18 - 64,Transfer Payments,Personal Budget - Direct Payments - Domiciliary Care,REDACTED PERSONAL DATA,SP11,16/02/2024,201.71
125598277,Physical Support,Adults,Physical Support 18 - 64,Transfer Payments,Personal Budget - Direct Payments - Domiciliary Care,REDACTED PERSONAL DATA,SP11,16/02/2024,198.32
125598277,Physical Support,Adults,Physical Support 18 - 64,Transfer Payments,Personal Budget - Direct Payments - Domiciliary Care,REDACTED PERSONAL DATA,SP11,16/02/2024,650.56
125598277,Physical Support,Adults,Physical Support 18 - 64,Transfer Payments,Personal Budget - Direct Payments - Domiciliary Care,REDACTED PERSONAL DATA,SP11,16/02/2024,"1,058.20"
125598277,Physical Support,Adults,Physical Support 18 - 64,Transfer Payments,Personal Budget - Direct Payments - Domiciliary Care,REDACTED PERSONAL DATA,SP11,16/02/2024,568.80
125598277,Physical Support,Adults,Physical Support 18 - 64,Transfer Payments,Personal Budget - Direct Payments - Domiciliary Care,REDACTED PERSONAL DATA,SP11,16/02/2024,"1,302.40"
125598277,Physical Support,Adults,Physical Support 18 - 64,Transfer Payments,Personal Budget - Direct Payments - Domiciliary Care,REDACTED PERSONAL DATA,SP11,16/02/2024,547.84
125598277,Physical Support,Adults,Physical Support 18 - 64,Transfer Payments,Personal Budget - Direct Payments - Domiciliary Care,REDACTED PERSONAL DATA,SP11,16/02/2024,60.16
125598277,Physical Support,Adults,Physical Support 18 - 64,Transfer Payments,Personal Budget - Direct Payments - Domiciliary Care,REDACTED PERSONAL DATA,SP11,16/02/2024,252.34
125598267,Physical Support,Adults,Physical Support 18 - 64,Transfer Payments,Personal Budget - Direct Payments - Domiciliary Care,REDACTED PERSONAL DATA,SN3 ,16/02/2024,"2,903.04"
125598267,Physical Support,Adults,Physical Support 18 - 64,Income,Client Contribution - Personal Budget - DP,REDACTED PERSONAL DATA,SN3 ,16/02/2024,-181.60
125598294,Learning Disabilities,Adults,Learning Disability 18 - 64,Transfer Payments,Personal Budget - Direct Payments - Domiciliary Care,REDACTED PERSONAL DATA,SN2 ,16/02/2024,"3,907.20"
125598294,Learning Disabilities,Adults,Learning Disability 18 - 64,Income,Client Contribution - Personal Budget - DP,REDACTED PERSONAL DATA,SN2 ,16/02/2024,-32.84
125598294,Learning Disabilities,Adults,Learning Disability 18 - 64,Income,Client Contribution - Personal Budget - DP,REDACTED PERSONAL DATA,SN2 ,16/02/2024,-12.48
125598294,Learning Disabilities,Adults,Learning Disability 18 - 64,Transfer Payments,Personal Budget - Direct Payments - Domiciliary Care,REDACTED PERSONAL DATA,SN2 ,16/02/2024,"1,172.16"
125598294,Learning Disabilities,Adults,Learning Disability 18 - 64,Income,Client Contribution - Personal Budget - DP,REDACTED PERSONAL DATA,SN2 ,16/02/2024,-41.64
125598294,Learning Disabilities,Adults,Learning Disability 18 - 64,Transfer Payments,Personal Budget - Direct Payments - Domiciliary Care,REDACTED PERSONAL DATA,SN2 ,16/02/2024,"3,081.60"
125598294,Learning Disabilities,Adults,Learning Disability 18 - 64,Income,Client Contribution - Personal Budget - DP,REDACTED PERSONAL DATA,SN2 ,16/02/2024,-22.88
125598294,Learning Disabilities,Adults,Learning Disability 18 - 64,Transfer Payments,Personal Budget - Direct Payments - Domiciliary Care,REDACTED PERSONAL DATA,SN2 ,16/02/2024,"2,148.40"
125670233,Museums & Heritage,Culture & Heritage,Steam:Income Generation,Supplies and Services,Goods for resale,DAPOL LTD,LL14,19/02/2024,519.47
125552233,Museums & Heritage,Culture & Heritage,Steam:Income Generation,Supplies and Services,Goods for resale,DAPOL LTD,LL14,16/02/2024,"1,450.07"
125412233,Property Estates,Property,Estates - Miscellaneous Rents,Premises Costs,Repairs - Buildings,DARKE & TAYLOR LIMITED,OX29,16/02/2024,"9,327.61"
125598266,Learning Disabilities,Adults,Learning Disability 18 - 64,Income,Client Contribution - Personal Budget - DP,REDACTED PERSONAL DATA,SP11,16/02/2024,-371.40
125598266,Learning Disabilities,Adults,Learning Disability 18 - 64,Income,Client Contribution - Personal Budget - DP,REDACTED PERSONAL DATA,SP11,16/02/2024,-26.44
